﻿Authority,Service Area,Account Description,Payment Date,Amount,Supplier
Bolton MBC,Adult Services,Residential Provision,05-Jul-22,"£4,584.00",Abafields Residential Home
Bolton MBC,Adult Services,Nursing Provision,05-Jul-22,"£9,568.00",Abbey Healthcare (Farnworth) Limited
Bolton MBC,Adult Services,Residential Provision,05-Jul-22,"£4,864.00",Abbey Healthcare (Farnworth) Limited
Bolton MBC,Adult Services,Contracted Services,01-Jul-22,"£4,604.50",Access UK Limited
Bolton MBC,Adult Services,General Subscriptions,21-Jul-22,"£2,484.00",ADASS#Association Of Directors Of Adult Social Services
Bolton MBC,Adult Services,Clients Aids & Adaptations,01-Jul-22,"£1,320.00",Aidapt Bathrooms Ltd
Bolton MBC,Adult Services,Contracted Services,12-Jul-22,"£7,086.70",Ansar Projects
Bolton MBC,Adult Services,Contracted Services,22-Jul-22,"£7,086.70",Ansar Projects
Bolton MBC,Adult Services,Nursing Provision,05-Jul-22,"£2,432.00",Astley Grange Homes Limited
Bolton MBC,Adult Services,Nursing Provision,05-Jul-22,"£2,776.00",Astley Grange Homes Limited
Bolton MBC,Adult Services,Other Agency/Contracted Services,01-Jul-22,"£3,947.00",Autistic Society Greater Manchester Area
Bolton MBC,Adult Services,Residential Provision,05-Jul-22,"£27,941.36",Bannister Farm Cottage
Bolton MBC,Adult Services,Residential Provision,05-Jul-22,"£2,292.00",Beechville Care Home
Bolton MBC,Adult Services,Nursing Provision,05-Jul-22,"£2,404.00",Belong Atherton#EPH
Bolton MBC,Adult Services,Residential Provision,05-Jul-22,"£2,588.00",Belong Wigan#2
Bolton MBC,Adult Services,Clients Aids & Adaptations,15-Jul-22,"£1,099.00",Bennett Workplace Solutions Limited
Bolton MBC,Adult Services,Nursing Provision,05-Jul-22,"£17,553.60",Berkeley House
Bolton MBC,Adult Services,Residential Provision,05-Jul-22,"£4,868.00",Blackrod House Limited
Bolton MBC,Adult Services,Residential Provision,05-Jul-22,"£5,880.80",Bluebell Cottage Veedale
Bolton MBC,Adult Services,Clients Aids & Adaptations,28-Jul-22,£945.00,Brain In Hand Limited
Bolton MBC,Adult Services,Clients Aids & Adaptations,28-Jul-22,£945.00,Brain In Hand Limited
Bolton MBC,Adult Services,Clients Aids & Adaptations,28-Jul-22,£945.00,Brain In Hand Limited
Bolton MBC,Adult Services,Clients Aids & Adaptations,28-Jul-22,£945.00,Brain In Hand Limited
Bolton MBC,Adult Services,Residential Provision,05-Jul-22,"£2,981.40",Brookfield Residential Care Home Ltd
Bolton MBC,Adult Services,Residential Provision,05-Jul-22,"£13,711.24",Brookvale
Bolton MBC,Adult Services,Residential Provision,05-Jul-22,"£1,819.40",Browfield Residential Home
Bolton MBC,Adult Services,Operational Equipment Purchase,01-Jul-22,"£7,436.25",Building A New Direction#BAND#Family Action
Bolton MBC,Adult Services,Nursing Provision,05-Jul-22,"£5,083.20",Burrswood House
Bolton MBC,Adult Services,Residential Provision,05-Jul-22,"£4,563.20",Burrswood House
Bolton MBC,Adult Services,Nursing Provision,05-Jul-22,"£2,292.00",Carders Court Care Home
Bolton MBC,Adult Services,Contracted Services,03-Jul-22,"£1,072.50",Caring Alternatives Limited
Bolton MBC,Adult Services,Contracted Services,10-Jul-22,"£1,250.57",Caring Alternatives Limited
Bolton MBC,Adult Services,Contracted Services,03-Jul-22,"£12,249.31",Caring Alternatives Limited
Bolton MBC,Adult Services,Contracted Services,10-Jul-22,"£12,340.33",Caring Alternatives Limited
Bolton MBC,Adult Services,Residential Provision,05-Jul-22,"£2,251.60",Carr Bank House
Bolton MBC,Adult Services,Residential Provision,05-Jul-22,"£8,486.20",Chatterton Hey House
Bolton MBC,Adult Services,Residential Provision,05-Jul-22,"£18,874.56",Chorley House
Bolton MBC,Adult Services,Residential Provision,05-Jul-22,"£9,437.28",Chorley House
Bolton MBC,Adult Services,Residential Provision,05-Jul-22,"£6,212.56",Church View
Bolton MBC,Adult Services,Nursing Provision,05-Jul-22,"£15,467.20",Church Walk Health Care Limited
Bolton MBC,Adult Services,Residential Provision,05-Jul-22,"£22,166.46",Clarence House
Bolton MBC,Adult Services,Contracted Services,01-Jul-22,£605.00,Click Travel Limited
Bolton MBC,Adult Services,Clients Temporary Accommodation,06-Jul-22,"£1,283.33",Click Travel Limited
Bolton MBC,Adult Services,Clients Temporary Accommodation,06-Jul-22,"£1,035.83",Click Travel Limited
Bolton MBC,Adult Services,Clients Aids & Adaptations,21-Jul-22,£547.00,Closomat Limited
Bolton MBC,Adult Services,Contracted Services,05-Jul-22,"£21,111.50",College House
Bolton MBC,Adult Services,Contracted Services,07-Jul-22,"£3,552.32",College House
Bolton MBC,Adult Services,Contracted Services,01-Jul-22,£636.48,Community Care Options#3
Bolton MBC,Adult Services,Contracted Services,05-Jul-22,"£13,254.17",Cranleigh Court
Bolton MBC,Adult Services,Contracted Services,07-Jul-22,"£3,656.80",Cranleigh Court
Bolton MBC,Adult Services,Contracted Services,01-Jul-22,"£10,111.30",CRG Homecare Limited
Bolton MBC,Adult Services,Contracted Services,12-Jul-22,"£9,423.34",CRG Homecare Limited
Bolton MBC,Adult Services,Contracted Services,01-Jul-22,"£1,033.65",CRG Homecare Limited
Bolton MBC,Adult Services,Contracted Services,12-Jul-22,"£1,050.19",CRG Homecare Limited
Bolton MBC,Adult Services,Contracted Services,01-Jul-22,"£6,342.33",CRG Homecare Limited
Bolton MBC,Adult Services,Contracted Services,12-Jul-22,"£5,971.99",CRG Homecare Limited
Bolton MBC,Adult Services,Nursing Provision,05-Jul-22,"£3,366.00",Crystal Hall Care Home
Bolton MBC,Adult Services,Client Support Costs,18-Jul-22,£942.00,D C S Cleaning Services
Bolton MBC,Adult Services,Client Support Costs,25-Jul-22,"£1,467.00",D C S Cleaning Services
Bolton MBC,Adult Services,Contracted Services,01-Jul-22,£848.50,Dagmar Hartshorn Psychological Services
Bolton MBC,Adult Services,Contracted Services,01-Jul-22,"£1,527.00",Dagmar Hartshorn Psychological Services
Bolton MBC,Adult Services,Residential Provision,05-Jul-22,"£16,893.44",Daisy Fieldz Care Services Limited
Bolton MBC,Adult Services,Contracted Services,07-Jul-22,"£1,597.22",Dignity in Life Ltd#DIL Foundation
Bolton MBC,Adult Services,Contracted Services,07-Jul-22,£621.07,Dignity in Life Ltd#DIL Foundation
Bolton MBC,Adult Services,Contracted Services,07-Jul-22,£505.55,Dignity in Life Ltd#DIL Foundation
Bolton MBC,Adult Services,Contracted Services,07-Jul-22,"£1,180.13",Dignity in Life Ltd#DIL Foundation
Bolton MBC,Adult Services,Contracted Services,07-Jul-22,"£1,478.00",Dignity in Life Ltd#DIL Foundation
Bolton MBC,Adult Services,Contracted Services,07-Jul-22,£829.31,Dignity in Life Ltd#DIL Foundation
Bolton MBC,Adult Services,Contracted Services,07-Jul-22,£529.26,Dignity in Life Ltd#DIL Foundation
Bolton MBC,Adult Services,Contracted Services,07-Jul-22,£640.83,Dignity in Life Ltd#DIL Foundation
Bolton MBC,Adult Services,Contracted Services,07-Jul-22,"£1,561.95",Dignity in Life Ltd#DIL Foundation
Bolton MBC,Adult Services,Residential Provision,05-Jul-22,"£13,751.68",DIL House
Bolton MBC,Adult Services,Residential Provision,05-Jul-22,"£29,068.70",DIL Place
Bolton MBC,Adult Services,Clients Aids & Adaptations,06-Jul-22,"£2,520.00",Direct Healthcare Group Limited
Bolton MBC,Adult Services,Clients Aids & Adaptations,15-Jul-22,£714.00,Direct Healthcare Group Limited
Bolton MBC,Adult Services,Clients Aids & Adaptations,28-Jul-22,£535.32,Direct Healthcare Group Limited
Bolton MBC,Adult Services,Clients Aids & Adaptations,08-Jul-22,£750.00,Disabled Living (Training Exhibitions) Limited
Bolton MBC,Adult Services,Clients Aids & Adaptations,15-Jul-22,"£1,800.00",Doro Care (UK) Limited
Bolton MBC,Adult Services,Clients Aids & Adaptations,14-Jul-22,£897.20,Drive Devilbiss Healthcare Limited
Bolton MBC,Adult Services,Clients Aids & Adaptations,14-Jul-22,"£2,689.95",Drive Devilbiss Healthcare Limited
Bolton MBC,Adult Services,Clients Aids & Adaptations,21-Jul-22,£535.60,Easylink UK#Medpage Limited
Bolton MBC,Adult Services,Clients Aids & Adaptations,21-Jul-22,£535.60,Easylink UK#Medpage Limited
Bolton MBC,Adult Services,Clients Aids & Adaptations,21-Jul-22,£669.20,Easylink UK#Medpage Limited
Bolton MBC,Adult Services,Contracted Services,11-Jul-22,£514.80,Eden Care Support Services Ltd
Bolton MBC,Adult Services,Contracted Services,11-Jul-22,£898.56,Eden Care Support Services Ltd
Bolton MBC,Adult Services,Contracted Services,11-Jul-22,£792.48,Eden Care Support Services Ltd
Bolton MBC,Adult Services,Contracted Services,11-Jul-22,£917.28,Eden Care Support Services Ltd
Bolton MBC,Adult Services,Contracted Services,11-Jul-22,£542.88,Eden Care Support Services Ltd
Bolton MBC,Adult Services,Residential Provision,05-Jul-22,"£2,193.60",Elizabeth House
Bolton MBC,Adult Services,Residential Provision,05-Jul-22,"£9,437.72",Ellershaw House Ltd
Bolton MBC,Adult Services,Clients Aids & Adaptations,21-Jul-22,£515.40,Enable Access Limited
Bolton MBC,Adult Services,Residential Provision,05-Jul-22,"£2,251.60",Epworth Grange
Bolton MBC,Adult Services,Contracted Services,05-Jul-22,"£3,353.88",Equilibrium Healthcare Limited
Bolton MBC,Adult Services,Contracted Services,07-Jul-22,"£3,353.88",Equilibrium Healthcare Limited
Bolton MBC,Adult Services,Contracted Services,12-Jul-22,"£3,353.88",Equilibrium Healthcare Limited
Bolton MBC,Adult Services,Contracted Services,20-Jul-22,"£3,353.88",Equilibrium Healthcare Limited
Bolton MBC,Adult Services,Residential Provision,05-Jul-22,"£5,293.84",Fosse Bank Court
Bolton MBC,Adult Services,Nursing Provision,05-Jul-22,"£2,576.00",Four Seasons Care Home
Bolton MBC,Adult Services,Residential Provision,05-Jul-22,"£4,868.00",Four Seasons Care Home
Bolton MBC,Adult Services,Clients Aids & Adaptations,01-Jul-22,"£1,174.60",Frontier Therapeutics
Bolton MBC,Adult Services,Clients Aids & Adaptations,01-Jul-22,"£3,166.70",Frontier Therapeutics
Bolton MBC,Adult Services,Clients Aids & Adaptations,01-Jul-22,£655.00,G & S Smirthwaite Limited#Smirthwaite Ltd
Bolton MBC,Adult Services,Clients Aids & Adaptations,11-Jul-22,£676.00,G & S Smirthwaite Limited#Smirthwaite Ltd
Bolton MBC,Adult Services,Clients Aids & Adaptations,22-Jul-22,"£2,472.00",G & S Smirthwaite Limited#Smirthwaite Ltd
Bolton MBC,Adult Services,Other Fees,01-Jul-22,"£14,890.00",GatenbySanderson
Bolton MBC,Adult Services,Other Fees,01-Jul-22,"£6,970.00",GatenbySanderson
Bolton MBC,Adult Services,Nursing Provision,05-Jul-22,"£2,457.72",Gillibrand Hall Nursing Home
Bolton MBC,Adult Services,Residential Provision,05-Jul-22,"£2,292.00",Glenbank Care Home Ltd
Bolton MBC,Adult Services,Clients Aids & Adaptations,01-Jul-22,£890.00,GN Healthcare
Bolton MBC,Adult Services,Clients Aids & Adaptations,11-Jul-22,£650.00,GN Healthcare
Bolton MBC,Adult Services,Clients Aids & Adaptations,28-Jul-22,"£1,120.00",GN Healthcare
Bolton MBC,Adult Services,Other Agency/Contracted Services,01-Jul-22,"£1,500.00",GNS Inspire Limited
Bolton MBC,Adult Services,Residential Provision,05-Jul-22,"£2,292.00",Grange Lea Residential Care Home Limited
Bolton MBC,Adult Services,Other Clients Services,01-Jul-22,"£2,867.99",Greater Manchester Mental Health NHS Foundation Trust
Bolton MBC,Adult Services,Other Clients Services,20-Jul-22,"£2,034.23",Greater Manchester Mental Health NHS Foundation Trust
Bolton MBC,Adult Services,Other Clients Services,20-Jul-22,£799.04,Greater Manchester Mental Health NHS Foundation Trust
Bolton MBC,Adult Services,Other Clients Services,20-Jul-22,"£2,867.99",Greater Manchester Mental Health NHS Foundation Trust
Bolton MBC,Adult Services,Other Clients Services,20-Jul-22,"£2,569.65",Greater Manchester Mental Health NHS Foundation Trust
Bolton MBC,Adult Services,Other Clients Services,20-Jul-22,"£1,732.96",Greater Manchester Mental Health NHS Foundation Trust
Bolton MBC,Adult Services,Other Clients Services,20-Jul-22,£728.06,Greater Manchester Mental Health NHS Foundation Trust
Bolton MBC,Adult Services,Other Clients Services,20-Jul-22,"£2,033.64",Greater Manchester Mental Health NHS Foundation Trust
Bolton MBC,Adult Services,Contracted Services,05-Jul-22,"£3,082.47",Guardian Homecare UK Limited
Bolton MBC,Adult Services,Contracted Services,05-Jul-22,"£2,578.26",Guardian Homecare UK Limited
Bolton MBC,Adult Services,Contracted Services,05-Jul-22,"£34,929.42",Guardian Homecare UK Limited
Bolton MBC,Adult Services,Residential Provision,05-Jul-22,"£15,551.84",Hartington House
Bolton MBC,Adult Services,Clients Aids & Adaptations,07-Jul-22,"£1,665.50",Harvest Healthcare Limited
Bolton MBC,Adult Services,Clients Aids & Adaptations,13-Jul-22,"£1,178.40",Harvest Healthcare Limited
Bolton MBC,Adult Services,Clients Aids & Adaptations,21-Jul-22,"£3,428.84",Harvest Healthcare Limited
Bolton MBC,Adult Services,Clients Aids & Adaptations,21-Jul-22,"£1,280.00",Harvest Healthcare Limited
Bolton MBC,Adult Services,Clients Aids & Adaptations,28-Jul-22,"£1,414.80",Harvest Healthcare Limited
Bolton MBC,Adult Services,Residential Provision,05-Jul-22,"£7,176.00",Hazelbrook Christian Nursing Home
Bolton MBC,Adult Services,Residential Provision,05-Jul-22,"£23,169.68",Heaton Vale
Bolton MBC,Adult Services,Clients Aids & Adaptations,18-Jul-22,"£1,215.00",Helping Hand Co (Ledbury) Ltd
Bolton MBC,Adult Services,Clients Aids & Adaptations,18-Jul-22,£783.00,Helping Hand Co (Ledbury) Ltd
Bolton MBC,Adult Services,Contracted Services,04-Jul-22,"£10,662.00",Henshaws Society For The Blind
Bolton MBC,Adult Services,Residential Provision,05-Jul-22,"£7,514.00",HF Trust Limited Honeysuckle House
Bolton MBC,Adult Services,Residential Provision,05-Jul-22,"£7,728.00",Hollands Nursing Home
Bolton MBC,Adult Services,Residential Provision,05-Jul-22,"£5,152.00",Hollands Nursing Home
Bolton MBC,Adult Services,Residential Provision,05-Jul-22,"£25,760.00",Hollands Nursing Home
Bolton MBC,Adult Services,Contracted Services,11-Jul-22,"£10,712.51",Homecare For You Ltd#BLACKBURN
Bolton MBC,Adult Services,Contracted Services,11-Jul-22,"£1,174.99",Homecare For You Ltd#BLACKBURN
Bolton MBC,Adult Services,Contracted Services,11-Jul-22,"£7,120.14",Homecare For You Ltd#BLACKBURN
Bolton MBC,Adult Services,Contracted Services,01-Jul-22,£542.88,Homecare Team Limited
Bolton MBC,Adult Services,Contracted Services,01-Jul-22,£786.24,Homecare Team Limited
Bolton MBC,Adult Services,Clients Aids & Adaptations,11-Jul-22,£550.00,Hospital Direct (Marketing) Limited
Bolton MBC,Adult Services,Residential Provision,05-Jul-22,"£5,612.52",Hyde Lea
Bolton MBC,Adult Services,Contracted Services,01-Jul-22,£885.43,ICRIT Healthcare#Limited
Bolton MBC,Adult Services,Contracted Services,01-Jul-22,£629.72,ICRIT Healthcare#Limited
Bolton MBC,Adult Services,Contracted Services,01-Jul-22,"£1,774.50",ICRIT Healthcare#Limited
Bolton MBC,Adult Services,Contracted Services,01-Jul-22,"£1,310.40",ICRIT Healthcare#Limited
Bolton MBC,Adult Services,Contracted Services,01-Jul-22,"£1,492.40",ICRIT Healthcare#Limited
Bolton MBC,Adult Services,Contracted Services,01-Jul-22,£720.72,ICRIT Healthcare#Limited
Bolton MBC,Adult Services,Contracted Services,01-Jul-22,"£1,168.44",ICRIT Healthcare#Limited
Bolton MBC,Adult Services,Clients Aids & Adaptations,15-Jul-22,£768.90,Incom Systems Communication Specialists Limited
Bolton MBC,Adult Services,Clients Aids & Adaptations,15-Jul-22,£625.30,Incom Systems Communication Specialists Limited
Bolton MBC,Adult Services,Other Agency/Contracted Services,27-Jul-22,"£3,640.00",Interpreting & Translating Services
Bolton MBC,Adult Services,Other Agency/Contracted Services,29-Jul-22,"£4,760.00",Interpreting & Translating Services
Bolton MBC,Adult Services,Clients Aids & Adaptations,13-Jul-22,£844.00,James Leckey Design Limited#Vida Global
Bolton MBC,Adult Services,Clients Aids & Adaptations,13-Jul-22,"£2,884.00",Jenx Limited#Jiraffe
Bolton MBC,Adult Services,Contracted Services,08-Jul-22,"£19,860.64",Jewel Home Support Ltd
Bolton MBC,Adult Services,Contracted Services,08-Jul-22,"£6,040.01",Jewel Home Support Ltd
Bolton MBC,Adult Services,Contracted Services,08-Jul-22,"£4,735.22",Jewel Home Support Ltd
Bolton MBC,Adult Services,Contracted Services,11-Jul-22,"£27,957.72",Keymen Associates Ltd#Mayday Homecare
Bolton MBC,Adult Services,Contracted Services,11-Jul-22,"£1,881.36",Keymen Associates Ltd#Mayday Homecare
Bolton MBC,Adult Services,Contracted Services,11-Jul-22,"£13,836.89",Keymen Associates Ltd#Mayday Homecare
Bolton MBC,Adult Services,Residential Provision,05-Jul-22,"£32,365.52",Kingarth
Bolton MBC,Adult Services,Contracted Services,01-Jul-22,"£5,500.56",Kingfisher House
Bolton MBC,Adult Services,Clients Aids & Adaptations,04-Jul-22,"£1,075.00",Kingkraft Ltd
Bolton MBC,Adult Services,Residential Provision,05-Jul-22,"£5,208.00",Knightswood Residential Home
Bolton MBC,Adult Services,Deep Cleans - One Offs,18-Jul-22,£600.00,Kurts Man & Van
Bolton MBC,Adult Services,Nursing Provision,05-Jul-22,"£5,075.08",Lakeland View Care Centre
Bolton MBC,Adult Services,Nursing Provision,05-Jul-22,"£3,980.00",Lakelands Lodge
Bolton MBC,Adult Services,Residential Provision,05-Jul-22,"£12,028.00",Lever Edge Care Home
Bolton MBC,Adult Services,Contracted Services,01-Jul-22,"£1,548.34",Limes Place
Bolton MBC,Adult Services,Residential Provision,05-Jul-22,"£4,584.00",Lyngate Residential Home#Lyngate Healthcare Ltd
Bolton MBC,Adult Services,Contracted Services,01-Jul-22,£748.80,Making Space
Bolton MBC,Adult Services,Clients Aids & Adaptations,11-Jul-22,£724.40,Mangar International Ltd
Bolton MBC,Adult Services,Clients Aids & Adaptations,11-Jul-22,"£1,632.00",Mangar International Ltd
Bolton MBC,Adult Services,Residential Provision,05-Jul-22,"£8,400.00",Max Potential UK Limited
Bolton MBC,Adult Services,Residential Provision,05-Jul-22,"£15,041.12",Max Potential UK Limited
Bolton MBC,Adult Services,Residential Provision,05-Jul-22,"£7,960.28",Max Potential UK Limited
Bolton MBC,Adult Services,Residential Provision,05-Jul-22,"£3,760.28",Max Potential UK Limited
Bolton MBC,Adult Services,Residential Provision,05-Jul-22,"£7,520.56",Max Potential UK Limited
Bolton MBC,Adult Services,Nursing Provision,05-Jul-22,"£4,584.00",Meadowbank House
Bolton MBC,Adult Services,Residential Provision,05-Jul-22,"£2,292.00",Meadowbank House
Bolton MBC,Adult Services,Clients Aids & Adaptations,01-Jul-22,"£2,047.50",Medstrom Limited
Bolton MBC,Adult Services,Residential Provision,05-Jul-22,"£25,111.52",Mencap
Bolton MBC,Adult Services,Nursing Provision,05-Jul-22,"£22,616.00",Mill View Care Home#Advinia
Bolton MBC,Adult Services,Residential Provision,05-Jul-22,"£14,888.00",Mill View Care Home#Advinia
Bolton MBC,Adult Services,Residential Provision,05-Jul-22,"£15,084.52",Millbrook Way - Heathwaite
Bolton MBC,Adult Services,Residential Provision,05-Jul-22,"£32,559.34",Morden Grange
Bolton MBC,Adult Services,Nursing Provision,05-Jul-22,"£3,712.56",Moston Grange Nursing Home
Bolton MBC,Adult Services,Residential Provision,05-Jul-22,"£19,957.04",Next Steps The Elms
Bolton MBC,Adult Services,Contracted Services,01-Jul-22,"£198,428.57",NHS Bolton CCG
Bolton MBC,Adult Services,Other Fees,18-Jul-22,£650.00,North West Employers
Bolton MBC,Adult Services,Clients Aids & Adaptations,14-Jul-22,"£2,435.00",NRS Healthcare#Nottingham Rehab Limited
Bolton MBC,Adult Services,Clients Aids & Adaptations,19-Jul-22,"£1,346.40",NRS Healthcare#Nottingham Rehab Limited
Bolton MBC,Adult Services,Clients Aids & Adaptations,19-Jul-22,£574.80,NRS Healthcare#Nottingham Rehab Limited
Bolton MBC,Adult Services,Contracted Services,05-Jul-22,£617.40,Orchid Home Care Support
Bolton MBC,Adult Services,Contracted Services,05-Jul-22,"£1,728.72",Orchid Home Care Support
Bolton MBC,Adult Services,Residential Provision,05-Jul-22,"£2,576.00",Orchid Woodlands Healthcare Limited
Bolton MBC,Adult Services,Residential Provision,05-Jul-22,"£9,708.00",Parkview Nursing & Residential Home
Bolton MBC,Adult Services,Residential Provision,05-Jul-22,"£2,184.00",Passmonds House
Bolton MBC,Adult Services,Clients Aids & Adaptations,04-Jul-22,£760.00,Performance Health International Limited
Bolton MBC,Adult Services,Clients Aids & Adaptations,04-Jul-22,"£1,275.00",Performance Health International Limited
Bolton MBC,Adult Services,Contracted Services,07-Jul-22,"£13,736.12",Premier Care Limited
Bolton MBC,Adult Services,Contracted Services,07-Jul-22,£796.75,Premier Care Limited
Bolton MBC,Adult Services,Clients Aids & Adaptations,01-Jul-22,"£1,237.94",Prism Medical UK
Bolton MBC,Adult Services,Clients Aids & Adaptations,01-Jul-22,"£2,508.38",Prism Medical UK
Bolton MBC,Adult Services,Clients Aids & Adaptations,11-Jul-22,"£1,071.29",Prism Medical UK
Bolton MBC,Adult Services,Clients Aids & Adaptations,12-Jul-22,"£1,519.20",Prism Medical UK
Bolton MBC,Adult Services,Clients Aids & Adaptations,18-Jul-22,£663.87,Prism Medical UK
Bolton MBC,Adult Services,Clients Aids & Adaptations,20-Jul-22,"£3,475.00",Prism Medical UK
Bolton MBC,Adult Services,Clients Aids & Adaptations,20-Jul-22,"£2,000.00",Prism Medical UK
Bolton MBC,Adult Services,Clients Aids & Adaptations,20-Jul-22,"£2,250.00",Prism Medical UK
Bolton MBC,Adult Services,Clients Aids & Adaptations,20-Jul-22,"£1,750.00",Prism Medical UK
Bolton MBC,Adult Services,Clients Aids & Adaptations,21-Jul-22,"£1,811.28",Prism Medical UK
Bolton MBC,Adult Services,Clients Aids & Adaptations,22-Jul-22,"£1,969.94",Prism Medical UK
Bolton MBC,Adult Services,Clients Aids & Adaptations,25-Jul-22,£804.80,Prism Medical UK
Bolton MBC,Adult Services,Clients Aids & Adaptations,26-Jul-22,£781.16,Prism Medical UK
Bolton MBC,Adult Services,Clients Aids & Adaptations,29-Jul-22,£507.48,Prism Medical UK
Bolton MBC,Adult Services,Residential Provision,05-Jul-22,"£14,379.52",Queens Park View#Intelligent Care
Bolton MBC,Adult Services,Clients Aids & Adaptations,11-Jul-22,£993.50,Quest 88 Limited
Bolton MBC,Adult Services,Clients Aids & Adaptations,29-Jul-22,£707.50,Quest 88 Limited
Bolton MBC,Adult Services,Nursing Provision,05-Jul-22,"£3,470.40",Randomlight Ltd#Heightside House
Bolton MBC,Adult Services,Residential Provision,05-Jul-22,"£3,430.72",Randomlight Ltd#Heightside House
Bolton MBC,Adult Services,Contracted Services,14-Jul-22,£902.77,Recovery Support Ltd
Bolton MBC,Adult Services,Contracted Services,14-Jul-22,"£1,000.04",Recovery Support Ltd
Bolton MBC,Adult Services,Contracted Services,14-Jul-22,"£1,404.20",Recovery Support Ltd
Bolton MBC,Adult Services,Contracted Services,14-Jul-22,"£1,659.99",Recovery Support Ltd
Bolton MBC,Adult Services,Contracted Services,14-Jul-22,£592.32,Recovery Support Ltd
Bolton MBC,Adult Services,Contracted Services,14-Jul-22,£518.44,Recovery Support Ltd
Bolton MBC,Adult Services,Contracted Services,14-Jul-22,£968.98,Recovery Support Ltd
Bolton MBC,Adult Services,Contracted Services,14-Jul-22,"£1,554.91",Recovery Support Ltd
Bolton MBC,Adult Services,Contracted Services,14-Jul-22,"£1,969.14",Recovery Support Ltd
Bolton MBC,Adult Services,Contracted Services,14-Jul-22,£811.62,Recovery Support Ltd
Bolton MBC,Adult Services,Contracted Services,14-Jul-22,£592.64,Recovery Support Ltd
Bolton MBC,Adult Services,Contracted Services,14-Jul-22,£509.03,Recovery Support Ltd
Bolton MBC,Adult Services,Contracted Services,14-Jul-22,"£2,776.78",Recovery Support Ltd
Bolton MBC,Adult Services,Contracted Services,14-Jul-22,"£1,536.47",Recovery Support Ltd
Bolton MBC,Adult Services,Contracted Services,14-Jul-22,£726.80,Recovery Support Ltd
Bolton MBC,Adult Services,Contracted Services,14-Jul-22,£641.68,Recovery Support Ltd
Bolton MBC,Adult Services,Contracted Services,14-Jul-22,£740.68,Recovery Support Ltd
Bolton MBC,Adult Services,Contracted Services,14-Jul-22,£518.56,Recovery Support Ltd
Bolton MBC,Adult Services,Contracted Services,14-Jul-22,"£1,638.75",Recovery Support Ltd
Bolton MBC,Adult Services,Contracted Services,14-Jul-22,"£2,051.56",Recovery Support Ltd
Bolton MBC,Adult Services,Contracted Services,14-Jul-22,£583.38,Recovery Support Ltd
Bolton MBC,Adult Services,Contracted Services,11-Jul-22,"£4,177.72",Red Lion Appartments
Bolton MBC,Adult Services,Contracted Services,11-Jul-22,"£3,749.24",Red Lion Appartments
Bolton MBC,Adult Services,Contracted Services,11-Jul-22,"£3,749.24",Red Lion Appartments
Bolton MBC,Adult Services,Contracted Services,11-Jul-22,"£3,749.24",Red Lion Appartments
Bolton MBC,Adult Services,Contracted Services,11-Jul-22,"£3,700.00",Red Lion Appartments
Bolton MBC,Adult Services,Agency Staff - Other,22-Jul-22,£520.40,Reed#Reed Specialist Recruitment Limited
Bolton MBC,Adult Services,Agency Staff - Other,22-Jul-22,"£1,023.50",Reed#Reed Specialist Recruitment Limited
Bolton MBC,Adult Services,Agency Staff - Other,22-Jul-22,£981.90,Reed#Reed Specialist Recruitment Limited
Bolton MBC,Adult Services,Agency Staff - Other,15-Jul-22,£605.51,Reed#Reed Specialist Recruitment Limited
Bolton MBC,Adult Services,Agency Staff - Other,01-Jul-22,£736.43,Reed#Reed Specialist Recruitment Limited
Bolton MBC,Adult Services,Agency Staff - Other,01-Jul-22,£736.43,Reed#Reed Specialist Recruitment Limited
Bolton MBC,Adult Services,Agency Staff - Other,08-Jul-22,£510.11,Reed#Reed Specialist Recruitment Limited
Bolton MBC,Adult Services,Agency Staff - Other,08-Jul-22,£736.43,Reed#Reed Specialist Recruitment Limited
Bolton MBC,Adult Services,Agency Staff - Other,22-Jul-22,£525.00,Reed#Reed Specialist Recruitment Limited
Bolton MBC,Adult Services,Agency Staff - Other,22-Jul-22,"£1,382.82",Reed#Reed Specialist Recruitment Limited
Bolton MBC,Adult Services,Agency Staff - Other,15-Jul-22,"£1,382.82",Reed#Reed Specialist Recruitment Limited
Bolton MBC,Adult Services,Agency Staff - Other,01-Jul-22,"£1,382.82",Reed#Reed Specialist Recruitment Limited
Bolton MBC,Adult Services,Agency Staff - Other,08-Jul-22,"£1,382.82",Reed#Reed Specialist Recruitment Limited
Bolton MBC,Adult Services,Agency Staff - Other,22-Jul-22,"£1,151.85",Reed#Reed Specialist Recruitment Limited
Bolton MBC,Adult Services,Agency Staff - Other,15-Jul-22,"£1,151.85",Reed#Reed Specialist Recruitment Limited
Bolton MBC,Adult Services,Agency Staff - Other,08-Jul-22,"£1,151.85",Reed#Reed Specialist Recruitment Limited
Bolton MBC,Adult Services,Agency Staff - Other,08-Jul-22,"£1,151.85",Reed#Reed Specialist Recruitment Limited
Bolton MBC,Adult Services,Agency Staff - Other,22-Jul-22,"£1,019.50",Reed#Reed Specialist Recruitment Limited
Bolton MBC,Adult Services,Agency Staff - Other,15-Jul-22,"£1,059.48",Reed#Reed Specialist Recruitment Limited
Bolton MBC,Adult Services,Agency Staff - Other,01-Jul-22,£899.56,Reed#Reed Specialist Recruitment Limited
Bolton MBC,Adult Services,Agency Staff - Other,08-Jul-22,£899.56,Reed#Reed Specialist Recruitment Limited
Bolton MBC,Adult Services,Agency Staff - Other,22-Jul-22,"£1,285.01",Reed#Reed Specialist Recruitment Limited
Bolton MBC,Adult Services,Agency Staff - Other,15-Jul-22,"£1,285.01",Reed#Reed Specialist Recruitment Limited
Bolton MBC,Adult Services,Agency Staff - Other,01-Jul-22,"£1,285.01",Reed#Reed Specialist Recruitment Limited
Bolton MBC,Adult Services,Agency Staff - Other,01-Jul-22,"£1,285.01",Reed#Reed Specialist Recruitment Limited
Bolton MBC,Adult Services,Agency Staff - Other,08-Jul-22,"£1,285.01",Reed#Reed Specialist Recruitment Limited
Bolton MBC,Adult Services,Agency Staff - Other,15-Jul-22,"£1,415.18",Reed#Reed Specialist Recruitment Limited
Bolton MBC,Adult Services,Agency Staff - Other,08-Jul-22,"£1,396.31",Reed#Reed Specialist Recruitment Limited
Bolton MBC,Adult Services,Agency Staff - Other,08-Jul-22,"£1,396.31",Reed#Reed Specialist Recruitment Limited
Bolton MBC,Adult Services,Clients Aids & Adaptations,01-Jul-22,"£2,354.00",Rehabilitation Manufacturing Svs Ltd
Bolton MBC,Adult Services,Clients Aids & Adaptations,18-Jul-22,"£2,238.00",Rehabilitation Manufacturing Svs Ltd
Bolton MBC,Adult Services,Contracted Services,07-Jul-22,"£1,650.00",Relphs Funeral Service#Funeralcare
Bolton MBC,Adult Services,Contracted Services,11-Jul-22,"£1,263.60",Rings Homecare Service Limited
Bolton MBC,Adult Services,Contracted Services,11-Jul-22,"£2,439.84",Rings Homecare Service Limited
Bolton MBC,Adult Services,Contracted Services,11-Jul-22,"£3,144.96",Rings Homecare Service Limited
Bolton MBC,Adult Services,Contracted Services,11-Jul-22,"£1,014.00",Rings Homecare Service Limited
Bolton MBC,Adult Services,Contracted Services,11-Jul-22,"£1,666.08",Rings Homecare Service Limited
Bolton MBC,Adult Services,Contracted Services,01-Jul-22,"£1,647.36",Rings Homecare Service Limited
Bolton MBC,Adult Services,Contracted Services,01-Jul-22,"£2,620.80",Rings Homecare Service Limited
Bolton MBC,Adult Services,Contracted Services,11-Jul-22,"£2,620.80",Rings Homecare Service Limited
Bolton MBC,Adult Services,Contracted Services,08-Jul-22,£748.49,RNHS Ltd
Bolton MBC,Adult Services,Contracted Services,08-Jul-22,"£1,588.70",RNHS Ltd
Bolton MBC,Adult Services,Clients Aids & Adaptations,04-Jul-22,£541.92,RNIB Enterprises Limited
Bolton MBC,Adult Services,Operational Equipment Rental,07-Jul-22,£508.57,Robertson Facilities Management Limited
Bolton MBC,Adult Services,Residential Provision,05-Jul-22,"£4,723.20",Rose Court Nursing Home
Bolton MBC,Adult Services,Nursing Provision,05-Jul-22,"£6,020.00",Rosebridge Court
Bolton MBC,Adult Services,Contracted Services,12-Jul-22,"£42,905.68",Rosewood Court
Bolton MBC,Adult Services,Contracted Services,20-Jul-22,"£5,281.28",Rubix Care Limited
Bolton MBC,Adult Services,Contracted Services,20-Jul-22,"£15,240.00",Rubix Care Limited
Bolton MBC,Adult Services,Clients Aids & Adaptations,19-Jul-22,£953.80,Sarabec Limited
Bolton MBC,Adult Services,Clients Aids & Adaptations,19-Jul-22,£617.30,Sarabec Limited
Bolton MBC,Adult Services,Contracted Services,09-Jul-22,"£1,580.00",SEA Recruitment Services Limited
Bolton MBC,Adult Services,Residential Provision,05-Jul-22,"£15,798.64",Segal Gardens
Bolton MBC,Adult Services,Clients Aids & Adaptations,14-Jul-22,"£2,821.89",Select Medical Limited
Bolton MBC,Adult Services,Clients Aids & Adaptations,25-Jul-22,£750.00,Select Medical Limited
Bolton MBC,Adult Services,Contracted Services,05-Jul-22,"£11,394.24",Seva Line
Bolton MBC,Adult Services,Residential Provision,05-Jul-22,"£2,292.00",Sevaline Care Homes Ltd T/A Glenhomes Care Home
Bolton MBC,Adult Services,Nursing Provision,05-Jul-22,"£9,736.00",Shannon Court Care Home Limited
Bolton MBC,Adult Services,Contracted Services,01-Jul-22,"£2,172.71",SignHealth#The Deaf Health Charity
Bolton MBC,Adult Services,Clients Aids & Adaptations,04-Jul-22,£690.00,SimplyMed Limited
Bolton MBC,Adult Services,Clients Aids & Adaptations,13-Jul-22,£943.00,SimplyMed Limited
Bolton MBC,Adult Services,Clients Aids & Adaptations,18-Jul-22,£517.50,SimplyMed Limited
Bolton MBC,Adult Services,Clients Aids & Adaptations,27-Jul-22,£943.00,SimplyMed Limited
Bolton MBC,Adult Services,Clients Aids & Adaptations,27-Jul-22,£943.00,SimplyMed Limited
Bolton MBC,Adult Services,Residential Provision,05-Jul-22,"£13,287.56",Somerset House
Bolton MBC,Adult Services,Residential Provision,05-Jul-22,"£2,292.00",Southlands Residential Home#Southlands
Bolton MBC,Adult Services,Contracted Services,01-Jul-22,"£1,572.48",Spring Healthcare Limited
Bolton MBC,Adult Services,Contracted Services,01-Jul-22,"£1,572.48",Spring Healthcare Limited
Bolton MBC,Adult Services,Nursing Provision,05-Jul-22,"£7,728.00",St Catherines Care Home
Bolton MBC,Adult Services,Residential Provision,05-Jul-22,"£2,292.00",St Catherines Care Home
Bolton MBC,Adult Services,Residential Provision,05-Jul-22,"£5,229.96",Stanley Grange#1
Bolton MBC,Adult Services,Nursing Provision,05-Jul-22,"£3,227.52",Stocks Hall Care Homes Ltd#St Helens
Bolton MBC,Adult Services,Clients Aids & Adaptations,01-Jul-22,"£1,442.00",Sumed International (UK) Limited
Bolton MBC,Adult Services,Contracted Services,01-Jul-22,£527.91,Supported Steps CIC
Bolton MBC,Adult Services,Contracted Services,22-Jul-22,"£15,238.40",SureCare Bolton#Sakinas Healthcare Limited
Bolton MBC,Adult Services,Contracted Services,22-Jul-22,"£4,338.05",SureCare Bolton#Sakinas Healthcare Limited
Bolton MBC,Adult Services,Contracted Services,22-Jul-22,"£12,147.71",SureCare Bolton#Sakinas Healthcare Limited
Bolton MBC,Adult Services,Residential Provision,05-Jul-22,"£6,270.40",Take a Break with Choices
Bolton MBC,Adult Services,Residential Provision,05-Jul-22,"£2,311.60",The Brandles
Bolton MBC,Adult Services,Residential Provision,05-Jul-22,"£2,777.86",The Bungalow Residential Home
Bolton MBC,Adult Services,Clients Aids & Adaptations,25-Jul-22,"£1,840.00",The Care Team Limited
Bolton MBC,Adult Services,Clients Aids & Adaptations,05-Jul-22,£760.00,The Care Team Limited
Bolton MBC,Adult Services,Residential Provision,05-Jul-22,"£2,292.00",The Clough Residential Home
Bolton MBC,Adult Services,Residential Provision,05-Jul-22,"£12,786.60",The David Lewis Centre
Bolton MBC,Adult Services,Clients Aids & Adaptations,14-Jul-22,"£4,300.00",The Key Safe Company#Supra UK Ltd
Bolton MBC,Adult Services,Contracted Services,04-Jul-22,"£9,653.27",The Local Care Company (Bolton) Limited
Bolton MBC,Adult Services,Contracted Services,04-Jul-22,"£1,171.88",The Local Care Company (Bolton) Limited
Bolton MBC,Adult Services,Residential Provision,05-Jul-22,"£5,816.36",The Lodge Buckshaw Retirement Village#The Lodge
Bolton MBC,Adult Services,Residential Provision,05-Jul-22,"£11,967.40",The Meadows
Bolton MBC,Adult Services,Clients Aids & Adaptations,13-Jul-22,"£5,809.00",The Mobility Aids Centre Limited
Bolton MBC,Adult Services,Contracted Services,01-Jul-22,"£7,250.00",The Riverside Group Limited
Bolton MBC,Adult Services,Contracted Services,13-Jul-22,"£5,000.00",The Stroke Association
Bolton MBC,Adult Services,Contracted Services,12-Jul-22,"£8,432.50",The Withins
Bolton MBC,Adult Services,Contracted Services,14-Jul-22,"£8,136.04",The Withins
Bolton MBC,Adult Services,Clients Aids & Adaptations,06-Jul-22,£832.76,Tom Gallagher Limited
Bolton MBC,Adult Services,Clients Aids & Adaptations,22-Jul-22,£569.91,Tom Gallagher Limited
Bolton MBC,Adult Services,Clients Aids & Adaptations,22-Jul-22,£506.90,Tom Gallagher Limited
Bolton MBC,Adult Services,Clients Aids & Adaptations,29-Jul-22,£545.00,Tom Gallagher Limited
Bolton MBC,Adult Services,Clients Aids & Adaptations,29-Jul-22,£636.00,Tom Gallagher Limited
Bolton MBC,Adult Services,Clients Aids & Adaptations,29-Jul-22,£872.83,Tom Gallagher Limited
Bolton MBC,Adult Services,Clients Aids & Adaptations,29-Jul-22,£584.20,Tom Gallagher Limited
Bolton MBC,Adult Services,Clients Aids & Adaptations,29-Jul-22,£734.28,Tom Gallagher Limited
Bolton MBC,Adult Services,Clients Aids & Adaptations,29-Jul-22,£694.27,Tom Gallagher Limited
Bolton MBC,Adult Services,Clients Aids & Adaptations,29-Jul-22,£549.00,Tom Gallagher Limited
Bolton MBC,Adult Services,Clients Aids & Adaptations,29-Jul-22,£768.72,Tom Gallagher Limited
Bolton MBC,Adult Services,Contracted Services,11-Jul-22,£719.04,Trafalgar Court
Bolton MBC,Adult Services,Nursing Provision,05-Jul-22,"£85,390.30",Vale House
Bolton MBC,Adult Services,Specialist Advice,01-Jul-22,"£3,799.10",Weightmans LLP
Bolton MBC,Adult Services,Specialist Advice,01-Jul-22,"£3,380.00",Weightmans LLP
Bolton MBC,Adult Services,Residential Provision,05-Jul-22,"£53,025.64",Westmead
Bolton MBC,Adult Services,Contracted Services,04-Jul-22,"£7,702.50",Westwood Homecare (North West) Limited
Bolton MBC,Adult Services,Residential Provision,05-Jul-22,"£29,626.57",Wingates Residential Home
Bolton MBC,Adult Services,Residential Provision,05-Jul-22,"£2,292.00",Withins Residential Home
Bolton MBC,Adult Services,Residential Provision,05-Jul-22,"£2,292.00",Withins Residential Home
Bolton MBC,Adult Services,Residential Provision,05-Jul-22,"£12,540.00",Withins Residential Home
Bolton MBC,Adult Services,Residential Provision,05-Jul-22,"£5,152.00",Woodlands Care Home
Bolton MBC,Adult Services,Contracted Services,01-Jul-22,"£16,299.20",Wyresdale House
Bolton MBC,Adult Services,Contracted Services,11-Jul-22,£949.56,Yasnad Ltd t/a Bluebird Care Bury
Bolton MBC,Adult Services,Contracted Services,01-Jul-22,£753.30,Your Care (UK) Limited
Bolton MBC,Adult Services,Contracted Services,11-Jul-22,"£1,130.88",Your Care (UK) Limited
Bolton MBC,Adult Services,Contracted Services,01-Jul-22,"£1,748.40",Your Care (UK) Limited
Bolton MBC,Adult Services,Contracted Services,11-Jul-22,"£1,636.80",Your Care (UK) Limited
Bolton MBC,Adult Services,Contracted Services,01-Jul-22,£875.79,Your Care Solutions Limited
Bolton MBC,Adult Services,Contracted Services,01-Jul-22,£970.22,Your Care Solutions Limited
Bolton MBC,Chief Executives,Oracle Support,01-Jul-22,£545.47,Agilisys Limited
Bolton MBC,Chief Executives,Agilisys - Service Requests,01-Jul-22,"£30,528.42",Agilisys Limited
Bolton MBC,Chief Executives,Agilisys - Managed Service,01-Jul-22,"£294,168.70",Agilisys Limited
Bolton MBC,Chief Executives,Microsoft Licences,14-Jul-22,"£949,484.70",Agilisys Limited
Bolton MBC,Chief Executives,Telephones - Direct Calls,01-Jul-22,"£1,975.25",Agilisys Limited
Bolton MBC,Chief Executives,Telephones - Direct Calls,11-Jul-22,£606.89,Agilisys Limited
Bolton MBC,Chief Executives,Oracle Support,29-Jul-22,"£12,500.00",Agilisys Limited
Bolton MBC,Chief Executives,ICT Security,07-Jul-22,"£5,880.64",Agilisys Limited
Bolton MBC,Chief Executives,Agilisys - Service Requests,11-Jul-22,"£1,296.89",Agilisys Limited
Bolton MBC,Chief Executives,Telephones -Direct Rental,21-Jul-22,"£12,921.04",Agilisys Limited
Bolton MBC,Chief Executives,Modems and Lines,21-Jul-22,"£2,176.52",Agilisys Limited
Bolton MBC,Chief Executives,Telephones -Direct Rental,18-Jul-22,"£10,628.25",Agilisys Limited
Bolton MBC,Chief Executives,Telephones -Direct Rental,18-Jul-22,"£4,693.06",Agilisys Limited
Bolton MBC,Chief Executives,Computer Consumables,21-Jul-22,"£47,394.54",Agilisys Limited
Bolton MBC,Chief Executives,Information and Communication Technology,01-Jul-22,"£1,585.89",Allied Publicity Services (Manchester) Limited t/a APS Group
Bolton MBC,Chief Executives,Security Cash Collection,01-Jul-22,£632.25,Allpay.net Limited
Bolton MBC,Chief Executives,Security Cash Collection,01-Jul-22,"£3,902.63",Allpay.net Limited
Bolton MBC,Chief Executives,Security Cash Collection,01-Jul-22,"£2,198.60",Allpay.net Limited
Bolton MBC,Chief Executives,Water Charges - Metered,10-Jul-22,"£4,284.24",Anglian Water Business (National) Ltd Trading As Wave
Bolton MBC,Chief Executives,Water Charges - Unmetered,01-Jul-22,"£3,005.72",Anglian Water Business (National) Ltd Trading As Wave
Bolton MBC,Chief Executives,Water Charges - Unmetered,01-Jul-22,"£20,975.99",Anglian Water Business (National) Ltd Trading As Wave
Bolton MBC,Chief Executives,Water Charges - Unmetered,01-Jul-22,"£1,502.85",Anglian Water Business (National) Ltd Trading As Wave
Bolton MBC,Chief Executives,Other Fees,25-Jul-22,"£11,720.00",Aon Ltd#Aon UK Limited
Bolton MBC,Chief Executives,Computer Maintenance,01-Jul-22,"£1,700.00",Astun Technology Limited
Bolton MBC,Chief Executives,Office Stationery,08-Jul-22,"£1,760.00",Banner Group Limited
Bolton MBC,Chief Executives,Marketing,17-Jul-22,"£4,000.00",Bill Deeker Limited T/A Bridge
Bolton MBC,Chief Executives,Op Equip Furniture Purchase,06-Jul-22,£860.19,Bolton Carpet Warehouse
Bolton MBC,Chief Executives,Op Equip Furniture Purchase,19-Jul-22,£715.89,Bolton Carpet Warehouse
Bolton MBC,Chief Executives,General Publicity,18-Jul-22,"£14,000.00",Bolton Community Radio CIC#Bolton FM CIC
Bolton MBC,Chief Executives,Contracted Services Boltons Fund,11-Jul-22,"£20,000.00",Bolton CVS#Bolton Community & Voluntary Services
Bolton MBC,Chief Executives,Contracted Services,01-Jul-22,"£18,750.00",Bolton CVS#Bolton Community & Voluntary Services
Bolton MBC,Chief Executives,Contracted Services Boltons Fund,11-Jul-22,"£180,882.00",Bolton CVS#Bolton Community & Voluntary Services
Bolton MBC,Chief Executives,Corporate Training,05-Jul-22,"£1,200.00",Bolton NHS Foundation Trust#1
Bolton MBC,Chief Executives,Corporate Training,05-Jul-22,£600.00,Bolton NHS Foundation Trust#1
Bolton MBC,Chief Executives,Health and Safety,01-Jul-22,"£1,000.00",Bolton NHS Foundation Trust#1
Bolton MBC,Chief Executives,Other Fees,07-Jul-22,"£3,945.00",Bolton Sixth Form College
Bolton MBC,Chief Executives,Other Fees,21-Jul-22,"£18,410.00",Bolton Sixth Form College
Bolton MBC,Chief Executives,Information and Communication Technology,01-Jul-22,"£3,437.50",Boxxe Limited
Bolton MBC,Chief Executives,Information and Communication Technology,01-Jul-22,"£88,541.67",Boxxe Limited
Bolton MBC,Chief Executives,Telephones -Direct Rental,01-Jul-22,"£1,477.11",BT Plc#ONEBILLPLUS
Bolton MBC,Chief Executives,Telephones -Direct Rental,01-Jul-22,"£1,618.49",BT Plc#ONEBILLPLUS
Bolton MBC,Chief Executives,Telephones -Direct Rental,01-Jul-22,"£1,086.35",BT Plc#ONEBILLPLUS
Bolton MBC,Chief Executives,Other Fees,25-Jul-22,"£60,000.00",Cabinet Office
Bolton MBC,Chief Executives,Computer Purchase,01-Jul-22,"£50,913.95",Capita Business Services Limited
Bolton MBC,Chief Executives,Other Agency/Contracted Services,07-Jul-22,"£2,600.00",Capita Business Services Limited
Bolton MBC,Chief Executives,Staff Subsistence Expenses,13-Jul-22,"£8,188.00",Capita Business Services Limited
Bolton MBC,Chief Executives,Agency Staff - Full-time,01-Jul-22,"£1,048.95",Castlefield Recruitment Limited
Bolton MBC,Chief Executives,Agency Staff - Full-time,13-Jul-22,£885.94,Castlefield Recruitment Limited
Bolton MBC,Chief Executives,Agency Staff - Full-time,20-Jul-22,£878.85,Castlefield Recruitment Limited
Bolton MBC,Chief Executives,Management Fee,04-Jul-22,"£174,313.34",CH Bolton Limited
Bolton MBC,Chief Executives,Operational Equipment Purchase,18-Jul-22,"£6,241.63",CH Bolton Limited
Bolton MBC,Chief Executives,Security Systems - Repairs,18-Jul-22,"£1,598.40",CH Bolton Limited
Bolton MBC,Chief Executives,Management Fee,18-Jul-22,"£13,070.99",CH Bolton Limited
Bolton MBC,Chief Executives,Private Contracted Services,14-Jul-22,"£4,875.00",CIPFA Business Ltd
Bolton MBC,Chief Executives,Contracted Services,01-Jul-22,"£34,583.25",Citizens Advice Bury & Bolton
Bolton MBC,Chief Executives,Election Expenses,08-Jul-22,"£2,415.65",Civica Election Services Limited
Bolton MBC,Chief Executives,Staff/Officers - Rail Fares,01-Jul-22,£699.50,Click Travel Limited
Bolton MBC,Chief Executives,Other Recruitment Expenditure,01-Jul-22,£772.50,Complete Background Screening Limited#CBS
Bolton MBC,Chief Executives,Engineering Work,08-Jul-22,"£4,877.80",Conservation Contracts North West Ltd
Bolton MBC,Chief Executives,Gas - General,12-Jul-22,"£5,211.58",Corona Energy Limited
Bolton MBC,Chief Executives,Gas - General,12-Jul-22,"£1,258.60",Corona Energy Limited
Bolton MBC,Chief Executives,Gas - General,12-Jul-22,"£3,528.24",Corona Energy Limited
Bolton MBC,Chief Executives,Cycle Purchase,04-Jul-22,"£3,333.32",Cyclescheme.co.uk
Bolton MBC,Chief Executives,Cycle Purchase,18-Jul-22,£988.74,Cyclescheme.co.uk
Bolton MBC,Chief Executives,Photocopying Lease/Maintenance,01-Jul-22,"£1,680.00",Data Design Services Ltd
Bolton MBC,Chief Executives,Legal Fees,01-Jul-22,£732.39,Dataspace
Bolton MBC,Chief Executives,Promoting Events,01-Jul-22,"£3,000.00",Deep Beat Entertainment Ltd
Bolton MBC,Chief Executives,Other Recruitment Expenditure,01-Jul-22,"£16,833.00",Disclosure and Barring Service
Bolton MBC,Chief Executives,Modems and Lines,01-Jul-22,"£7,330.25",EE#Everything Everywhere
Bolton MBC,Chief Executives,Inter Agency Fees,20-Jul-22,"£2,787.47",Essa Academy
Bolton MBC,Chief Executives,Agilisys Application Mngmnt,04-Jul-22,"£50,000.00",Evolutionary Systems Company Limited
Bolton MBC,Chief Executives,Corporate Training,07-Jul-22,"£1,800.00",Griffin Care Limited
Bolton MBC,Chief Executives,Marketing,05-Jul-22,"£1,900.00",Harrisons Worsley Limited T/A Chef To Go
Bolton MBC,Chief Executives,Electricity - General,13-Jul-22,"£22,094.96",Haven Power Limited
Bolton MBC,Chief Executives,Private Contracted Services,06-Jul-22,"£145,000.00",Huggg Limited
Bolton MBC,Chief Executives,Marketing,01-Jul-22,"£1,718.50",Impression (Bolton) Limited
Bolton MBC,Chief Executives,Information and Communication Technology,04-Jul-22,£850.00,Inform CPI Limited
Bolton MBC,Chief Executives,Contracted Services,01-Jul-22,"£3,600.00",IRISi
Bolton MBC,Chief Executives,Promoting Events,01-Jul-22,"£53,500.00",IRONMAN Ltd
Bolton MBC,Chief Executives,Other Fees,01-Jul-22,"£14,060.55",Jacobs Certificated Bailiffs#Jacobs
Bolton MBC,Chief Executives,Other Fees,01-Jul-22,"£9,375.74",Jacobs Certificated Bailiffs#Jacobs
Bolton MBC,Chief Executives,Other Fees,11-Jul-22,"£7,972.47",Jacobs Certificated Bailiffs#Jacobs
Bolton MBC,Chief Executives,Other Fees,22-Jul-22,"£13,362.47",Jacobs Certificated Bailiffs#Jacobs
Bolton MBC,Chief Executives,Other Fees,18-Jul-22,"£13,362.47",Jacobs Certificated Bailiffs#Jacobs
Bolton MBC,Chief Executives,Other Fees,25-Jul-22,"£11,428.78",Jacobs Certificated Bailiffs#Jacobs
Bolton MBC,Chief Executives,Legal Fees,01-Jul-22,"£1,855.74",James Andrews Recruitment Solutions Limited
Bolton MBC,Chief Executives,Legal Fees,13-Jul-22,"£1,750.00",James Andrews Recruitment Solutions Limited
Bolton MBC,Chief Executives,Legal Fees,20-Jul-22,"£1,750.00",James Andrews Recruitment Solutions Limited
Bolton MBC,Chief Executives,Legal Fees,27-Jul-22,"£1,750.00",James Andrews Recruitment Solutions Limited
Bolton MBC,Chief Executives,Other Fees,01-Jul-22,"£1,780.82",JLL#AMAS
Bolton MBC,Chief Executives,Legal Fees,01-Jul-22,"£1,912.50",Kings Chambers
Bolton MBC,Chief Executives,Legal Fees,20-Jul-22,"£2,025.00",Kings Chambers
Bolton MBC,Chief Executives,General Subscriptions,18-Jul-22,"£1,313.00",Lagom Associates Ltd T/A Pixel Financial Management
Bolton MBC,Chief Executives,Marketing,01-Jul-22,"£1,730.00",Marketing Manchester
Bolton MBC,Chief Executives,External Audit Fees,14-Jul-22,"£37,252.00",Mazars LLP
Bolton MBC,Chief Executives,Promoting Events,01-Jul-22,"£21,681.60",MK Illumination UK Ltd
Bolton MBC,Chief Executives,Information and Communication Technology,01-Jul-22,"£4,000.00",Monsido Limited
Bolton MBC,Chief Executives,Advertising General,04-Jul-22,"£1,221.48",Newsquest Media Group
Bolton MBC,Chief Executives,Advertising General,19-Jul-22,"£1,212.72",Newsquest Media Group
Bolton MBC,Chief Executives,Property Advertising,08-Jul-22,£552.00,Newsquest Media Group
Bolton MBC,Chief Executives,Property Advertising,14-Jul-22,£552.00,Newsquest Media Group
Bolton MBC,Chief Executives,Marketing,05-Jul-22,£580.00,NW Portables Limited
Bolton MBC,Chief Executives,Corporate Training,20-Jul-22,"£4,904.25",Omniplex Group Limited
Bolton MBC,Chief Executives,Oracle Support,08-Jul-22,"£1,852.50",Oracle Corporation UK Limited
Bolton MBC,Chief Executives,Oracle Support,08-Jul-22,"£2,722.51",Oracle Corporation UK Limited
Bolton MBC,Chief Executives,Oracle Support,15-Jul-22,"£12,035.49",Oracle Corporation UK Limited
Bolton MBC,Chief Executives,Operational Equipment Purchase,06-Jul-22,"£1,500.00",Over Hulton Community Group
Bolton MBC,Chief Executives,Marketing,15-Jul-22,"£1,000.00",Pangolin Talent Limited
Bolton MBC,Chief Executives,Agency Staff - Full-time,08-Jul-22,"£3,175.00",Park Avenue Recruitment Limited
Bolton MBC,Chief Executives,Agency Staff - Full-time,19-Jul-22,"£3,175.00",Park Avenue Recruitment Limited
Bolton MBC,Chief Executives,Agency Staff - Full-time,26-Jul-22,"£3,175.00",Park Avenue Recruitment Limited
Bolton MBC,Chief Executives,Marketing,04-Jul-22,"£1,000.00",Paul Heyes Photography Limited
Bolton MBC,Chief Executives,Health and Safety,01-Jul-22,£765.44,People Asset Management Ltd
Bolton MBC,Chief Executives,Promoting Events,01-Jul-22,"£1,755.00",Percivals The Caterers#Percivals Outside Catering Limited
Bolton MBC,Chief Executives,General Publicity,05-Jul-22,"£2,250.00",PMA Outdoor Media Limited
Bolton MBC,Chief Executives,Office Stationery,01-Jul-22,£594.00,Premier Paper Group Limited
Bolton MBC,Chief Executives,Office Stationery,07-Jul-22,"£2,148.00",Premier Paper Group Limited
Bolton MBC,Chief Executives,Office Stationery,08-Jul-22,£765.00,Premier Paper Group Limited
Bolton MBC,Chief Executives,Office Stationery,08-Jul-22,£594.00,Premier Paper Group Limited
Bolton MBC,Chief Executives,Marketing,01-Jul-22,£616.80,Pride Bolton Limited
Bolton MBC,Chief Executives,Computer Software Licences,01-Jul-22,"£2,200.00",Proactis Limited
Bolton MBC,Chief Executives,Office Stationery,07-Jul-22,"£1,512.00",Quadient UK Ltd#Finance
Bolton MBC,Chief Executives,Office Stationery,21-Jul-22,"£2,064.00",Quadient UK Ltd#Finance
Bolton MBC,Chief Executives,Operational Equipment Rental,14-Jul-22,£625.20,Rain Dance UK Giant Umbrellas Limited
Bolton MBC,Chief Executives,Agency Staff - Other,22-Jul-22,"£1,283.04",Reed#Reed Specialist Recruitment Limited
Bolton MBC,Chief Executives,Agency Staff - Other,22-Jul-22,"£1,637.67",Reed#Reed Specialist Recruitment Limited
Bolton MBC,Chief Executives,Agency Staff - Other,22-Jul-22,"£1,660.82",Reed#Reed Specialist Recruitment Limited
Bolton MBC,Chief Executives,Agency Staff - Other,22-Jul-22,"£1,147.15",Reed#Reed Specialist Recruitment Limited
Bolton MBC,Chief Executives,Agency Staff - Other,22-Jul-22,£599.84,Reed#Reed Specialist Recruitment Limited
Bolton MBC,Chief Executives,Agency Staff - Other,22-Jul-22,"£1,879.26",Reed#Reed Specialist Recruitment Limited
Bolton MBC,Chief Executives,Agency Staff - Other,22-Jul-22,"£1,447.96",Reed#Reed Specialist Recruitment Limited
Bolton MBC,Chief Executives,Agency Staff - Other,22-Jul-22,"£1,540.81",Reed#Reed Specialist Recruitment Limited
Bolton MBC,Chief Executives,Agency Staff - Other,22-Jul-22,£559.85,Reed#Reed Specialist Recruitment Limited
Bolton MBC,Chief Executives,Agency Staff - Other,15-Jul-22,"£1,249.92",Reed#Reed Specialist Recruitment Limited
Bolton MBC,Chief Executives,Agency Staff - Other,15-Jul-22,"£1,584.84",Reed#Reed Specialist Recruitment Limited
Bolton MBC,Chief Executives,Agency Staff - Other,15-Jul-22,£559.85,Reed#Reed Specialist Recruitment Limited
Bolton MBC,Chief Executives,Agency Staff - Other,15-Jul-22,£599.84,Reed#Reed Specialist Recruitment Limited
Bolton MBC,Chief Executives,Agency Staff - Other,15-Jul-22,£727.06,Reed#Reed Specialist Recruitment Limited
Bolton MBC,Chief Executives,Agency Staff - Other,15-Jul-22,"£1,710.72",Reed#Reed Specialist Recruitment Limited
Bolton MBC,Chief Executives,Agency Staff - Other,15-Jul-22,"£1,123.26",Reed#Reed Specialist Recruitment Limited
Bolton MBC,Chief Executives,Agency Staff - Other,15-Jul-22,£615.84,Reed#Reed Specialist Recruitment Limited
Bolton MBC,Chief Executives,Agency Staff - Other,15-Jul-22,"£1,770.92",Reed#Reed Specialist Recruitment Limited
Bolton MBC,Chief Executives,Agency Staff - Other,15-Jul-22,"£1,981.05",Reed#Reed Specialist Recruitment Limited
Bolton MBC,Chief Executives,Agency Staff - Other,15-Jul-22,"£1,454.21",Reed#Reed Specialist Recruitment Limited
Bolton MBC,Chief Executives,Agency Staff - Other,01-Jul-22,£599.84,Reed#Reed Specialist Recruitment Limited
Bolton MBC,Chief Executives,Agency Staff - Other,01-Jul-22,£559.85,Reed#Reed Specialist Recruitment Limited
Bolton MBC,Chief Executives,Agency Staff - Other,01-Jul-22,"£1,744.63",Reed#Reed Specialist Recruitment Limited
Bolton MBC,Chief Executives,Agency Staff - Other,01-Jul-22,"£1,283.04",Reed#Reed Specialist Recruitment Limited
Bolton MBC,Chief Executives,Agency Staff - Other,01-Jul-22,"£1,765.34",Reed#Reed Specialist Recruitment Limited
Bolton MBC,Chief Executives,Agency Staff - Other,01-Jul-22,"£1,408.28",Reed#Reed Specialist Recruitment Limited
Bolton MBC,Chief Executives,Agency Staff - Other,01-Jul-22,£559.85,Reed#Reed Specialist Recruitment Limited
Bolton MBC,Chief Executives,Agency Staff - Other,01-Jul-22,"£1,662.57",Reed#Reed Specialist Recruitment Limited
Bolton MBC,Chief Executives,Agency Staff - Other,01-Jul-22,£574.79,Reed#Reed Specialist Recruitment Limited
Bolton MBC,Chief Executives,Agency Staff - Other,01-Jul-22,"£1,433.94",Reed#Reed Specialist Recruitment Limited
Bolton MBC,Chief Executives,Agency Staff - Other,01-Jul-22,"£1,584.84",Reed#Reed Specialist Recruitment Limited
Bolton MBC,Chief Executives,Agency Staff - Other,01-Jul-22,"£1,368.58",Reed#Reed Specialist Recruitment Limited
Bolton MBC,Chief Executives,Agency Staff - Other,01-Jul-22,"£1,433.94",Reed#Reed Specialist Recruitment Limited
Bolton MBC,Chief Executives,Agency Staff - Other,01-Jul-22,"£1,159.10",Reed#Reed Specialist Recruitment Limited
Bolton MBC,Chief Executives,Agency Staff - Other,08-Jul-22,£522.53,Reed#Reed Specialist Recruitment Limited
Bolton MBC,Chief Executives,Agency Staff - Other,08-Jul-22,£599.84,Reed#Reed Specialist Recruitment Limited
Bolton MBC,Chief Executives,Agency Staff - Other,08-Jul-22,"£1,954.64",Reed#Reed Specialist Recruitment Limited
Bolton MBC,Chief Executives,Agency Staff - Other,08-Jul-22,"£1,349.92",Reed#Reed Specialist Recruitment Limited
Bolton MBC,Chief Executives,Agency Staff - Other,08-Jul-22,"£1,242.75",Reed#Reed Specialist Recruitment Limited
Bolton MBC,Chief Executives,Agency Staff - Other,08-Jul-22,"£1,584.84",Reed#Reed Specialist Recruitment Limited
Bolton MBC,Chief Executives,Agency Staff - Other,08-Jul-22,"£1,123.26",Reed#Reed Specialist Recruitment Limited
Bolton MBC,Chief Executives,Agency Staff - Other,08-Jul-22,£567.31,Reed#Reed Specialist Recruitment Limited
Bolton MBC,Chief Executives,Agency Staff - Other,08-Jul-22,"£1,886.44",Reed#Reed Specialist Recruitment Limited
Bolton MBC,Chief Executives,Agency Staff - Other,08-Jul-22,£512.58,Reed#Reed Specialist Recruitment Limited
Bolton MBC,Chief Executives,Agency Staff - Other,08-Jul-22,"£1,643.01",Reed#Reed Specialist Recruitment Limited
Bolton MBC,Chief Executives,Agency Staff - Other,15-Jul-22,£541.13,Reed#Reed Specialist Recruitment Limited
Bolton MBC,Chief Executives,Agency Staff - Other,08-Jul-22,£554.54,Reed#Reed Specialist Recruitment Limited
Bolton MBC,Chief Executives,Agency Staff - Other,22-Jul-22,£594.54,Reed#Reed Specialist Recruitment Limited
Bolton MBC,Chief Executives,Agency Staff - Other,15-Jul-22,£733.27,Reed#Reed Specialist Recruitment Limited
Bolton MBC,Chief Executives,Agency Staff - Other,01-Jul-22,£733.27,Reed#Reed Specialist Recruitment Limited
Bolton MBC,Chief Executives,Agency Staff - Other,01-Jul-22,£719.41,Reed#Reed Specialist Recruitment Limited
Bolton MBC,Chief Executives,Agency Staff - Other,08-Jul-22,£518.81,Reed#Reed Specialist Recruitment Limited
Bolton MBC,Chief Executives,Agency Staff - Other,08-Jul-22,£518.81,Reed#Reed Specialist Recruitment Limited
Bolton MBC,Chief Executives,Agency Staff - Other,22-Jul-22,£807.52,Reed#Reed Specialist Recruitment Limited
Bolton MBC,Chief Executives,Agency Staff - Other,15-Jul-22,£740.21,Reed#Reed Specialist Recruitment Limited
Bolton MBC,Chief Executives,Agency Staff - Other,01-Jul-22,£656.57,Reed#Reed Specialist Recruitment Limited
Bolton MBC,Chief Executives,Agency Staff - Other,08-Jul-22,£807.52,Reed#Reed Specialist Recruitment Limited
Bolton MBC,Chief Executives,Agency Staff - Other,22-Jul-22,£749.55,Reed#Reed Specialist Recruitment Limited
Bolton MBC,Chief Executives,Agency Staff - Other,15-Jul-22,£733.56,Reed#Reed Specialist Recruitment Limited
Bolton MBC,Chief Executives,Agency Staff - Other,15-Jul-22,£609.63,Reed#Reed Specialist Recruitment Limited
Bolton MBC,Chief Executives,Agency Staff - Other,15-Jul-22,£842.60,Reed#Reed Specialist Recruitment Limited
Bolton MBC,Chief Executives,Agency Staff - Other,01-Jul-22,£759.54,Reed#Reed Specialist Recruitment Limited
Bolton MBC,Chief Executives,Agency Staff - Other,01-Jul-22,£733.56,Reed#Reed Specialist Recruitment Limited
Bolton MBC,Chief Executives,Agency Staff - Other,01-Jul-22,£852.51,Reed#Reed Specialist Recruitment Limited
Bolton MBC,Chief Executives,Agency Staff - Other,01-Jul-22,£733.56,Reed#Reed Specialist Recruitment Limited
Bolton MBC,Chief Executives,Agency Staff - Other,08-Jul-22,£822.78,Reed#Reed Specialist Recruitment Limited
Bolton MBC,Chief Executives,Agency Staff - Other,08-Jul-22,£829.50,Reed#Reed Specialist Recruitment Limited
Bolton MBC,Chief Executives,Agency Staff - Other,22-Jul-22,£586.85,Reed#Reed Specialist Recruitment Limited
Bolton MBC,Chief Executives,Agency Staff - Other,15-Jul-22,£586.85,Reed#Reed Specialist Recruitment Limited
Bolton MBC,Chief Executives,Agency Staff - Other,01-Jul-22,£586.85,Reed#Reed Specialist Recruitment Limited
Bolton MBC,Chief Executives,Agency Staff - Other,08-Jul-22,£586.85,Reed#Reed Specialist Recruitment Limited
Bolton MBC,Chief Executives,Agency Staff - Other,22-Jul-22,"£1,751.88",Reed#Reed Specialist Recruitment Limited
Bolton MBC,Chief Executives,Agency Staff - Other,15-Jul-22,"£1,751.88",Reed#Reed Specialist Recruitment Limited
Bolton MBC,Chief Executives,Agency Staff - Other,01-Jul-22,"£1,751.88",Reed#Reed Specialist Recruitment Limited
Bolton MBC,Chief Executives,Agency Staff - Other,08-Jul-22,"£1,751.88",Reed#Reed Specialist Recruitment Limited
Bolton MBC,Chief Executives,Other Agency/Contracted Services,07-Jul-22,"£1,048.58",Robert Half Limited
Bolton MBC,Chief Executives,Other Agency/Contracted Services,14-Jul-22,"£1,048.58",Robert Half Limited
Bolton MBC,Chief Executives,Other Agency/Contracted Services,21-Jul-22,"£1,048.58",Robert Half Limited
Bolton MBC,Chief Executives,Other Agency/Contracted Services,28-Jul-22,"£1,048.58",Robert Half Limited
Bolton MBC,Chief Executives,Management Fee,01-Jul-22,"£12,360.00",Robertson Capital Projects Limited
Bolton MBC,Chief Executives,Management Fee,22-Jul-22,"£12,576.30",Robertson Capital Projects Limited
Bolton MBC,Chief Executives,Other Agency/Contracted Services,01-Jul-22,"£9,000.00",Robertson Capital Projects Limited
Bolton MBC,Chief Executives,Heating & Electrical Work,07-Jul-22,"£12,435.15",Robertson Facilities Management Limited
Bolton MBC,Chief Executives,Garden Maintenance,07-Jul-22,"£5,553.25",Robertson Facilities Management Limited
Bolton MBC,Chief Executives,Property Surveys,07-Jul-22,"£5,725.00",Robertson Facilities Management Limited
Bolton MBC,Chief Executives,Health and Safety,07-Jul-22,"£6,824.20",Robertson Facilities Management Limited
Bolton MBC,Chief Executives,Day To Day Maintenance,07-Jul-22,"£1,116.38",Robertson Facilities Management Limited
Bolton MBC,Chief Executives,Day To Day Maintenance,07-Jul-22,"£2,118.25",Robertson Facilities Management Limited
Bolton MBC,Chief Executives,Day To Day Maintenance,07-Jul-22,"£1,391.18",Robertson Facilities Management Limited
Bolton MBC,Chief Executives,Day To Day Maintenance,07-Jul-22,"£1,099.20",Robertson Facilities Management Limited
Bolton MBC,Chief Executives,Management Fee,01-Jul-22,"£2,509.50",Robertson Facilities Management Limited
Bolton MBC,Chief Executives,Planned Maintenance,01-Jul-22,"£1,406,065.85",Robertson Facilities Management Limited
Bolton MBC,Chief Executives,Planned Maintenance,01-Jul-22,"£106,421.17",Robertson Facilities Management Limited
Bolton MBC,Chief Executives,Management Fee,01-Jul-22,"£262,383.32",Robertson Facilities Management Limited
Bolton MBC,Chief Executives,Day To Day Maintenance Structural,07-Jul-22,£971.25,Robertson Facilities Management Limited
Bolton MBC,Chief Executives,Work in Progress Additions,01-Jul-22,"£8,723.50",Robertson Facilities Management Limited
Bolton MBC,Chief Executives,Election Expenses,01-Jul-22,£518.45,Royal Mail Group Limited
Bolton MBC,Chief Executives,Postages Direct Costs,01-Jul-22,£551.79,Royal Mail Group Limited
Bolton MBC,Chief Executives,Postages Direct Costs,04-Jul-22,£559.46,Royal Mail Group Limited
Bolton MBC,Chief Executives,Postages Direct Costs,11-Jul-22,£805.76,Royal Mail Group Limited
Bolton MBC,Chief Executives,Postages Direct Costs,18-Jul-22,"£1,605.31",Royal Mail Group Limited
Bolton MBC,Chief Executives,Postages Direct Costs,25-Jul-22,"£2,200.90",Royal Mail Group Limited
Bolton MBC,Chief Executives,Postages Direct Costs,01-Jul-22,"£2,392.61",Royal Mail Group Limited
Bolton MBC,Chief Executives,Postages Direct Costs,04-Jul-22,"£2,990.06",Royal Mail Group Limited
Bolton MBC,Chief Executives,Postages Direct Costs,11-Jul-22,"£2,221.76",Royal Mail Group Limited
Bolton MBC,Chief Executives,Postages Direct Costs,18-Jul-22,"£1,587.95",Royal Mail Group Limited
Bolton MBC,Chief Executives,Postages Direct Costs,25-Jul-22,"£4,454.02",Royal Mail Group Limited
Bolton MBC,Chief Executives,Postages Direct Costs,18-Jul-22,"£1,076.72",Royal Mail Group Limited
Bolton MBC,Chief Executives,Electricity - General,19-Jul-22,"£1,376.82",Scottish & Southern Energy plc#SSE
Bolton MBC,Chief Executives,Electricity - General,19-Jul-22,£853.10,Scottish & Southern Energy plc#SSE
Bolton MBC,Chief Executives,Electricity - General,19-Jul-22,£796.29,Scottish & Southern Energy plc#SSE
Bolton MBC,Chief Executives,Electricity - General,19-Jul-22,"£1,252.98",Scottish & Southern Energy plc#SSE
Bolton MBC,Chief Executives,Legal Fees,01-Jul-22,"£1,256.00",Shoosmiths LLP
Bolton MBC,Chief Executives,Legal Fees,01-Jul-22,"£1,286.00",Shoosmiths LLP
Bolton MBC,Chief Executives,Legal Fees,01-Jul-22,"£1,277.00",Shoosmiths LLP
Bolton MBC,Chief Executives,Legal Fees,01-Jul-22,£685.50,Shoosmiths LLP
Bolton MBC,Chief Executives,Marketing,18-Jul-22,£856.00,Showmed
Bolton MBC,Chief Executives,Marketing,17-Jul-22,£585.10,Silverback Events Limited
Bolton MBC,Chief Executives,Staff Subsistence Expenses,01-Jul-22,£703.30,SME HCI Limited
Bolton MBC,Chief Executives,Marketing,03-Jul-22,"£3,100.00",Songsmith Records Ltd
Bolton MBC,Chief Executives,Operational Equipment Purchase,21-Jul-22,"£25,000.00",StreetGames UK
Bolton MBC,Chief Executives,Promoting Events,01-Jul-22,£601.20,Sunbelt Rentals Limited
Bolton MBC,Chief Executives,Promoting Events,01-Jul-22,£767.25,The ExcluSec Group Limited T/As ExcluSec Security
Bolton MBC,Chief Executives,Marketing,01-Jul-22,"£14,798.00",The ExcluSec Group Limited T/As ExcluSec Security
Bolton MBC,Chief Executives,Contracted Services,25-Jul-22,£848.48,The Midcounties Co-operative
Bolton MBC,Chief Executives,Marketing,01-Jul-22,"£8,196.30",The National Leaflet Company
Bolton MBC,Chief Executives,Corporate Training,06-Jul-22,£695.00,The Training Co
Bolton MBC,Chief Executives,Corporate Training,01-Jul-22,£695.00,The Training Co
Bolton MBC,Chief Executives,Corporate Training,14-Jul-22,£620.00,TLC Learning Academy#Limited
Bolton MBC,Chief Executives,Corporate Training,14-Jul-22,£620.00,TLC Learning Academy#Limited
Bolton MBC,Chief Executives,Marketing,25-Jul-22,"£11,400.00",Tonic Consultancy#Limited
Bolton MBC,Chief Executives,General Publicity,05-Jul-22,"£1,208.50",Tonic Consultancy#Limited
Bolton MBC,Chief Executives,Operational Equipment Purchase,20-Jul-22,"£55,666.66",Trac Psychological
Bolton MBC,Chief Executives,Vehicle Purchase,01-Jul-22,"£7,996.80",Tusker
Bolton MBC,Chief Executives,Vehicle Purchase,01-Jul-22,"£5,783.21",Tusker
Bolton MBC,Chief Executives,Vehicle Purchase,01-Jul-22,£851.96,Tusker
Bolton MBC,Chief Executives,Marketing,01-Jul-22,"£8,900.00",Universal Tanker Solutions Limited
Bolton MBC,Chief Executives,Marketing,01-Jul-22,"£2,997.50",Universal Tanker Solutions Limited
Bolton MBC,Chief Executives,Catering Provisions-Food,25-Jul-22,"£36,525.00",Urban Outreach (Bolton)
Bolton MBC,Chief Executives,Catering Provisions-Food,25-Jul-22,"£20,110.00",Urban Outreach (Bolton)
Bolton MBC,Chief Executives,Information and Communication Technology,25-Jul-22,£615.04,Valtech Limited
Bolton MBC,Chief Executives,Agency Staff - Full-time,01-Jul-22,£943.50,Venn Group Limited
Bolton MBC,Chief Executives,Agency Staff - Full-time,01-Jul-22,£943.50,Venn Group Limited
Bolton MBC,Chief Executives,Agency Staff - Full-time,01-Jul-22,£943.50,Venn Group Limited
Bolton MBC,Chief Executives,Agency Staff - Full-time,06-Jul-22,£943.50,Venn Group Limited
Bolton MBC,Chief Executives,Agency Staff - Full-time,13-Jul-22,£943.50,Venn Group Limited
Bolton MBC,Chief Executives,Agency Staff - Full-time,20-Jul-22,£943.50,Venn Group Limited
Bolton MBC,Chief Executives,Legal Fees,01-Jul-22,"£2,294.00",Vivid Resourcing
Bolton MBC,Chief Executives,Legal Fees,01-Jul-22,"£2,331.00",Vivid Resourcing
Bolton MBC,Chief Executives,Legal Fees,13-Jul-22,"£2,294.00",Vivid Resourcing
Bolton MBC,Chief Executives,Legal Fees,13-Jul-22,"£2,331.00",Vivid Resourcing
Bolton MBC,Chief Executives,Legal Fees,20-Jul-22,"£2,294.00",Vivid Resourcing
Bolton MBC,Chief Executives,Legal Fees,20-Jul-22,"£2,331.00",Vivid Resourcing
Bolton MBC,Chief Executives,Mobile Telephone Rental,24-Jul-22,"£110,997.81",Vodafone Limited
Bolton MBC,Chief Executives,Mobile Telephone Rental,01-Jul-22,"£2,277.00",Vodafone Limited
Bolton MBC,Chief Executives,Mobile Telephone Rental,01-Jul-22,"£1,639.72",Vodafone Limited
Bolton MBC,Chief Executives,Marketing,01-Jul-22,"£2,900.00",Wigan Pier Promotions#Limited
Bolton MBC,Chief Executives,Operational Equipment Purchase,02-Jul-22,£600.00,Wigan Pier Promotions#Limited
Bolton MBC,Chief Executives,Marketing,16-Jul-22,"£1,435.00",Wigan Pier Promotions#Limited
Bolton MBC,Chief Executives,Operational Equipment Purchase,26-Jul-22,"£2,000.00",Wolfpack Adventures Limited
Bolton MBC,Chief Executives,Private Contracted Services,08-Jul-22,"£875,000.00",Wonde Limited
Bolton MBC,Chief Executives,Health and Safety,15-Jul-22,£531.07,Working on Wellbeing Ltd T/A Optima Health
Bolton MBC,Chief Executives,Health and Safety,15-Jul-22,£522.00,Working on Wellbeing Ltd T/A Optima Health
Bolton MBC,Chief Executives,Health and Safety,15-Jul-22,£686.00,Working on Wellbeing Ltd T/A Optima Health
Bolton MBC,Chief Executives,Health and Safety,15-Jul-22,£795.00,Working on Wellbeing Ltd T/A Optima Health
Bolton MBC,Chief Executives,Health and Safety,15-Jul-22,£795.00,Working on Wellbeing Ltd T/A Optima Health
Bolton MBC,Chief Executives,Health and Safety,15-Jul-22,"£3,404.00",Working on Wellbeing Ltd T/A Optima Health
Bolton MBC,Chief Executives,Health and Safety,15-Jul-22,£518.00,Working on Wellbeing Ltd T/A Optima Health
Bolton MBC,Chief Executives,Health and Safety,15-Jul-22,£817.00,Working on Wellbeing Ltd T/A Optima Health
Bolton MBC,Chief Executives,Health and Safety,15-Jul-22,"£1,085.00",Working on Wellbeing Ltd T/A Optima Health
Bolton MBC,Chief Executives,Computer Purchase,18-Jul-22,"£3,584.07",xlprint software
Bolton MBC,Chief Executives,Staff Subsistence Expenses,20-Jul-22,£690.00,Zebra Training Services Limited
Bolton MBC,Childrens Services,Legal Fees,01-Jul-22,"£2,910.00",18 St John Street Chambers
Bolton MBC,Childrens Services,Clients - Taxi Fares,31-Jul-22,"£2,255.00",24/7 Minibuses
Bolton MBC,Childrens Services,Clients - Taxi Fares,01-Jul-22,"£2,755.00",24/7 Minibuses
Bolton MBC,Childrens Services,Clients - Taxi Fares,31-Jul-22,"£3,120.00",3D Private Hire
Bolton MBC,Childrens Services,Clients - Taxi Fares,01-Jul-22,"£3,205.00",3D Private Hire
Bolton MBC,Childrens Services,Vol Assoc Grants - General,01-Jul-22,"£19,285.71",4 Pure Heart Limited
Bolton MBC,Childrens Services,Vol Assoc Grants - General,01-Jul-22,"£24,857.14",4 Pure Heart Limited
Bolton MBC,Childrens Services,Sport Activities,28-Jul-22,£897.43,A & D Sports Limited
Bolton MBC,Childrens Services,Clients - Taxi Fares,31-Jul-22,£975.00,A K Private Hire
Bolton MBC,Childrens Services,Clients - Taxi Fares,01-Jul-22,"£1,235.00",A K Private Hire
Bolton MBC,Childrens Services,Clients - Taxi Fares,31-Jul-22,"£1,520.00",AB Minibuses
Bolton MBC,Childrens Services,Clients - Taxi Fares,01-Jul-22,"£1,805.00",AB Minibuses
Bolton MBC,Childrens Services,Clients - Taxi Fares,31-Jul-22,"£3,250.00",Abacus Minibuses Ltd
Bolton MBC,Childrens Services,Clients - Taxi Fares,01-Jul-22,"£3,903.00",Abacus Minibuses Ltd
Bolton MBC,Childrens Services,Carer Daycare,01-Jul-22,£710.85,Abacus Playschool#Preschool Nursery
Bolton MBC,Childrens Services,Vol Assoc Grants - General,01-Jul-22,"£4,514.94",Access to Care Limited
Bolton MBC,Childrens Services,Vol Assoc Grants - General,01-Jul-22,"£5,200.00",Access to Care Limited
Bolton MBC,Childrens Services,Computer Software Licences,01-Jul-22,"£2,025.00",Access UK Limited
Bolton MBC,Childrens Services,Computer Software Licences,27-Jul-22,"£2,025.00",Access UK Limited
Bolton MBC,Childrens Services,Clients - Bus Fares,22-Jul-22,"£1,584.00",Acorn Care & Education Limited
Bolton MBC,Childrens Services,Contracted Services,25-Jul-22,"£70,000.00",Adullam Housing Association Limited#Homes
Bolton MBC,Childrens Services,Contracted Services,25-Jul-22,"£29,856.00",Adullam Housing Association Limited#Homes
Bolton MBC,Childrens Services,Contracted Services,25-Jul-22,"£37,386.00",Adullam Housing Association Limited#Homes
Bolton MBC,Childrens Services,Legal Fees,05-Jul-22,"£1,990.40",Advanced Child Care Assessments Limited
Bolton MBC,Childrens Services,Legal Fees,01-Jul-22,"£1,996.40",Advanced Child Care Assessments Limited
Bolton MBC,Childrens Services,Legal Fees,01-Jul-22,"£1,018.00",Advanced Child Care Assessments Limited
Bolton MBC,Childrens Services,Contracted Services,19-Jul-22,£900.00,All Saints C of E Primary School
Bolton MBC,Childrens Services,Legal Fees,01-Jul-22,£598.40,Alpha Biolabs Limited
Bolton MBC,Childrens Services,Legal Fees,06-Jul-22,£641.50,Alpha Biolabs Limited
Bolton MBC,Childrens Services,Clients - Taxi Fares,31-Jul-22,"£6,272.00",Alpha Luxury Minibuses Limited
Bolton MBC,Childrens Services,Clients - Taxi Fares,31-Jul-22,"£5,670.00",Alpha Luxury Minibuses Limited
Bolton MBC,Childrens Services,Clients - Taxi Fares,01-Jul-22,"£7,350.00",Alpha Luxury Minibuses Limited
Bolton MBC,Childrens Services,Clients - Taxi Fares,01-Jul-22,"£7,030.00",Alpha Luxury Minibuses Limited
Bolton MBC,Childrens Services,Vol Assoc Grants - General,05-Jul-22,"£11,400.00",AMJ Support Services Ltd
Bolton MBC,Childrens Services,Vol Assoc Grants - General,05-Jul-22,"£24,797.10",AMJ Support Services Ltd
Bolton MBC,Childrens Services,Vol Assoc Grants - General,05-Jul-22,"£12,295.50",AMJ Support Services Ltd
Bolton MBC,Childrens Services,Water Charges - Unmetered,01-Jul-22,£635.11,Anglian Water Business (National) Ltd Trading As Wave
Bolton MBC,Childrens Services,Water Charges - Metered,10-Jul-22,"£1,938.04",Anglian Water Business (National) Ltd Trading As Wave
Bolton MBC,Childrens Services,Water Charges - Metered,10-Jul-22,£680.29,Anglian Water Business (National) Ltd Trading As Wave
Bolton MBC,Childrens Services,Water Charges - Unmetered,01-Jul-22,"£1,437.01",Anglian Water Business (National) Ltd Trading As Wave
Bolton MBC,Childrens Services,Water Charges - Unmetered,01-Jul-22,£635.11,Anglian Water Business (National) Ltd Trading As Wave
Bolton MBC,Childrens Services,Water Charges - Metered,10-Jul-22,£992.96,Anglian Water Business (National) Ltd Trading As Wave
Bolton MBC,Childrens Services,Water Charges - Metered,10-Jul-22,"£1,771.16",Anglian Water Business (National) Ltd Trading As Wave
Bolton MBC,Childrens Services,Water Charges - Unmetered,01-Jul-22,£635.11,Anglian Water Business (National) Ltd Trading As Wave
Bolton MBC,Childrens Services,Water Charges - Metered,10-Jul-22,£526.85,Anglian Water Business (National) Ltd Trading As Wave
Bolton MBC,Childrens Services,Clients - Taxi Fares,31-Jul-22,"£1,500.00",Ash Minibuses
Bolton MBC,Childrens Services,Clients - Taxi Fares,01-Jul-22,"£1,900.00",Ash Minibuses
Bolton MBC,Childrens Services,Contract Cleaning,18-Jul-22,£606.67,Associated Cleaning Contractors#Champion Cleaning Services Ltd
Bolton MBC,Childrens Services,Contract Cleaning,06-Jul-22,"£2,221.64",Associated Cleaning Contractors#Champion Cleaning Services Ltd
Bolton MBC,Childrens Services,Clients - Taxi Fares,31-Jul-22,"£3,850.00",Atlantic Travel (GB) Limited
Bolton MBC,Childrens Services,Clients - Taxi Fares,01-Jul-22,"£4,180.00",Atlantic Travel (GB) Limited
Bolton MBC,Childrens Services,Clients - Taxi Fares,31-Jul-22,"£2,700.00",Atlas Minibuses Limited
Bolton MBC,Childrens Services,Clients - Taxi Fares,01-Jul-22,"£3,640.00",Atlas Minibuses Limited
Bolton MBC,Childrens Services,Clients - Taxi Fares,31-Jul-22,"£1,600.00",Auto Travel Limited
Bolton MBC,Childrens Services,Clients - Taxi Fares,01-Jul-22,"£1,400.00",Auto Travel Limited
Bolton MBC,Childrens Services,Vol Assoc Grants - General,01-Jul-22,"£3,033.80",Backup North West#BYPHS
Bolton MBC,Childrens Services,Operational Equipment Purchase,12-Jul-22,£857.52,Baker Ross Ltd
Bolton MBC,Childrens Services,Vol Assoc Grants - General,01-Jul-22,"£3,675.00",Banya Family Placement Agency Limited
Bolton MBC,Childrens Services,Vol Assoc Grants - General,01-Jul-22,"£3,675.00",Banya Family Placement Agency Limited
Bolton MBC,Childrens Services,Vol Assoc Grants - General,01-Jul-22,"£3,540.00",Banya Family Placement Agency Limited
Bolton MBC,Childrens Services,Vol Assoc Grants - General,11-Jul-22,"£3,069.00",Barnardo's
Bolton MBC,Childrens Services,Vol Assoc Grants - General,11-Jul-22,"£3,218.55",Barnardo's
Bolton MBC,Childrens Services,Inter Agency Fees,01-Jul-22,"£33,871.00",Barnardo's
Bolton MBC,Childrens Services,Contracted Services,01-Jul-22,£600.00,Behaviour Express
Bolton MBC,Childrens Services,Other Fees,15-Jul-22,£527.00,REDACTED - Personal Data
Bolton MBC,Childrens Services,Clients - Taxi Fares,31-Jul-22,"£14,060.00",Bestway Minibuses Limited
Bolton MBC,Childrens Services,Clients - Taxi Fares,01-Jul-22,"£15,840.00",Bestway Minibuses Limited
Bolton MBC,Childrens Services,Other Fees,14-Jul-22,"£1,053.00",BHW Print Group Limited T/A Wallace Printers
Bolton MBC,Childrens Services,Artistes Fees,01-Jul-22,£640.00,Big Comedy Shop
Bolton MBC,Childrens Services,Contracted Services,13-Jul-22,"£7,650.00",Bolton Carers Support
Bolton MBC,Childrens Services,Contracted Services,06-Jul-22,"£19,100.00",Bolton Childrens Opportunity Group#COG
Bolton MBC,Childrens Services,Carer Additional Costs,01-Jul-22,£700.00,Bright Futures Childcare Ltd
Bolton MBC,Childrens Services,Vol Assoc Grants - General,14-Jul-22,"£26,667.75",Bryn Melyn Care Ltd
Bolton MBC,Childrens Services,Clients - Taxi Fares,31-Jul-22,"£3,840.00",Bux Travel
Bolton MBC,Childrens Services,Clients - Taxi Fares,01-Jul-22,"£4,180.00",Bux Travel
Bolton MBC,Childrens Services,Vol Assoc Grants - General,01-Jul-22,"£6,975.00",Capstone Foster Care (North) Limited
Bolton MBC,Childrens Services,Vol Assoc Grants - General,01-Jul-22,"£20,871.42",Care 4 Every Child Limited
Bolton MBC,Childrens Services,Vol Assoc Grants - General,01-Jul-22,"£20,871.42",Care 4 Every Child Limited
Bolton MBC,Childrens Services,Vol Assoc Grants - General,01-Jul-22,"£18,095.64",Care Today Childrens Services
Bolton MBC,Childrens Services,Vol Assoc Grants - General,01-Jul-22,"£17,678.40",Care Today Childrens Services
Bolton MBC,Childrens Services,Inter Agency Fees,05-Jul-22,"£2,142.90",Caritas Care Ltd
Bolton MBC,Childrens Services,Inter Agency Fees,05-Jul-22,"£2,142.90",Caritas Care Ltd
Bolton MBC,Childrens Services,Legal Fees,01-Jul-22,"£1,086.53",Cartwright King Solicitors
Bolton MBC,Childrens Services,Vol Assoc Grants - General,01-Jul-22,"£5,502.86",CFS Care Limited
Bolton MBC,Childrens Services,Vol Assoc Grants - General,01-Jul-22,"£6,603.43",CFS Care Limited
Bolton MBC,Childrens Services,Vol Assoc Grants - General,01-Jul-22,"£2,017.71",CFS Care Limited
Bolton MBC,Childrens Services,Contracted Services,01-Jul-22,"£3,112.23",Child Action Northwest
Bolton MBC,Childrens Services,Contracted Services,19-Jul-22,£800.00,Chorley New Road Primary Academy
Bolton MBC,Childrens Services,Panel Attendance Allowance,07-Jul-22,£900.00,Chris Dennison Consulting Limited
Bolton MBC,Childrens Services,Clients - Taxi Fares,31-Jul-22,"£1,760.00",CK Minibuses
Bolton MBC,Childrens Services,Clients - Taxi Fares,01-Jul-22,"£1,900.00",CK Minibuses
Bolton MBC,Childrens Services,Contracted Services,20-Jul-22,"£1,197.90",Click Travel Limited
Bolton MBC,Childrens Services,Inter Agency Fees,04-Jul-22,"£3,199.98",Clifton Childrens Society
Bolton MBC,Childrens Services,Vol Assoc Grants - General,01-Jul-22,"£10,823.44",Companion Support Services Limited
Bolton MBC,Childrens Services,Vol Assoc Grants - General,01-Jul-22,"£4,118.51",Companion Support Services Limited
Bolton MBC,Childrens Services,Vol Assoc Grants - General,01-Jul-22,"£9,233.35",Companion Support Services Limited
Bolton MBC,Childrens Services,Vol Assoc Grants - General,01-Jul-22,"£9,233.35",Companion Support Services Limited
Bolton MBC,Childrens Services,Vol Assoc Grants - General,01-Jul-22,"£7,971.30",Companion Support Services Limited
Bolton MBC,Childrens Services,Client Support Costs,07-Jul-22,£810.60,Companion Support Services Limited
Bolton MBC,Childrens Services,Client Support Costs,07-Jul-22,£752.70,Companion Support Services Limited
Bolton MBC,Childrens Services,Client Support Costs,07-Jul-22,£655.30,Companion Support Services Limited
Bolton MBC,Childrens Services,Client Support Costs,07-Jul-22,"£1,004.60",Companion Support Services Limited
Bolton MBC,Childrens Services,Client Support Costs,07-Jul-22,£752.70,Companion Support Services Limited
Bolton MBC,Childrens Services,Client Support Costs,07-Jul-22,£810.60,Companion Support Services Limited
Bolton MBC,Childrens Services,Vol Assoc Grants - General,01-Jul-22,"£3,365.67",Compass Fostering North Limited
Bolton MBC,Childrens Services,Vol Assoc Grants - General,01-Jul-22,"£3,257.10",Compass Fostering North Limited
Bolton MBC,Childrens Services,Vol Assoc Grants - General,01-Jul-22,"£6,930.67",Compass Fostering North Limited
Bolton MBC,Childrens Services,Agency Staff - Other,01-Jul-22,£713.80,Connex Education Partnership Limited
Bolton MBC,Childrens Services,Agency Staff - Other,01-Jul-22,£713.80,Connex Education Partnership Limited
Bolton MBC,Childrens Services,Agency Staff - Other,04-Jul-22,£713.80,Connex Education Partnership Limited
Bolton MBC,Childrens Services,Agency Staff - Other,08-Jul-22,£713.80,Connex Education Partnership Limited
Bolton MBC,Childrens Services,Agency Staff - Other,18-Jul-22,£713.80,Connex Education Partnership Limited
Bolton MBC,Childrens Services,Agency Staff - Other,22-Jul-22,£713.80,Connex Education Partnership Limited
Bolton MBC,Childrens Services,Gas - General,12-Jul-22,£854.63,Corona Energy Limited
Bolton MBC,Childrens Services,Gas - General,12-Jul-22,£712.71,Corona Energy Limited
Bolton MBC,Childrens Services,Gas - General,12-Jul-22,£941.36,Corona Energy Limited
Bolton MBC,Childrens Services,Gas - General,12-Jul-22,"£1,819.72",Corona Energy Limited
Bolton MBC,Childrens Services,Gas - General,12-Jul-22,£724.51,Corona Energy Limited
Bolton MBC,Childrens Services,Gas - General,12-Jul-22,£610.59,Corona Energy Limited
Bolton MBC,Childrens Services,Gas - General,12-Jul-22,£690.63,Corona Energy Limited
Bolton MBC,Childrens Services,Gas - General,12-Jul-22,£621.90,Corona Energy Limited
Bolton MBC,Childrens Services,Gas - General,12-Jul-22,£833.23,Corona Energy Limited
Bolton MBC,Childrens Services,Gas - General,12-Jul-22,"£1,103.71",Corona Energy Limited
Bolton MBC,Childrens Services,Gas - General,12-Jul-22,"£1,508.72",Corona Energy Limited
Bolton MBC,Childrens Services,Gas - General,12-Jul-22,£761.95,Corona Energy Limited
Bolton MBC,Childrens Services,Gas - General,12-Jul-22,£642.76,Corona Energy Limited
Bolton MBC,Childrens Services,Gas - General,12-Jul-22,£630.95,Corona Energy Limited
Bolton MBC,Childrens Services,Gas - General,12-Jul-22,£737.82,Corona Energy Limited
Bolton MBC,Childrens Services,Gas - General,12-Jul-22,£695.52,Corona Energy Limited
Bolton MBC,Childrens Services,Gas - General,12-Jul-22,£788.83,Corona Energy Limited
Bolton MBC,Childrens Services,Gas - General,12-Jul-22,"£1,371.83",Corona Energy Limited
Bolton MBC,Childrens Services,Transport Hire,01-Jul-22,£973.94,Cumberland & Westmorland Schools Limited#Witherslack Group Limited
Bolton MBC,Childrens Services,Interpretation and Translation Services,27-Jul-22,£886.14,D A Languages Limited
Bolton MBC,Childrens Services,Legal Fees,01-Jul-22,£701.29,D A Languages Limited
Bolton MBC,Childrens Services,Legal Fees,27-Jul-22,"£1,634.11",D A Languages Limited
Bolton MBC,Childrens Services,Legal Fees,27-Jul-22,"£1,292.78",D A Languages Limited
Bolton MBC,Childrens Services,Contracted Services,01-Jul-22,£840.00,D A Languages Limited
Bolton MBC,Childrens Services,Records Storage,01-Jul-22,£892.12,Dataspace
Bolton MBC,Childrens Services,Clients - Taxi Fares,31-Jul-22,"£1,360.00",Daubhill Mini Bus
Bolton MBC,Childrens Services,Clients - Taxi Fares,01-Jul-22,"£1,640.00",Daubhill Mini Bus
Bolton MBC,Childrens Services,Room Hire,10-Jul-22,£992.00,DBS Solutions North West Limited
Bolton MBC,Childrens Services,Computer Purchase,01-Jul-22,"£14,254.55",Dell Corporation Ltd
Bolton MBC,Childrens Services,Contracted Services,01-Jul-22,"£1,805.00",Diamond Bus North West Limited
Bolton MBC,Childrens Services,Contracted Services,01-Jul-22,£600.00,ECM Education Consultants Ltd
Bolton MBC,Childrens Services,Contracted Services,01-Jul-22,"£1,200.00",ECM Education Consultants Ltd
Bolton MBC,Childrens Services,Contracted Services,01-Jul-22,"£3,600.00",ECM Education Consultants Ltd
Bolton MBC,Childrens Services,Contracted Services,01-Jul-22,£600.00,ECM Education Consultants Ltd
Bolton MBC,Childrens Services,Contracted Services,01-Jul-22,"£4,200.00",ECM Education Consultants Ltd
Bolton MBC,Childrens Services,Contracted Services,01-Jul-22,£600.00,ECM Education Consultants Ltd
Bolton MBC,Childrens Services,Contracted Services,14-Jul-22,£600.00,ECM Education Consultants Ltd
Bolton MBC,Childrens Services,Private Contracted Services,19-Jul-22,£600.00,ECM Education Consultants Ltd
Bolton MBC,Childrens Services,Agency Staff - Other,06-Jul-22,"£1,260.00",Eden Brown Synergy#Eden Brown Limited
Bolton MBC,Childrens Services,Agency Staff - Other,13-Jul-22,£630.00,Eden Brown Synergy#Eden Brown Limited
Bolton MBC,Childrens Services,Agency Staff - Other,20-Jul-22,"£1,554.00",Eden Brown Synergy#Eden Brown Limited
Bolton MBC,Childrens Services,Agency Staff - Other,27-Jul-22,£861.00,Eden Brown Synergy#Eden Brown Limited
Bolton MBC,Childrens Services,Contracted Services,01-Jul-22,"£2,976.00",Enhance EHC Ltd
Bolton MBC,Childrens Services,Promoting Events,13-Jul-22,"£3,180.00",Events4
Bolton MBC,Childrens Services,Legal Fees,01-Jul-22,£575.00,Exchange Chambers
Bolton MBC,Childrens Services,Clients - Taxi Fares,31-Jul-22,"£4,974.00",Express Travels (Bolton) Ltd
Bolton MBC,Childrens Services,Clients - Taxi Fares,01-Jul-22,"£4,975.90",Express Travels (Bolton) Ltd
Bolton MBC,Childrens Services,Legal Fees,01-Jul-22,"£1,415.60",Forensic Testing Service Ltd
Bolton MBC,Childrens Services,Vol Assoc Grants - General,15-Jul-22,"£3,404.36",Foster Care Associates Limited
Bolton MBC,Childrens Services,Vol Assoc Grants - General,15-Jul-22,"£3,404.36",Foster Care Associates Limited
Bolton MBC,Childrens Services,Vol Assoc Grants - General,15-Jul-22,"£4,411.30",Foster Care Associates Limited
Bolton MBC,Childrens Services,Vol Assoc Grants - General,15-Jul-22,"£6,201.55",Foster Care Associates Limited
Bolton MBC,Childrens Services,Vol Assoc Grants - General,15-Jul-22,"£4,411.30",Foster Care Associates Limited
Bolton MBC,Childrens Services,Vol Assoc Grants - General,15-Jul-22,"£3,404.36",Foster Care Associates Limited
Bolton MBC,Childrens Services,Vol Assoc Grants - General,15-Jul-22,"£4,702.39",Foster Care Associates Limited
Bolton MBC,Childrens Services,Vol Assoc Grants - General,01-Jul-22,"£2,910.04",Fostering Limited
Bolton MBC,Childrens Services,Vol Assoc Grants - General,01-Jul-22,"£2,910.04",Fostering Limited
Bolton MBC,Childrens Services,Vol Assoc Grants - General,01-Jul-22,"£3,696.00",Fostering Limited
Bolton MBC,Childrens Services,Vol Assoc Grants - General,01-Jul-22,"£3,696.00",Fostering Limited
Bolton MBC,Childrens Services,Vol Assoc Grants - General,01-Jul-22,"£3,771.30",Fostering Limited
Bolton MBC,Childrens Services,Vol Assoc Grants - General,01-Jul-22,"£3,696.00",Fostering Limited
Bolton MBC,Childrens Services,Vol Assoc Grants - General,01-Jul-22,"£3,819.20",Fostering Limited
Bolton MBC,Childrens Services,Vol Assoc Grants - General,01-Jul-22,"£3,771.30",Fostering Limited
Bolton MBC,Childrens Services,Carer Additional Costs,01-Jul-22,"£2,405.28",Fostering Network
Bolton MBC,Childrens Services,Vol Assoc Grants - General,15-Jul-22,"£3,554.16",Fostering People Limited
Bolton MBC,Childrens Services,Vol Assoc Grants - General,01-Jul-22,"£3,308.10",Fostering Solutions Ltd#2
Bolton MBC,Childrens Services,Vol Assoc Grants - General,01-Jul-22,"£3,760.30",Fostering Solutions Ltd#2
Bolton MBC,Childrens Services,Vol Assoc Grants - General,01-Jul-22,"£5,314.33",Fostering Solutions Ltd#2
Bolton MBC,Childrens Services,Vol Assoc Grants - General,01-Jul-22,"£2,829.90",Fostering Solutions Ltd#2
Bolton MBC,Childrens Services,Vol Assoc Grants - General,01-Jul-22,"£3,248.40",Fostering Solutions Ltd#2
Bolton MBC,Childrens Services,Vol Assoc Grants - General,01-Jul-22,"£2,770.19",Fostering Solutions Ltd#2
Bolton MBC,Childrens Services,Vol Assoc Grants - General,01-Jul-22,"£3,175.86",Fostering Solutions Ltd#2
Bolton MBC,Childrens Services,Vol Assoc Grants - General,01-Jul-22,"£3,118.38",Fostering Solutions Ltd#2
Bolton MBC,Childrens Services,Clients - Taxi Fares,31-Jul-22,"£1,328.00",Friends Transport
Bolton MBC,Childrens Services,Clients - Taxi Fares,01-Jul-22,"£1,577.00",Friends Transport
Bolton MBC,Childrens Services,Private Contracted Services,01-Jul-22,£700.00,Gateway Outsource Solutions Limited
Bolton MBC,Childrens Services,Private Contracted Services,11-Jul-22,£700.00,Gateway Outsource Solutions Limited
Bolton MBC,Childrens Services,Private Contracted Services,15-Jul-22,£700.00,Gateway Outsource Solutions Limited
Bolton MBC,Childrens Services,Private Contracted Services,22-Jul-22,£700.00,Gateway Outsource Solutions Limited
Bolton MBC,Childrens Services,Operational Equipment Purchase,01-Jul-22,£655.00,Grahams Consultants#Grahams Social Care & Education Limited
Bolton MBC,Childrens Services,Fees/Expenses Schools,01-Jul-22,£650.00,Great Academies Education Trust
Bolton MBC,Childrens Services,Operational Equipment Purchase,06-Jul-22,"£12,333.00",Great Places Housing Association
Bolton MBC,Childrens Services,Contracted Services,22-Jul-22,"£4,000.00",Greater Manchester Mental Health NHS Foundation Trust
Bolton MBC,Childrens Services,Contracted Services,11-Jul-22,"£4,845.00",Halliwell Befriending Service
Bolton MBC,Childrens Services,Clients - Taxi Fares,31-Jul-22,"£26,310.00",Hastings Cars NW Limited
Bolton MBC,Childrens Services,Clients - Taxi Fares,01-Jul-22,"£31,255.00",Hastings Cars NW Limited
Bolton MBC,Childrens Services,Electricity - General,13-Jul-22,"£2,653.39",Haven Power Limited
Bolton MBC,Childrens Services,Clients - Taxi Fares,31-Jul-22,"£1,520.00",Headstart Minibus
Bolton MBC,Childrens Services,Clients - Taxi Fares,01-Jul-22,"£1,805.00",Headstart Minibus
Bolton MBC,Childrens Services,Other Fees,04-Jul-22,"£2,000.00",Helix Psychology#Helix Education & Psychology Services
Bolton MBC,Childrens Services,Fees/Expenses Schools,01-Jul-22,"£1,164.70",Heroes & Stardust Limited
Bolton MBC,Childrens Services,Vol Assoc Grants - General,12-Jul-22,"£12,710.00",Holistic Approach Limited
Bolton MBC,Childrens Services,Vol Assoc Grants - General,12-Jul-22,"£12,710.00",Holistic Approach Limited
Bolton MBC,Childrens Services,Vol Assoc Grants - General,12-Jul-22,"£13,175.00",Holistic Approach Limited
Bolton MBC,Childrens Services,Vol Assoc Grants - General,12-Jul-22,"£13,175.00",Holistic Approach Limited
Bolton MBC,Childrens Services,Vol Assoc Grants - General,12-Jul-22,"£13,175.00",Holistic Approach Limited
Bolton MBC,Childrens Services,Vol Assoc Grants - General,12-Jul-22,"£13,175.00",Holistic Approach Limited
Bolton MBC,Childrens Services,Vol Assoc Grants - General,12-Jul-22,"£13,175.00",Holistic Approach Limited
Bolton MBC,Childrens Services,Vol Assoc Grants - General,01-Jul-22,"£15,278.66",Horizon Care & Education
Bolton MBC,Childrens Services,Catering Provisions-Food,01-Jul-22,£825.00,Howcrofts Fine Foods Ltd#Odessa Cafe and Salad Bar
Bolton MBC,Childrens Services,Necessitous Clothing,20-Jul-22,"£65,000.00",Huggg Limited
Bolton MBC,Childrens Services,Clients - Taxi Fares,31-Jul-22,"£2,000.00",I K Travel
Bolton MBC,Childrens Services,Clients - Taxi Fares,01-Jul-22,"£2,185.00",I K Travel
Bolton MBC,Childrens Services,Clients - Taxi Fares,31-Jul-22,"£4,392.50",Ideal Airport Travel
Bolton MBC,Childrens Services,Clients - Taxi Fares,01-Jul-22,"£5,267.50",Ideal Airport Travel
Bolton MBC,Childrens Services,Clients - Taxi Fares,31-Jul-22,"£1,440.00",Iftikhar Cab
Bolton MBC,Childrens Services,Clients - Taxi Fares,01-Jul-22,"£1,050.00",Iftikhar Cab
Bolton MBC,Childrens Services,Vol Assoc Grants - General,14-Jul-22,"£3,064.29",Indie 16 Limited
Bolton MBC,Childrens Services,Vol Assoc Grants - General,01-Jul-22,"£5,274.40",Inicio Group Limited#The Pathway Group Limited
Bolton MBC,Childrens Services,Vol Assoc Grants - General,01-Jul-22,"£1,563.00",Inicio Group Limited#The Pathway Group Limited
Bolton MBC,Childrens Services,Vol Assoc Grants - General,01-Jul-22,"£5,105.10",Inspire Community Services Limited
Bolton MBC,Childrens Services,Vol Assoc Grants - General,01-Jul-22,"£4,284.00",Inspire Community Services Limited
Bolton MBC,Childrens Services,Vol Assoc Grants - General,01-Jul-22,"£4,284.00",Inspire Community Services Limited
Bolton MBC,Childrens Services,Vol Assoc Grants - General,01-Jul-22,£571.20,Inspire Community Services Limited
Bolton MBC,Childrens Services,Fees/Expenses Schools,01-Jul-22,£800.00,Institute For Educational & Social Equity Limited#Educational Equity Services Limited
Bolton MBC,Childrens Services,Clients - Taxi Fares,31-Jul-22,"£1,520.00",J B Minibus
Bolton MBC,Childrens Services,Clients - Taxi Fares,01-Jul-22,"£1,805.00",J B Minibus
Bolton MBC,Childrens Services,Miscellaneous Expenses,08-Jul-22,"£5,100.00",JBL Education Limited
Bolton MBC,Childrens Services,Miscellaneous Expenses,01-Jul-22,"£3,600.00",JBL Education Limited
Bolton MBC,Childrens Services,Clients - Taxi Fares,31-Jul-22,"£1,020.00",Jolly Travels Limited
Bolton MBC,Childrens Services,Clients - Taxi Fares,01-Jul-22,"£1,360.00",Jolly Travels Limited
Bolton MBC,Childrens Services,Other Clients Services,16-Jul-22,£680.00,KEPT Limited
Bolton MBC,Childrens Services,Contracted Services,08-Jul-22,"£6,000.00",Key PE Sports#Limited
Bolton MBC,Childrens Services,Operational Equipment Purchase,20-Jul-22,"£9,440.00",Lancashire Outdoor Activities Initiative
Bolton MBC,Childrens Services,ECDL Courseware Hosting,19-Jul-22,"£2,520.00",Lead-IT
Bolton MBC,Childrens Services,Other Fees,04-Jul-22,"£4,239.00",Lesley Carr Associates
Bolton MBC,Childrens Services,Contracted Services,01-Jul-22,"£4,800.00",Liam Trippier School Improvement Ltd
Bolton MBC,Childrens Services,Contracted Services,19-Jul-22,"£1,000.00",Liam Trippier School Improvement Ltd
Bolton MBC,Childrens Services,Private Contracted Services,19-Jul-22,"£1,841.83",Liam Trippier School Improvement Ltd
Bolton MBC,Childrens Services,Clients - Taxi Fares,31-Jul-22,"£5,160.00",Link Cars
Bolton MBC,Childrens Services,Clients - Taxi Fares,01-Jul-22,"£5,624.00",Link Cars
Bolton MBC,Childrens Services,Other Fees,04-Jul-22,£784.00,Little Feet Day Nursery
Bolton MBC,Childrens Services,Vol Assoc Grants - General,01-Jul-22,"£3,174.71",Lorimer Fostering
Bolton MBC,Childrens Services,Contracted Services - Bolton Care and Support Ltd,01-Jul-22,"£11,475.00",Making Space
Bolton MBC,Childrens Services,Other Fees,20-Jul-22,"£1,092.00",Mark Hancock Limited
Bolton MBC,Childrens Services,Specialist Advice,14-Jul-22,"£10,000.00",Mastodon C Limited#Bruce Lester Durling
Bolton MBC,Childrens Services,Clients - Taxi Fares,31-Jul-22,"£2,858.00",Minibuztravel.com
Bolton MBC,Childrens Services,Clients - Taxi Fares,01-Jul-22,"£3,382.00",Minibuztravel.com
Bolton MBC,Childrens Services,Clients - Taxi Fares,31-Jul-22,"£1,280.00",MNK
Bolton MBC,Childrens Services,Clients - Taxi Fares,01-Jul-22,"£1,530.00",MNK
Bolton MBC,Childrens Services,Contracted Services,01-Jul-22,£900.00,Monarch Education Limited
Bolton MBC,Childrens Services,Contracted Services,06-Jul-22,£686.25,Monarch Education Limited
Bolton MBC,Childrens Services,Other Fees,01-Jul-22,£518.00,Mr Barton Maths Limited
Bolton MBC,Childrens Services,Other Fees,01-Jul-22,£518.00,Mr Barton Maths Limited
Bolton MBC,Childrens Services,Clients - Taxi Fares,31-Jul-22,"£1,600.00",National Airport Travel
Bolton MBC,Childrens Services,Clients - Taxi Fares,01-Jul-22,"£1,900.00",National Airport Travel
Bolton MBC,Childrens Services,Vol Assoc Grants - General,01-Jul-22,"£5,200.00",National Care Team Limited
Bolton MBC,Childrens Services,Vol Assoc Grants - General,01-Jul-22,"£9,100.00",National Care Team Limited
Bolton MBC,Childrens Services,Vol Assoc Grants - General,04-Jul-22,"£9,100.00",National Care Team Limited
Bolton MBC,Childrens Services,Vol Assoc Grants - General,04-Jul-22,"£9,100.00",National Care Team Limited
Bolton MBC,Childrens Services,Vol Assoc Grants - General,18-Jul-22,"£10,400.00",National Care Team Limited
Bolton MBC,Childrens Services,Clients - Taxi Fares,31-Jul-22,"£1,020.00",Nationwide Travel
Bolton MBC,Childrens Services,Clients - Taxi Fares,01-Jul-22,"£1,360.00",Nationwide Travel
Bolton MBC,Childrens Services,Clients - Taxi Fares,31-Jul-22,"£1,280.00",Nationwide Wheelchair Service
Bolton MBC,Childrens Services,Clients - Taxi Fares,01-Jul-22,"£1,520.00",Nationwide Wheelchair Service
Bolton MBC,Childrens Services,Vol Assoc Grants - General,01-Jul-22,"£4,805.00","Next Stage ""A Way Forward"" Youth Development Limited"
Bolton MBC,Childrens Services,Vol Assoc Grants - General,01-Jul-22,"£1,395.00","Next Stage ""A Way Forward"" Youth Development Limited"
Bolton MBC,Childrens Services,Vol Assoc Grants - General,06-Jul-22,"£4,650.00","Next Stage ""A Way Forward"" Youth Development Limited"
Bolton MBC,Childrens Services,Vol Assoc Grants - General,04-Jul-22,"£28,427.00",Next Stage 4 Life Limited
Bolton MBC,Childrens Services,Vol Assoc Grants - General,04-Jul-22,"£24,087.00",Next Stage 4 Life Limited
Bolton MBC,Childrens Services,Vol Assoc Grants - General,01-Jul-22,"£6,155.05",Nexus Fostering#Limited
Bolton MBC,Childrens Services,Vol Assoc Grants - General,01-Jul-22,"£6,155.05",Nexus Fostering#Limited
Bolton MBC,Childrens Services,Legal Fees,01-Jul-22,£850.00,Nine St John Street
Bolton MBC,Childrens Services,Legal Fees,01-Jul-22,£650.00,Nine St John Street
Bolton MBC,Childrens Services,Legal Fees,01-Jul-22,£925.00,Nine St John Street
Bolton MBC,Childrens Services,Legal Fees,01-Jul-22,£650.00,Nine St John Street
Bolton MBC,Childrens Services,Legal Fees,11-Jul-22,£800.00,Nine St John Street
Bolton MBC,Childrens Services,Legal Fees,13-Jul-22,£600.00,Nine St John Street
Bolton MBC,Childrens Services,Legal Fees,11-Jul-22,£750.00,Nine St John Street
Bolton MBC,Childrens Services,Legal Fees,18-Jul-22,£650.00,Nine St John Street
Bolton MBC,Childrens Services,Other Agency/Contracted Services,05-Jul-22,"£1,659.45",NonStop Consulting Limited
Bolton MBC,Childrens Services,Other Agency/Contracted Services,12-Jul-22,"£1,659.45",NonStop Consulting Limited
Bolton MBC,Childrens Services,Other Agency/Contracted Services,19-Jul-22,"£2,018.25",NonStop Consulting Limited
Bolton MBC,Childrens Services,Other Agency/Contracted Services,26-Jul-22,"£2,074.31",NonStop Consulting Limited
Bolton MBC,Childrens Services,Operational Equipment Purchase,28-Jul-22,£740.00,Normans Musical Instruments#Normans (Burton Upon Trent) Limited
Bolton MBC,Childrens Services,Operational Equipment Maint,21-Jul-22,"£3,750.00",Novus Networks Limited
Bolton MBC,Childrens Services,Vol Assoc Grants - General,01-Jul-22,"£19,130.00",Oakfield Psychological Services Limited
Bolton MBC,Childrens Services,Vol Assoc Grants - General,01-Jul-22,"£3,660.26",Olive Branch Fostering Limited
Bolton MBC,Childrens Services,Vol Assoc Grants - General,01-Jul-22,"£3,201.30",Olive Branch Fostering Limited
Bolton MBC,Childrens Services,Vol Assoc Grants - General,01-Jul-22,"£4,495.50",Olive Branch Fostering Limited
Bolton MBC,Childrens Services,Vol Assoc Grants - General,01-Jul-22,"£1,018.24",Olive Branch Fostering Limited
Bolton MBC,Childrens Services,Vol Assoc Grants - General,01-Jul-22,"£1,018.24",Olive Branch Fostering Limited
Bolton MBC,Childrens Services,Vol Assoc Grants - General,01-Jul-22,"£4,266.26",Orange Grove Foster Care Limited
Bolton MBC,Childrens Services,Vol Assoc Grants - General,01-Jul-22,"£3,923.67",Orange Grove Foster Care Limited
Bolton MBC,Childrens Services,New Construction Conversion & Renovation,23-Jul-22,"£6,850.00",P J Carney & Co Ltd
Bolton MBC,Childrens Services,Carer Daycare,06-Jul-22,"£1,813.75",Paintpots Manchester Limited
Bolton MBC,Childrens Services,Agency Staff - Other,01-Jul-22,"£1,659.60",Paradigm Professional Consultancy Limited#Network Ventures Limited
Bolton MBC,Childrens Services,Agency Staff - Other,01-Jul-22,"£1,638.00",Paradigm Professional Consultancy Limited#Network Ventures Limited
Bolton MBC,Childrens Services,Agency Staff - Full-time,08-Jul-22,"£1,638.00",Paradigm Professional Consultancy Limited#Network Ventures Limited
Bolton MBC,Childrens Services,Other Clients Services,01-Jul-22,"£2,550.00",Pass The Property Limited
Bolton MBC,Childrens Services,Miscellaneous Expenses,07-Jul-22,£525.00,People Asset Management Ltd
Bolton MBC,Childrens Services,Miscellaneous Expenses,08-Jul-22,£525.00,People Asset Management Ltd
Bolton MBC,Childrens Services,Miscellaneous Expenses,22-Jul-22,£525.00,People Asset Management Ltd
Bolton MBC,Childrens Services,Vol Assoc Grants - General,01-Jul-22,"£5,092.06",People Who Foster Limited
Bolton MBC,Childrens Services,Vol Assoc Grants - General,12-Jul-22,"£5,092.06",People Who Foster Limited
Bolton MBC,Childrens Services,Agency Staff - Other,01-Jul-22,"£4,800.00",Permanent Futures Limited
Bolton MBC,Childrens Services,Contracted Services,01-Jul-22,"£1,750.00",Permanent Futures Limited
Bolton MBC,Childrens Services,Contracted Services,01-Jul-22,"£1,750.00",Permanent Futures Limited
Bolton MBC,Childrens Services,Agency Staff - Other,01-Jul-22,"£1,350.00",Personnel Leasing Limited
Bolton MBC,Childrens Services,Agency Staff - Other,01-Jul-22,"£1,681.00",Personnel Leasing Limited
Bolton MBC,Childrens Services,Agency Staff - Other,04-Jul-22,"£1,693.00",Personnel Leasing Limited
Bolton MBC,Childrens Services,Agency Staff - Other,04-Jul-22,"£1,057.50",Personnel Leasing Limited
Bolton MBC,Childrens Services,Agency Staff - Other,11-Jul-22,"£1,673.90",Personnel Leasing Limited
Bolton MBC,Childrens Services,Agency Staff - Other,11-Jul-22,"£1,689.00",Personnel Leasing Limited
Bolton MBC,Childrens Services,Agency Staff - Other,11-Jul-22,£999.00,Personnel Leasing Limited
Bolton MBC,Childrens Services,Agency Staff - Other,11-Jul-22,"£1,669.95",Personnel Leasing Limited
Bolton MBC,Childrens Services,Agency Staff - Other,18-Jul-22,"£1,665.00",Personnel Leasing Limited
Bolton MBC,Childrens Services,Agency Staff - Other,18-Jul-22,"£1,682.55",Personnel Leasing Limited
Bolton MBC,Childrens Services,Agency Staff - Other,18-Jul-22,£675.00,Personnel Leasing Limited
Bolton MBC,Childrens Services,Agency Staff - Other,18-Jul-22,"£1,688.85",Personnel Leasing Limited
Bolton MBC,Childrens Services,Legal Fees,07-Jul-22,£834.00,Pickering Psychology Services Limited
Bolton MBC,Childrens Services,Contracted Services,19-Jul-22,£700.00,Pikes Lane Primary School
Bolton MBC,Childrens Services,Vol Assoc Grants - General,01-Jul-22,"£9,290.00",Positive Care Solutions Ltd
Bolton MBC,Childrens Services,Vol Assoc Grants - General,01-Jul-22,"£9,290.00",Positive Care Solutions Ltd
Bolton MBC,Childrens Services,Vol Assoc Grants - General,04-Jul-22,"£9,290.00",Positive Care Solutions Ltd
Bolton MBC,Childrens Services,Vol Assoc Grants - General,11-Jul-22,"£9,290.00",Positive Care Solutions Ltd
Bolton MBC,Childrens Services,Vol Assoc Grants - General,18-Jul-22,"£9,290.00",Positive Care Solutions Ltd
Bolton MBC,Childrens Services,Op Equip Health and Safety,05-Jul-22,"£1,307.95",Posturite Limited
Bolton MBC,Childrens Services,Contracted Services,01-Jul-22,"£6,000.00",Power2 Limited#Teens & Toddlers
Bolton MBC,Childrens Services,Clients - Taxi Fares,31-Jul-22,"£2,000.00",Premier Minibuses (NW) Ltd
Bolton MBC,Childrens Services,Clients - Taxi Fares,01-Jul-22,"£4,256.00",Premier Minibuses (NW) Ltd
Bolton MBC,Childrens Services,Vol Assoc Grants - General,07-Jul-22,"£15,531.00",PRM Care Limited
Bolton MBC,Childrens Services,Vol Assoc Grants - General,01-Jul-22,"£18,192.86",Progressive Care Limited
Bolton MBC,Childrens Services,Agency Staff - Other,01-Jul-22,£620.00,Propelo Limited
Bolton MBC,Childrens Services,Vol Assoc Grants - General,01-Jul-22,"£4,354.20",Prospero Group Limited
Bolton MBC,Childrens Services,Vol Assoc Grants - General,08-Jul-22,"£4,285.80",Prospero Group Limited
Bolton MBC,Childrens Services,Vol Assoc Grants - General,08-Jul-22,"£4,176.00",Prospero Group Limited
Bolton MBC,Childrens Services,Vol Assoc Grants - General,01-Jul-22,"£68,807.94",Protective Care Group
Bolton MBC,Childrens Services,Agency Staff - Full-time,05-Jul-22,"£3,875.00",Quickline Recruitment Limited
Bolton MBC,Childrens Services,Agency Staff - Full-time,12-Jul-22,"£3,875.00",Quickline Recruitment Limited
Bolton MBC,Childrens Services,Agency Staff - Full-time,18-Jul-22,"£3,875.00",Quickline Recruitment Limited
Bolton MBC,Childrens Services,Agency Staff - Full-time,25-Jul-22,"£3,875.00",Quickline Recruitment Limited
Bolton MBC,Childrens Services,Agency Staff - Other,01-Jul-22,"£1,595.44",Quickline Recruitment Limited
Bolton MBC,Childrens Services,Agency Staff - Other,05-Jul-22,"£1,595.44",Quickline Recruitment Limited
Bolton MBC,Childrens Services,Agency Staff - Other,12-Jul-22,£733.04,Quickline Recruitment Limited
Bolton MBC,Childrens Services,Agency Staff - Other,18-Jul-22,"£1,293.60",Quickline Recruitment Limited
Bolton MBC,Childrens Services,Agency Staff - Other,25-Jul-22,"£1,595.44",Quickline Recruitment Limited
Bolton MBC,Childrens Services,Clients - Bus Fares,01-Jul-22,"£8,925.00",R S Tyrer Ltd
Bolton MBC,Childrens Services,Contracted Services,01-Jul-22,£720.00,Randstad HR Solutions T/A Student Worker Support
Bolton MBC,Childrens Services,Contracted Services,01-Jul-22,£680.00,Randstad HR Solutions T/A Student Worker Support
Bolton MBC,Childrens Services,Contracted Services,01-Jul-22,£705.30,REDACTED - Personal Data
Bolton MBC,Childrens Services,Clients - Taxi Fares,31-Jul-22,"£1,600.00",REDACTED - Personal Data
Bolton MBC,Childrens Services,Clients - Taxi Fares,01-Jul-22,"£1,900.00",REDACTED - Personal Data
Bolton MBC,Childrens Services,Clients - Taxi Fares,31-Jul-22,"£10,648.00",REDACTED - Personal Data
Bolton MBC,Childrens Services,Clients - Taxi Fares,01-Jul-22,"£12,993.00",REDACTED - Personal Data
Bolton MBC,Childrens Services,Clients - Taxi Fares,31-Jul-22,"£1,875.00",REDACTED - Personal Data
Bolton MBC,Childrens Services,Clients - Taxi Fares,01-Jul-22,"£2,375.00",REDACTED - Personal Data
Bolton MBC,Childrens Services,Contracted Services,01-Jul-22,£907.50,REDACTED - Personal Data
Bolton MBC,Childrens Services,Contracted Services,25-Jul-22,"£1,056.00",REDACTED - Personal Data
Bolton MBC,Childrens Services,Contracted Services,11-Jul-22,£506.25,REDACTED - Personal Data
Bolton MBC,Childrens Services,Contracted Services,01-Jul-22,£597.50,REDACTED - Personal Data
Bolton MBC,Childrens Services,Contracted Services,18-Jul-22,£550.00,REDACTED - Personal Data
Bolton MBC,Childrens Services,Contracted Services,01-Jul-22,£517.50,REDACTED - Personal Data
Bolton MBC,Childrens Services,Admin Officers Gross Pay,21-Jul-22,"£1,200.00",REDACTED - Personal Data
Bolton MBC,Childrens Services,Clients - Taxi Fares,31-Jul-22,"£1,050.00",REDACTED - Personal Data
Bolton MBC,Childrens Services,Clients - Taxi Fares,01-Jul-22,"£1,330.00",REDACTED - Personal Data
Bolton MBC,Childrens Services,Contracted Services,01-Jul-22,"£1,181.67",REDACTED - Personal Data
Bolton MBC,Childrens Services,Contracted Services,15-Jul-22,£850.25,REDACTED - Personal Data
Bolton MBC,Childrens Services,Contracted Services,01-Jul-22,"£1,100.00",REDACTED - Personal Data
Bolton MBC,Childrens Services,Contracted Services,15-Jul-22,£825.00,REDACTED - Personal Data
Bolton MBC,Childrens Services,Contracted Services,22-Jul-22,£580.00,REDACTED - Personal Data
Bolton MBC,Childrens Services,Contracted Services,01-Jul-22,£725.00,REDACTED - Personal Data
Bolton MBC,Childrens Services,Contracted Services,01-Jul-22,£770.32,REDACTED - Personal Data
Bolton MBC,Childrens Services,Contracted Services,01-Jul-22,"£1,358.95",REDACTED - Personal Data
Bolton MBC,Childrens Services,Contracted Services,15-Jul-22,£651.50,REDACTED - Personal Data
Bolton MBC,Childrens Services,Other Fees,17-Jul-22,£700.00,REDACTED - Personal Data
Bolton MBC,Childrens Services,Contracted Services,01-Jul-22,"£1,007.75",REDACTED - Personal Data
Bolton MBC,Childrens Services,Contracted Services,14-Jul-22,£870.00,REDACTED - Personal Data
Bolton MBC,Childrens Services,Other Fees,02-Jul-22,£566.00,REDACTED - Personal Data
Bolton MBC,Childrens Services,Clients - Taxi Fares,31-Jul-22,"£1,462.50",REDACTED - Personal Data
Bolton MBC,Childrens Services,Clients - Taxi Fares,01-Jul-22,"£1,755.00",REDACTED - Personal Data
Bolton MBC,Childrens Services,Clients - Taxi Fares,31-Jul-22,£810.00,REDACTED - Personal Data
Bolton MBC,Childrens Services,Clients - Taxi Fares,01-Jul-22,"£1,176.00",REDACTED - Personal Data
Bolton MBC,Childrens Services,Clients - Taxi Fares,31-Jul-22,"£2,250.00",REDACTED - Personal Data
Bolton MBC,Childrens Services,Clients - Taxi Fares,01-Jul-22,"£2,850.00",REDACTED - Personal Data
Bolton MBC,Childrens Services,Clients - Taxi Fares,31-Jul-22,£720.00,REDACTED - Personal Data
Bolton MBC,Childrens Services,Clients - Taxi Fares,01-Jul-22,£855.00,REDACTED - Personal Data
Bolton MBC,Childrens Services,Clients - Taxi Fares,31-Jul-22,"£1,860.00",REDACTED - Personal Data
Bolton MBC,Childrens Services,Clients - Taxi Fares,01-Jul-22,"£2,356.00",REDACTED - Personal Data
Bolton MBC,Childrens Services,Contracted Services,01-Jul-22,"£1,176.50",REDACTED - Personal Data
Bolton MBC,Childrens Services,Clients - Taxi Fares,31-Jul-22,"£1,072.00",REDACTED - Personal Data
Bolton MBC,Childrens Services,Clients - Taxi Fares,01-Jul-22,"£1,273.00",REDACTED - Personal Data
Bolton MBC,Childrens Services,Contracted Services,01-Jul-22,£674.22,REDACTED - Personal Data
Bolton MBC,Childrens Services,Clients - Taxi Fares,31-Jul-22,"£1,120.00",REDACTED - Personal Data
Bolton MBC,Childrens Services,Clients - Taxi Fares,01-Jul-22,"£1,330.00",REDACTED - Personal Data
Bolton MBC,Childrens Services,Clients - Taxi Fares,31-Jul-22,"£1,120.00",REDACTED - Personal Data
Bolton MBC,Childrens Services,Clients - Taxi Fares,01-Jul-22,"£1,330.00",REDACTED - Personal Data
Bolton MBC,Childrens Services,Contracted Services,01-Jul-22,£934.96,REDACTED - Personal Data
Bolton MBC,Childrens Services,Contracted Services,01-Jul-22,£795.00,REDACTED - Personal Data
Bolton MBC,Childrens Services,Contracted Services,21-Jul-22,£592.00,REDACTED - Personal Data
Bolton MBC,Childrens Services,Training Exps Tuition Fees,14-Jul-22,£900.00,REDACTED - Personal Data
Bolton MBC,Childrens Services,Contracted Services,01-Jul-22,"£1,890.00",REDACTED - Personal Data
Bolton MBC,Childrens Services,Contracted Services,15-Jul-22,"£1,155.00",REDACTED - Personal Data
Bolton MBC,Childrens Services,Clients - Taxi Fares,31-Jul-22,"£1,440.00",REDACTED - Personal Data
Bolton MBC,Childrens Services,Clients - Taxi Fares,01-Jul-22,"£1,710.00",REDACTED - Personal Data
Bolton MBC,Childrens Services,Agency Staff - Other,22-Jul-22,£615.96,Reed#Reed Specialist Recruitment Limited
Bolton MBC,Childrens Services,Agency Staff - Other,15-Jul-22,£598.85,Reed#Reed Specialist Recruitment Limited
Bolton MBC,Childrens Services,Agency Staff - Other,01-Jul-22,£641.64,Reed#Reed Specialist Recruitment Limited
Bolton MBC,Childrens Services,Agency Staff - Other,22-Jul-22,£871.28,Reed#Reed Specialist Recruitment Limited
Bolton MBC,Childrens Services,Agency Staff - Other,15-Jul-22,£518.06,Reed#Reed Specialist Recruitment Limited
Bolton MBC,Childrens Services,Agency Staff - Other,01-Jul-22,£871.28,Reed#Reed Specialist Recruitment Limited
Bolton MBC,Childrens Services,Agency Staff - Other,08-Jul-22,£871.28,Reed#Reed Specialist Recruitment Limited
Bolton MBC,Childrens Services,Agency Staff - Other,22-Jul-22,£770.29,Reed#Reed Specialist Recruitment Limited
Bolton MBC,Childrens Services,Agency Staff - Other,15-Jul-22,£813.55,Reed#Reed Specialist Recruitment Limited
Bolton MBC,Childrens Services,Agency Staff - Other,08-Jul-22,£784.71,Reed#Reed Specialist Recruitment Limited
Bolton MBC,Childrens Services,Agency Staff - Other,22-Jul-22,£606.88,Reed#Reed Specialist Recruitment Limited
Bolton MBC,Childrens Services,Agency Staff - Other,15-Jul-22,£916.53,Reed#Reed Specialist Recruitment Limited
Bolton MBC,Childrens Services,Agency Staff - Other,08-Jul-22,£594.50,Reed#Reed Specialist Recruitment Limited
Bolton MBC,Childrens Services,Agency Staff - Other,22-Jul-22,"£1,403.78",Reed#Reed Specialist Recruitment Limited
Bolton MBC,Childrens Services,Agency Staff - Other,22-Jul-22,"£1,396.01",Reed#Reed Specialist Recruitment Limited
Bolton MBC,Childrens Services,Agency Staff - Other,22-Jul-22,"£1,403.78",Reed#Reed Specialist Recruitment Limited
Bolton MBC,Childrens Services,Agency Staff - Other,22-Jul-22,"£1,403.78",Reed#Reed Specialist Recruitment Limited
Bolton MBC,Childrens Services,Agency Staff - Other,15-Jul-22,"£1,403.78",Reed#Reed Specialist Recruitment Limited
Bolton MBC,Childrens Services,Agency Staff - Other,15-Jul-22,"£1,396.01",Reed#Reed Specialist Recruitment Limited
Bolton MBC,Childrens Services,Agency Staff - Other,15-Jul-22,"£1,403.78",Reed#Reed Specialist Recruitment Limited
Bolton MBC,Childrens Services,Agency Staff - Other,15-Jul-22,"£1,403.78",Reed#Reed Specialist Recruitment Limited
Bolton MBC,Childrens Services,Agency Staff - Other,01-Jul-22,"£1,403.78",Reed#Reed Specialist Recruitment Limited
Bolton MBC,Childrens Services,Agency Staff - Other,01-Jul-22,"£1,396.01",Reed#Reed Specialist Recruitment Limited
Bolton MBC,Childrens Services,Agency Staff - Other,01-Jul-22,"£1,403.78",Reed#Reed Specialist Recruitment Limited
Bolton MBC,Childrens Services,Agency Staff - Other,01-Jul-22,"£1,403.78",Reed#Reed Specialist Recruitment Limited
Bolton MBC,Childrens Services,Agency Staff - Other,08-Jul-22,"£1,396.01",Reed#Reed Specialist Recruitment Limited
Bolton MBC,Childrens Services,Agency Staff - Other,08-Jul-22,"£1,403.78",Reed#Reed Specialist Recruitment Limited
Bolton MBC,Childrens Services,Agency Staff - Other,08-Jul-22,"£1,403.78",Reed#Reed Specialist Recruitment Limited
Bolton MBC,Childrens Services,Agency Staff - Other,08-Jul-22,"£1,403.78",Reed#Reed Specialist Recruitment Limited
Bolton MBC,Childrens Services,Agency Staff - Other,22-Jul-22,"£1,388.61",Reed#Reed Specialist Recruitment Limited
Bolton MBC,Childrens Services,Agency Staff - Other,22-Jul-22,"£1,508.05",Reed#Reed Specialist Recruitment Limited
Bolton MBC,Childrens Services,Agency Staff - Other,22-Jul-22,"£1,589.89",Reed#Reed Specialist Recruitment Limited
Bolton MBC,Childrens Services,Agency Staff - Other,22-Jul-22,"£1,396.31",Reed#Reed Specialist Recruitment Limited
Bolton MBC,Childrens Services,Agency Staff - Other,15-Jul-22,"£1,589.89",Reed#Reed Specialist Recruitment Limited
Bolton MBC,Childrens Services,Agency Staff - Other,15-Jul-22,"£1,388.61",Reed#Reed Specialist Recruitment Limited
Bolton MBC,Childrens Services,Agency Staff - Other,15-Jul-22,"£1,508.05",Reed#Reed Specialist Recruitment Limited
Bolton MBC,Childrens Services,Agency Staff - Other,15-Jul-22,"£1,396.31",Reed#Reed Specialist Recruitment Limited
Bolton MBC,Childrens Services,Agency Staff - Other,01-Jul-22,"£1,589.89",Reed#Reed Specialist Recruitment Limited
Bolton MBC,Childrens Services,Agency Staff - Other,01-Jul-22,"£1,388.61",Reed#Reed Specialist Recruitment Limited
Bolton MBC,Childrens Services,Agency Staff - Other,01-Jul-22,"£1,508.05",Reed#Reed Specialist Recruitment Limited
Bolton MBC,Childrens Services,Agency Staff - Other,01-Jul-22,"£1,396.31",Reed#Reed Specialist Recruitment Limited
Bolton MBC,Childrens Services,Agency Staff - Other,08-Jul-22,"£1,388.61",Reed#Reed Specialist Recruitment Limited
Bolton MBC,Childrens Services,Agency Staff - Other,08-Jul-22,"£1,589.89",Reed#Reed Specialist Recruitment Limited
Bolton MBC,Childrens Services,Agency Staff - Other,08-Jul-22,"£1,396.31",Reed#Reed Specialist Recruitment Limited
Bolton MBC,Childrens Services,Agency Staff - Other,08-Jul-22,"£1,222.74",Reed#Reed Specialist Recruitment Limited
Bolton MBC,Childrens Services,Agency Staff - Other,22-Jul-22,"£1,478.15",Reed#Reed Specialist Recruitment Limited
Bolton MBC,Childrens Services,Agency Staff - Other,22-Jul-22,"£1,403.78",Reed#Reed Specialist Recruitment Limited
Bolton MBC,Childrens Services,Agency Staff - Other,22-Jul-22,"£1,396.01",Reed#Reed Specialist Recruitment Limited
Bolton MBC,Childrens Services,Agency Staff - Other,22-Jul-22,"£1,263.96",Reed#Reed Specialist Recruitment Limited
Bolton MBC,Childrens Services,Agency Staff - Other,22-Jul-22,"£1,573.61",Reed#Reed Specialist Recruitment Limited
Bolton MBC,Childrens Services,Agency Staff - Other,15-Jul-22,£893.13,Reed#Reed Specialist Recruitment Limited
Bolton MBC,Childrens Services,Agency Staff - Other,15-Jul-22,"£1,198.50",Reed#Reed Specialist Recruitment Limited
Bolton MBC,Childrens Services,Agency Staff - Other,15-Jul-22,"£1,396.01",Reed#Reed Specialist Recruitment Limited
Bolton MBC,Childrens Services,Agency Staff - Other,15-Jul-22,"£1,403.78",Reed#Reed Specialist Recruitment Limited
Bolton MBC,Childrens Services,Agency Staff - Other,15-Jul-22,"£1,131.90",Reed#Reed Specialist Recruitment Limited
Bolton MBC,Childrens Services,Agency Staff - Other,01-Jul-22,"£1,478.15",Reed#Reed Specialist Recruitment Limited
Bolton MBC,Childrens Services,Agency Staff - Other,01-Jul-22,"£1,396.01",Reed#Reed Specialist Recruitment Limited
Bolton MBC,Childrens Services,Agency Staff - Other,01-Jul-22,"£1,396.01",Reed#Reed Specialist Recruitment Limited
Bolton MBC,Childrens Services,Agency Staff - Other,01-Jul-22,"£1,573.61",Reed#Reed Specialist Recruitment Limited
Bolton MBC,Childrens Services,Agency Staff - Other,01-Jul-22,"£1,403.78",Reed#Reed Specialist Recruitment Limited
Bolton MBC,Childrens Services,Agency Staff - Other,01-Jul-22,"£1,037.58",Reed#Reed Specialist Recruitment Limited
Bolton MBC,Childrens Services,Agency Staff - Other,08-Jul-22,"£1,131.90",Reed#Reed Specialist Recruitment Limited
Bolton MBC,Childrens Services,Agency Staff - Other,08-Jul-22,"£1,478.15",Reed#Reed Specialist Recruitment Limited
Bolton MBC,Childrens Services,Agency Staff - Other,08-Jul-22,"£1,403.78",Reed#Reed Specialist Recruitment Limited
Bolton MBC,Childrens Services,Agency Staff - Other,08-Jul-22,"£1,131.90",Reed#Reed Specialist Recruitment Limited
Bolton MBC,Childrens Services,Agency Staff - Other,08-Jul-22,"£1,396.01",Reed#Reed Specialist Recruitment Limited
Bolton MBC,Childrens Services,Agency Staff - Other,22-Jul-22,£760.65,Reed#Reed Specialist Recruitment Limited
Bolton MBC,Childrens Services,Agency Staff - Other,15-Jul-22,£760.65,Reed#Reed Specialist Recruitment Limited
Bolton MBC,Childrens Services,Agency Staff - Other,01-Jul-22,£760.65,Reed#Reed Specialist Recruitment Limited
Bolton MBC,Childrens Services,Agency Staff - Other,08-Jul-22,£760.65,Reed#Reed Specialist Recruitment Limited
Bolton MBC,Childrens Services,Agency Staff - Other,22-Jul-22,£512.86,Reed#Reed Specialist Recruitment Limited
Bolton MBC,Childrens Services,Agency Staff - Other,22-Jul-22,£512.79,Reed#Reed Specialist Recruitment Limited
Bolton MBC,Childrens Services,Agency Staff - Other,22-Jul-22,£512.79,Reed#Reed Specialist Recruitment Limited
Bolton MBC,Childrens Services,Agency Staff - Other,22-Jul-22,£512.79,Reed#Reed Specialist Recruitment Limited
Bolton MBC,Childrens Services,Agency Staff - Other,22-Jul-22,£512.79,Reed#Reed Specialist Recruitment Limited
Bolton MBC,Childrens Services,Agency Staff - Other,22-Jul-22,£504.42,Reed#Reed Specialist Recruitment Limited
Bolton MBC,Childrens Services,Agency Staff - Other,15-Jul-22,£512.79,Reed#Reed Specialist Recruitment Limited
Bolton MBC,Childrens Services,Agency Staff - Other,15-Jul-22,£512.86,Reed#Reed Specialist Recruitment Limited
Bolton MBC,Childrens Services,Agency Staff - Other,01-Jul-22,£512.79,Reed#Reed Specialist Recruitment Limited
Bolton MBC,Childrens Services,Agency Staff - Other,01-Jul-22,£512.79,Reed#Reed Specialist Recruitment Limited
Bolton MBC,Childrens Services,Agency Staff - Other,01-Jul-22,£512.79,Reed#Reed Specialist Recruitment Limited
Bolton MBC,Childrens Services,Agency Staff - Other,01-Jul-22,£512.79,Reed#Reed Specialist Recruitment Limited
Bolton MBC,Childrens Services,Agency Staff - Other,08-Jul-22,£516.82,Reed#Reed Specialist Recruitment Limited
Bolton MBC,Childrens Services,Agency Staff - Other,08-Jul-22,£512.79,Reed#Reed Specialist Recruitment Limited
Bolton MBC,Childrens Services,Agency Staff - Other,08-Jul-22,£512.79,Reed#Reed Specialist Recruitment Limited
Bolton MBC,Childrens Services,Agency Staff - Other,08-Jul-22,£512.86,Reed#Reed Specialist Recruitment Limited
Bolton MBC,Childrens Services,Agency Staff - Other,22-Jul-22,£512.86,Reed#Reed Specialist Recruitment Limited
Bolton MBC,Childrens Services,Agency Staff - Other,15-Jul-22,£512.86,Reed#Reed Specialist Recruitment Limited
Bolton MBC,Childrens Services,Agency Staff - Other,15-Jul-22,£508.72,Reed#Reed Specialist Recruitment Limited
Bolton MBC,Childrens Services,Agency Staff - Other,08-Jul-22,£653.83,Reed#Reed Specialist Recruitment Limited
Bolton MBC,Childrens Services,Agency Staff - Other,08-Jul-22,£512.86,Reed#Reed Specialist Recruitment Limited
Bolton MBC,Childrens Services,Agency Staff - Other,22-Jul-22,"£1,471.68",Reed#Reed Specialist Recruitment Limited
Bolton MBC,Childrens Services,Agency Staff - Other,15-Jul-22,"£1,103.76",Reed#Reed Specialist Recruitment Limited
Bolton MBC,Childrens Services,Agency Staff - Other,01-Jul-22,"£1,471.68",Reed#Reed Specialist Recruitment Limited
Bolton MBC,Childrens Services,Agency Staff - Other,01-Jul-22,"£1,471.68",Reed#Reed Specialist Recruitment Limited
Bolton MBC,Childrens Services,Agency Staff - Other,08-Jul-22,"£1,471.68",Reed#Reed Specialist Recruitment Limited
Bolton MBC,Childrens Services,Agency Staff - Other,22-Jul-22,£731.14,Reed#Reed Specialist Recruitment Limited
Bolton MBC,Childrens Services,Agency Staff - Other,15-Jul-22,£731.14,Reed#Reed Specialist Recruitment Limited
Bolton MBC,Childrens Services,Agency Staff - Other,01-Jul-22,£731.14,Reed#Reed Specialist Recruitment Limited
Bolton MBC,Childrens Services,Agency Staff - Other,08-Jul-22,£773.77,Reed#Reed Specialist Recruitment Limited
Bolton MBC,Childrens Services,Agency Staff - Other,22-Jul-22,£509.54,Reed#Reed Specialist Recruitment Limited
Bolton MBC,Childrens Services,Agency Staff - Other,22-Jul-22,£739.56,Reed#Reed Specialist Recruitment Limited
Bolton MBC,Childrens Services,Agency Staff - Other,22-Jul-22,£523.51,Reed#Reed Specialist Recruitment Limited
Bolton MBC,Childrens Services,Agency Staff - Other,15-Jul-22,£523.51,Reed#Reed Specialist Recruitment Limited
Bolton MBC,Childrens Services,Agency Staff - Other,01-Jul-22,£739.56,Reed#Reed Specialist Recruitment Limited
Bolton MBC,Childrens Services,Agency Staff - Other,01-Jul-22,£523.51,Reed#Reed Specialist Recruitment Limited
Bolton MBC,Childrens Services,Agency Staff - Other,08-Jul-22,£739.56,Reed#Reed Specialist Recruitment Limited
Bolton MBC,Childrens Services,Agency Staff - Other,08-Jul-22,£523.51,Reed#Reed Specialist Recruitment Limited
Bolton MBC,Childrens Services,Agency Staff - Other,22-Jul-22,"£1,403.71",Reed#Reed Specialist Recruitment Limited
Bolton MBC,Childrens Services,Agency Staff - Other,22-Jul-22,"£1,552.52",Reed#Reed Specialist Recruitment Limited
Bolton MBC,Childrens Services,Agency Staff - Other,15-Jul-22,"£1,552.52",Reed#Reed Specialist Recruitment Limited
Bolton MBC,Childrens Services,Agency Staff - Other,15-Jul-22,"£1,403.71",Reed#Reed Specialist Recruitment Limited
Bolton MBC,Childrens Services,Agency Staff - Other,15-Jul-22,"£1,552.52",Reed#Reed Specialist Recruitment Limited
Bolton MBC,Childrens Services,Agency Staff - Other,01-Jul-22,"£1,138.14",Reed#Reed Specialist Recruitment Limited
Bolton MBC,Childrens Services,Agency Staff - Other,01-Jul-22,"£1,552.52",Reed#Reed Specialist Recruitment Limited
Bolton MBC,Childrens Services,Agency Staff - Other,22-Jul-22,£600.82,Reed#Reed Specialist Recruitment Limited
Bolton MBC,Childrens Services,Agency Staff - Other,22-Jul-22,"£1,488.51",Reed#Reed Specialist Recruitment Limited
Bolton MBC,Childrens Services,Agency Staff - Other,22-Jul-22,"£1,497.02",Reed#Reed Specialist Recruitment Limited
Bolton MBC,Childrens Services,Agency Staff - Other,22-Jul-22,£971.04,Reed#Reed Specialist Recruitment Limited
Bolton MBC,Childrens Services,Agency Staff - Other,22-Jul-22,"£1,213.80",Reed#Reed Specialist Recruitment Limited
Bolton MBC,Childrens Services,Agency Staff - Other,22-Jul-22,"£1,335.18",Reed#Reed Specialist Recruitment Limited
Bolton MBC,Childrens Services,Agency Staff - Other,22-Jul-22,"£1,497.02",Reed#Reed Specialist Recruitment Limited
Bolton MBC,Childrens Services,Agency Staff - Other,22-Jul-22,"£1,497.02",Reed#Reed Specialist Recruitment Limited
Bolton MBC,Childrens Services,Agency Staff - Other,22-Jul-22,"£1,497.02",Reed#Reed Specialist Recruitment Limited
Bolton MBC,Childrens Services,Agency Staff - Other,22-Jul-22,"£1,497.02",Reed#Reed Specialist Recruitment Limited
Bolton MBC,Childrens Services,Agency Staff - Other,15-Jul-22,"£1,497.02",Reed#Reed Specialist Recruitment Limited
Bolton MBC,Childrens Services,Agency Staff - Other,15-Jul-22,"£1,502.05",Reed#Reed Specialist Recruitment Limited
Bolton MBC,Childrens Services,Agency Staff - Other,15-Jul-22,"£1,502.05",Reed#Reed Specialist Recruitment Limited
Bolton MBC,Childrens Services,Agency Staff - Other,15-Jul-22,"£1,497.02",Reed#Reed Specialist Recruitment Limited
Bolton MBC,Childrens Services,Agency Staff - Other,15-Jul-22,"£1,497.02",Reed#Reed Specialist Recruitment Limited
Bolton MBC,Childrens Services,Agency Staff - Other,15-Jul-22,"£1,497.02",Reed#Reed Specialist Recruitment Limited
Bolton MBC,Childrens Services,Agency Staff - Other,15-Jul-22,"£1,488.51",Reed#Reed Specialist Recruitment Limited
Bolton MBC,Childrens Services,Agency Staff - Other,15-Jul-22,"£1,497.02",Reed#Reed Specialist Recruitment Limited
Bolton MBC,Childrens Services,Agency Staff - Other,15-Jul-22,"£1,497.02",Reed#Reed Specialist Recruitment Limited
Bolton MBC,Childrens Services,Agency Staff - Other,15-Jul-22,"£1,497.02",Reed#Reed Specialist Recruitment Limited
Bolton MBC,Childrens Services,Agency Staff - Other,15-Jul-22,"£1,497.02",Reed#Reed Specialist Recruitment Limited
Bolton MBC,Childrens Services,Agency Staff - Other,15-Jul-22,"£1,497.02",Reed#Reed Specialist Recruitment Limited
Bolton MBC,Childrens Services,Agency Staff - Other,01-Jul-22,"£1,497.02",Reed#Reed Specialist Recruitment Limited
Bolton MBC,Childrens Services,Agency Staff - Other,01-Jul-22,"£1,497.02",Reed#Reed Specialist Recruitment Limited
Bolton MBC,Childrens Services,Agency Staff - Other,01-Jul-22,"£1,497.02",Reed#Reed Specialist Recruitment Limited
Bolton MBC,Childrens Services,Agency Staff - Other,01-Jul-22,"£1,497.02",Reed#Reed Specialist Recruitment Limited
Bolton MBC,Childrens Services,Agency Staff - Other,01-Jul-22,"£1,416.10",Reed#Reed Specialist Recruitment Limited
Bolton MBC,Childrens Services,Agency Staff - Other,01-Jul-22,"£1,497.02",Reed#Reed Specialist Recruitment Limited
Bolton MBC,Childrens Services,Agency Staff - Other,01-Jul-22,"£1,497.02",Reed#Reed Specialist Recruitment Limited
Bolton MBC,Childrens Services,Agency Staff - Other,01-Jul-22,"£1,497.02",Reed#Reed Specialist Recruitment Limited
Bolton MBC,Childrens Services,Agency Staff - Other,01-Jul-22,"£1,497.02",Reed#Reed Specialist Recruitment Limited
Bolton MBC,Childrens Services,Agency Staff - Other,08-Jul-22,"£1,497.02",Reed#Reed Specialist Recruitment Limited
Bolton MBC,Childrens Services,Agency Staff - Other,08-Jul-22,"£1,497.02",Reed#Reed Specialist Recruitment Limited
Bolton MBC,Childrens Services,Agency Staff - Other,08-Jul-22,"£1,497.02",Reed#Reed Specialist Recruitment Limited
Bolton MBC,Childrens Services,Agency Staff - Other,08-Jul-22,"£1,497.02",Reed#Reed Specialist Recruitment Limited
Bolton MBC,Childrens Services,Agency Staff - Other,08-Jul-22,"£1,497.02",Reed#Reed Specialist Recruitment Limited
Bolton MBC,Childrens Services,Agency Staff - Other,08-Jul-22,"£1,497.02",Reed#Reed Specialist Recruitment Limited
Bolton MBC,Childrens Services,Agency Staff - Other,08-Jul-22,£910.36,Reed#Reed Specialist Recruitment Limited
Bolton MBC,Childrens Services,Agency Staff - Other,08-Jul-22,"£1,488.51",Reed#Reed Specialist Recruitment Limited
Bolton MBC,Childrens Services,Agency Staff - Other,01-Jul-22,"£5,147.30",Reed#Reed Specialist Recruitment Limited
Bolton MBC,Childrens Services,Agency Staff - Other,01-Jul-22,"£3,938.00",Reed#Reed Specialist Recruitment Limited
Bolton MBC,Childrens Services,Agency Staff - Other,22-Jul-22,£853.66,Reed#Reed Specialist Recruitment Limited
Bolton MBC,Childrens Services,Agency Staff - Other,22-Jul-22,"£1,403.78",Reed#Reed Specialist Recruitment Limited
Bolton MBC,Childrens Services,Agency Staff - Other,22-Jul-22,"£1,024.38",Reed#Reed Specialist Recruitment Limited
Bolton MBC,Childrens Services,Agency Staff - Other,22-Jul-22,"£1,403.78",Reed#Reed Specialist Recruitment Limited
Bolton MBC,Childrens Services,Agency Staff - Other,22-Jul-22,"£1,052.43",Reed#Reed Specialist Recruitment Limited
Bolton MBC,Childrens Services,Agency Staff - Other,15-Jul-22,"£1,403.78",Reed#Reed Specialist Recruitment Limited
Bolton MBC,Childrens Services,Agency Staff - Other,15-Jul-22,"£1,403.78",Reed#Reed Specialist Recruitment Limited
Bolton MBC,Childrens Services,Agency Staff - Other,15-Jul-22,"£1,403.78",Reed#Reed Specialist Recruitment Limited
Bolton MBC,Childrens Services,Agency Staff - Other,15-Jul-22,"£1,052.43",Reed#Reed Specialist Recruitment Limited
Bolton MBC,Childrens Services,Agency Staff - Other,01-Jul-22,£853.66,Reed#Reed Specialist Recruitment Limited
Bolton MBC,Childrens Services,Agency Staff - Other,01-Jul-22,"£1,403.78",Reed#Reed Specialist Recruitment Limited
Bolton MBC,Childrens Services,Agency Staff - Other,01-Jul-22,"£1,403.78",Reed#Reed Specialist Recruitment Limited
Bolton MBC,Childrens Services,Agency Staff - Other,01-Jul-22,"£1,403.78",Reed#Reed Specialist Recruitment Limited
Bolton MBC,Childrens Services,Agency Staff - Other,01-Jul-22,"£1,052.43",Reed#Reed Specialist Recruitment Limited
Bolton MBC,Childrens Services,Agency Staff - Other,01-Jul-22,£853.66,Reed#Reed Specialist Recruitment Limited
Bolton MBC,Childrens Services,Agency Staff - Other,08-Jul-22,"£1,403.78",Reed#Reed Specialist Recruitment Limited
Bolton MBC,Childrens Services,Agency Staff - Other,08-Jul-22,"£1,403.78",Reed#Reed Specialist Recruitment Limited
Bolton MBC,Childrens Services,Agency Staff - Other,08-Jul-22,"£1,403.78",Reed#Reed Specialist Recruitment Limited
Bolton MBC,Childrens Services,Agency Staff - Other,08-Jul-22,"£1,052.43",Reed#Reed Specialist Recruitment Limited
Bolton MBC,Childrens Services,Agency Staff - Other,08-Jul-22,£853.66,Reed#Reed Specialist Recruitment Limited
Bolton MBC,Childrens Services,Agency Staff - Other,22-Jul-22,£709.24,Reed#Reed Specialist Recruitment Limited
Bolton MBC,Childrens Services,Agency Staff - Other,01-Jul-22,£709.24,Reed#Reed Specialist Recruitment Limited
Bolton MBC,Childrens Services,Agency Staff - Other,08-Jul-22,£709.24,Reed#Reed Specialist Recruitment Limited
Bolton MBC,Childrens Services,Reactive Maintenance,07-Jul-22,"£6,211.10",Robertson Facilities Management Limited
Bolton MBC,Childrens Services,Vol Assoc Grants - General,01-Jul-22,"£4,804.29",Rubix Care Limited
Bolton MBC,Childrens Services,Vol Assoc Grants - General,01-Jul-22,"£4,964.43",Rubix Care Limited
Bolton MBC,Childrens Services,Vol Assoc Grants - General,01-Jul-22,"£8,127.86",Rubix Care Limited
Bolton MBC,Childrens Services,Vol Assoc Grants - General,01-Jul-22,"£8,773.14",Rubix Care Limited
Bolton MBC,Childrens Services,Clients - Taxi Fares,31-Jul-22,"£5,400.00",S & D Private Hire#S & D Cars
Bolton MBC,Childrens Services,Clients - Taxi Fares,01-Jul-22,"£5,660.00",S & D Private Hire#S & D Cars
Bolton MBC,Childrens Services,Clients - Taxi Fares,31-Jul-22,"£3,968.00",S A People Carrier Services
Bolton MBC,Childrens Services,Clients - Taxi Fares,01-Jul-22,"£4,792.00",S A People Carrier Services
Bolton MBC,Childrens Services,Vol Assoc Grants - General,05-Jul-22,"£11,548.63",Safe Hands Care & Support Services Limited
Bolton MBC,Childrens Services,Electricity - General,19-Jul-22,£801.78,Scottish & Southern Energy plc#SSE
Bolton MBC,Childrens Services,Electricity - General,19-Jul-22,"£2,963.17",Scottish & Southern Energy plc#SSE
Bolton MBC,Childrens Services,Electricity - General,19-Jul-22,£641.34,Scottish & Southern Energy plc#SSE
Bolton MBC,Childrens Services,Electricity - General,19-Jul-22,"£1,009.40",Scottish & Southern Energy plc#SSE
Bolton MBC,Childrens Services,Electricity - General,19-Jul-22,"£1,605.87",Scottish & Southern Energy plc#SSE
Bolton MBC,Childrens Services,Electricity - General,19-Jul-22,£811.37,Scottish & Southern Energy plc#SSE
Bolton MBC,Childrens Services,Electricity - General,19-Jul-22,"£1,402.99",Scottish & Southern Energy plc#SSE
Bolton MBC,Childrens Services,Electricity - General,19-Jul-22,£569.04,Scottish & Southern Energy plc#SSE
Bolton MBC,Childrens Services,Electricity - General,19-Jul-22,£973.13,Scottish & Southern Energy plc#SSE
Bolton MBC,Childrens Services,Clients - Taxi Fares,31-Jul-22,"£3,360.00",SMA Cars
Bolton MBC,Childrens Services,Clients - Taxi Fares,01-Jul-22,"£5,190.00",SMA Cars
Bolton MBC,Childrens Services,Clients - Taxi Fares,31-Jul-22,"£5,248.00",Smart Ride Private Hire Limited
Bolton MBC,Childrens Services,Clients - Taxi Fares,01-Jul-22,"£5,567.00",Smart Ride Private Hire Limited
Bolton MBC,Childrens Services,Clients - Taxi Fares,31-Jul-22,"£2,000.00",Smiley Private Hire
Bolton MBC,Childrens Services,Clients - Taxi Fares,01-Jul-22,"£1,435.00",Smiley Private Hire
Bolton MBC,Childrens Services,Vol Assoc Grants - General,01-Jul-22,"£19,285.80",Social Care Services Group
Bolton MBC,Childrens Services,Vol Assoc Grants - General,01-Jul-22,"£19,285.80",Social Care Services Group
Bolton MBC,Childrens Services,Vol Assoc Grants - General,01-Jul-22,"£12,548.52",Social Care Services Group
Bolton MBC,Childrens Services,Office Equipment Purchase,04-Jul-22,£589.14,Southerns Broadstock Limited
Bolton MBC,Childrens Services,Contracted Services,19-Jul-22,£800.00,St George C of E School
Bolton MBC,Childrens Services,Fees/Expenses Schools,01-Jul-22,"£1,050.00",St James Secondary Academy#St James's Church Of England High School
Bolton MBC,Childrens Services,Legal Fees,01-Jul-22,£700.00,St John's Buildings Barristers' Chambers
Bolton MBC,Childrens Services,Legal Fees,01-Jul-22,"£1,362.50",St John's Buildings Barristers' Chambers
Bolton MBC,Childrens Services,Legal Fees,01-Jul-22,"£1,010.42",St John's Buildings Barristers' Chambers
Bolton MBC,Childrens Services,Legal Fees,01-Jul-22,"£1,031.25",St John's Buildings Barristers' Chambers
Bolton MBC,Childrens Services,Legal Fees,13-Jul-22,"£2,500.00",St John's Buildings Barristers' Chambers
Bolton MBC,Childrens Services,Contracted Services,19-Jul-22,£800.00,St Mary`s RC Primary School
Bolton MBC,Childrens Services,Contracted Services,19-Jul-22,£800.00,St William of York RCP School
Bolton MBC,Childrens Services,Other Fees,06-Jul-22,"£1,621.35",Steve Bore Specialist Services Ltd
Bolton MBC,Childrens Services,Computer Purchase,01-Jul-22,"£4,370.00",Stone Computers Limited
Bolton MBC,Childrens Services,Computer Purchase,04-Jul-22,"£1,875.63",Stone Computers Limited
Bolton MBC,Childrens Services,Computer Purchase,08-Jul-22,"£2,145.00",Stone Computers Limited
Bolton MBC,Childrens Services,Operational Equipment Maint,12-Jul-22,"£1,728.00",Stone Computers Limited
Bolton MBC,Childrens Services,Computer Purchase,18-Jul-22,"£3,818.70",Stone Computers Limited
Bolton MBC,Childrens Services,Computer Purchase,21-Jul-22,"£6,950.00",Stone Computers Limited
Bolton MBC,Childrens Services,Clients - Taxi Fares,31-Jul-22,"£11,864.00",Street Car
Bolton MBC,Childrens Services,Clients - Taxi Fares,01-Jul-22,"£14,256.00",Street Cars
Bolton MBC,Childrens Services,Computer Software Licences,05-Jul-22,"£10,866.00",Sunrise Software Limited
Bolton MBC,Childrens Services,Vol Assoc Grants - General,01-Jul-22,"£5,600.00",Supreme Child Care Limited
Bolton MBC,Childrens Services,Vol Assoc Grants - General,07-Jul-22,"£5,600.00",Supreme Child Care Limited
Bolton MBC,Childrens Services,Vol Assoc Grants - General,15-Jul-22,"£5,600.00",Supreme Child Care Limited
Bolton MBC,Childrens Services,Vol Assoc Grants - General,01-Jul-22,"£5,600.00",Supreme Child Care Limited
Bolton MBC,Childrens Services,Vol Assoc Grants - General,07-Jul-22,"£5,600.00",Supreme Child Care Limited
Bolton MBC,Childrens Services,Clients - Taxi Fares,31-Jul-22,"£7,200.00",Supreme Minibuses Limited
Bolton MBC,Childrens Services,Clients - Taxi Fares,01-Jul-22,"£8,550.00",Supreme Minibuses Limited
Bolton MBC,Childrens Services,Vol Assoc Grants - General,01-Jul-22,£695.52,Swiis Foster Care Limited
Bolton MBC,Childrens Services,Vol Assoc Grants - General,01-Jul-22,£863.03,Swiis Foster Care Limited
Bolton MBC,Childrens Services,Vol Assoc Grants - General,01-Jul-22,£819.84,Swiis Foster Care Limited
Bolton MBC,Childrens Services,Vol Assoc Grants - General,01-Jul-22,£695.52,Swiis Foster Care Limited
Bolton MBC,Childrens Services,Vol Assoc Grants - General,01-Jul-22,£630.60,Swiis Foster Care Limited
Bolton MBC,Childrens Services,Vol Assoc Grants - General,01-Jul-22,£836.52,Swiis Foster Care Limited
Bolton MBC,Childrens Services,Vol Assoc Grants - General,04-Jul-22,£695.52,Swiis Foster Care Limited
Bolton MBC,Childrens Services,Vol Assoc Grants - General,04-Jul-22,£863.03,Swiis Foster Care Limited
Bolton MBC,Childrens Services,Vol Assoc Grants - General,04-Jul-22,£819.84,Swiis Foster Care Limited
Bolton MBC,Childrens Services,Vol Assoc Grants - General,04-Jul-22,£695.52,Swiis Foster Care Limited
Bolton MBC,Childrens Services,Vol Assoc Grants - General,04-Jul-22,£630.60,Swiis Foster Care Limited
Bolton MBC,Childrens Services,Vol Assoc Grants - General,04-Jul-22,£836.52,Swiis Foster Care Limited
Bolton MBC,Childrens Services,Vol Assoc Grants - General,11-Jul-22,£695.52,Swiis Foster Care Limited
Bolton MBC,Childrens Services,Vol Assoc Grants - General,11-Jul-22,£863.03,Swiis Foster Care Limited
Bolton MBC,Childrens Services,Vol Assoc Grants - General,11-Jul-22,£819.84,Swiis Foster Care Limited
Bolton MBC,Childrens Services,Vol Assoc Grants - General,11-Jul-22,£695.52,Swiis Foster Care Limited
Bolton MBC,Childrens Services,Vol Assoc Grants - General,11-Jul-22,£882.84,Swiis Foster Care Limited
Bolton MBC,Childrens Services,Vol Assoc Grants - General,11-Jul-22,£836.52,Swiis Foster Care Limited
Bolton MBC,Childrens Services,Legal Fees,06-Jul-22,"£2,268.50",Target Psychology Limited
Bolton MBC,Childrens Services,Contracted Services,01-Jul-22,£832.00,Targeted Provision Limited
Bolton MBC,Childrens Services,Contracted Services,19-Jul-22,£800.00,The Oaks CP School
Bolton MBC,Childrens Services,Vol Assoc Grants - General,01-Jul-22,"£18,912.06",The Together Trust
Bolton MBC,Childrens Services,Vol Assoc Grants - General,01-Jul-22,"£19,564.20",The Together Trust
Bolton MBC,Childrens Services,Vol Assoc Grants - General,01-Jul-22,"£18,000.00",The Together Trust
Bolton MBC,Childrens Services,Vol Assoc Grants - General,01-Jul-22,"£18,000.00",The Together Trust
Bolton MBC,Childrens Services,Vol Assoc Grants - General,01-Jul-22,"£3,137.40",Therapeutic Fostering Limited
Bolton MBC,Childrens Services,Vol Assoc Grants - General,01-Jul-22,"£3,137.40",Therapeutic Fostering Limited
Bolton MBC,Childrens Services,Vol Assoc Grants - General,01-Jul-22,"£3,528.00",Therapeutic Fostering Limited
Bolton MBC,Childrens Services,Vol Assoc Grants - General,01-Jul-22,"£3,537.30",Therapeutic Fostering Limited
Bolton MBC,Childrens Services,Vol Assoc Grants - General,01-Jul-22,"£2,736.00",Three Circles Fostering Ltd
Bolton MBC,Childrens Services,Vol Assoc Grants - General,01-Jul-22,£684.00,Three Circles Fostering Ltd
Bolton MBC,Childrens Services,Clients - Taxi Fares,31-Jul-22,"£1,760.00",Travel Assist Services
Bolton MBC,Childrens Services,Clients - Taxi Fares,01-Jul-22,"£2,090.00",Travel Assist Services
Bolton MBC,Childrens Services,Clients - Taxi Fares,31-Jul-22,"£5,232.00",Triple Zero Private Hire#Triple Zero Taxis Limited
Bolton MBC,Childrens Services,Clients - Taxi Fares,01-Jul-22,"£6,990.00",Triple Zero Private Hire#Triple Zero Taxis Limited
Bolton MBC,Childrens Services,Vol Assoc Grants - General,01-Jul-22,"£20,460.20",Vals Place Limited
Bolton MBC,Childrens Services,Operational Equipment Purchase,02-Jul-22,"£13,466.00",Virgin Media Payments Limited#Virgin Media Business
Bolton MBC,Childrens Services,Contracted Services,13-Jul-22,"£17,125.00",VoiceAbility
Bolton MBC,Childrens Services,Operational Equipment Maint,13-Jul-22,"£7,500.00",WCL UK Ltd (Everything ICT)
Bolton MBC,Childrens Services,Legal Fees,01-Jul-22,£604.00,Weightmans LLP
Bolton MBC,Childrens Services,Vol Assoc Grants - General,04-Jul-22,£700.00,Wellbeing Property Solutions Limited
Bolton MBC,Childrens Services,Vol Assoc Grants - General,11-Jul-22,£700.00,Wellbeing Property Solutions Limited
Bolton MBC,Childrens Services,Vol Assoc Grants - General,18-Jul-22,£700.00,Wellbeing Property Solutions Limited
Bolton MBC,Childrens Services,Clients - Taxi Fares,31-Jul-22,"£3,520.00",Willows Minibus
Bolton MBC,Childrens Services,Clients - Taxi Fares,01-Jul-22,"£3,290.00",Willows Minibus
Bolton MBC,Childrens Services,Clients - Taxi Fares,31-Jul-22,"£4,300.00",Y & S Private Hire
Bolton MBC,Childrens Services,Clients - Taxi Fares,01-Jul-22,"£4,450.00",Y & S Private Hire
Bolton MBC,Development & Regeneration,Rent of Storage Facilities,05-Jul-22,£766.32,Adams Selfstore
Bolton MBC,Development & Regeneration,Water Charges - Metered,10-Jul-22,£554.10,Anglian Water Business (National) Ltd Trading As Wave
Bolton MBC,Development & Regeneration,Water Charges - Metered,10-Jul-22,£775.17,Anglian Water Business (National) Ltd Trading As Wave
Bolton MBC,Development & Regeneration,Operational Equipment Purchase,01-Jul-22,"£3,745.00",ARJ CRE8 Limited
Bolton MBC,Development & Regeneration,Library Books,15-Jul-22,£935.01,Askews & Holts Library Services Ltd
Bolton MBC,Development & Regeneration,Contracted Services,01-Jul-22,"£195,753.00",Bolton College#Was Community College
Bolton MBC,Development & Regeneration,Other Fees,12-Jul-22,"£2,000.00",Bolton College#Was Community College
Bolton MBC,Development & Regeneration,Miscellaneous Grants,11-Jul-22,"£6,032.00",Bolton Middlebrook Leisure Trust#Bolton Arena
Bolton MBC,Development & Regeneration,New Construction Conversion & Renovation,25-Jul-22,"£46,464.50",Bolton Middlebrook Leisure Trust#Bolton Arena
Bolton MBC,Development & Regeneration,Other Fees,04-Jul-22,"£1,045.05",Bolton Whites Hotel
Bolton MBC,Development & Regeneration,Exhibits Purchase,01-Jul-22,£523.80,British Fossils#Giftstones Limited
Bolton MBC,Development & Regeneration,Work in Progress Additions,26-Jul-22,"£14,780.00",Broxap Limited
Bolton MBC,Development & Regeneration,Heating & Electrical Work,27-Jul-22,"£5,375.00",C Horrocks & Sons Limited
Bolton MBC,Development & Regeneration,Inter Agency Fees,01-Jul-22,"£24,288.00",Capita Property & Infrastructure Ltd
Bolton MBC,Development & Regeneration,Other Agency/Contracted Services,07-Jul-22,"£27,372.25",Capita Property & Infrastructure Ltd
Bolton MBC,Development & Regeneration,Agency Staff - Full-time,15-Jul-22,"£4,176.00",Capita Property & Infrastructure Ltd
Bolton MBC,Development & Regeneration,Inter Agency Fees,05-Jul-22,"£2,100.00",Capita Real Estate & Infrastructure Limited
Bolton MBC,Development & Regeneration,Other Agency/Contracted Services,01-Jul-22,"£1,020.00",Carrington West Limited
Bolton MBC,Development & Regeneration,Other Agency/Contracted Services,01-Jul-22,£915.00,Carrington West Limited
Bolton MBC,Development & Regeneration,Other Agency/Contracted Services,01-Jul-22,"£1,702.00",Carrington West Limited
Bolton MBC,Development & Regeneration,Other Agency/Contracted Services,01-Jul-22,£792.00,Carrington West Limited
Bolton MBC,Development & Regeneration,Other Agency/Contracted Services,07-Jul-22,"£1,154.40",Carrington West Limited
Bolton MBC,Development & Regeneration,Other Agency/Contracted Services,14-Jul-22,"£1,702.00",Carrington West Limited
Bolton MBC,Development & Regeneration,Other Agency/Contracted Services,18-Jul-22,£686.40,Carrington West Limited
Bolton MBC,Development & Regeneration,Other Agency/Contracted Services,14-Jul-22,"£1,012.50",Carrington West Limited
Bolton MBC,Development & Regeneration,Other Agency/Contracted Services,21-Jul-22,"£1,380.00",Carrington West Limited
Bolton MBC,Development & Regeneration,Other Agency/Contracted Services,21-Jul-22,"£1,185.60",Carrington West Limited
Bolton MBC,Development & Regeneration,Other Agency/Contracted Services,21-Jul-22,£792.00,Carrington West Limited
Bolton MBC,Development & Regeneration,Other Agency/Contracted Services,21-Jul-22,£795.00,Carrington West Limited
Bolton MBC,Development & Regeneration,Other Fees,01-Jul-22,"£24,691.67",Clear Sustainable Futures Joint Venture C/o Robertson Capital Projects Limited
Bolton MBC,Development & Regeneration,Other Fees,01-Jul-22,"£3,699.63",Clear Sustainable Futures Joint Venture C/o Robertson Capital Projects Limited
Bolton MBC,Development & Regeneration,Other Fees,01-Jul-22,"£23,573.44",Clear Sustainable Futures Joint Venture C/o Robertson Capital Projects Limited
Bolton MBC,Development & Regeneration,Work in Progress Additions,01-Jul-22,"£97,806.50",Clear Sustainable Futures Joint Venture C/o Robertson Capital Projects Limited
Bolton MBC,Development & Regeneration,Work in Progress Additions,01-Jul-22,"£1,711.61",Clear Sustainable Futures Joint Venture C/o Robertson Capital Projects Limited
Bolton MBC,Development & Regeneration,Work in Progress Additions,01-Jul-22,"£58,353.00",Clear Sustainable Futures Joint Venture C/o Robertson Capital Projects Limited
Bolton MBC,Development & Regeneration,Work in Progress Additions,01-Jul-22,"£1,021.18",Clear Sustainable Futures Joint Venture C/o Robertson Capital Projects Limited
Bolton MBC,Development & Regeneration,Work in Progress Additions,01-Jul-22,"£97,806.50",Clear Sustainable Futures Joint Venture C/o Robertson Capital Projects Limited
Bolton MBC,Development & Regeneration,Work in Progress Additions,01-Jul-22,"£58,353.00",Clear Sustainable Futures Joint Venture C/o Robertson Capital Projects Limited
Bolton MBC,Development & Regeneration,Consultancy Fees,01-Jul-22,"£3,543.75",Colliers International Retail UK LLP
Bolton MBC,Development & Regeneration,Gas - General,12-Jul-22,£957.70,Corona Energy Limited
Bolton MBC,Development & Regeneration,Gas - General,12-Jul-22,£724.59,Corona Energy Limited
Bolton MBC,Development & Regeneration,Gas - General,12-Jul-22,£618.63,Corona Energy Limited
Bolton MBC,Development & Regeneration,Gas - General,12-Jul-22,£552.98,Corona Energy Limited
Bolton MBC,Development & Regeneration,Gas - General,12-Jul-22,£959.81,Corona Energy Limited
Bolton MBC,Development & Regeneration,Gas - General,12-Jul-22,"£5,140.06",Corona Energy Limited
Bolton MBC,Development & Regeneration,Gas - General,12-Jul-22,"£5,280.29",Corona Energy Limited
Bolton MBC,Development & Regeneration,Gas - General,12-Jul-22,"£1,230.17",Corona Energy Limited
Bolton MBC,Development & Regeneration,Other Fees,01-Jul-22,"£15,000.00",Deloitte LLP
Bolton MBC,Development & Regeneration,Other Fees,01-Jul-22,"£35,000.00",Deloitte LLP
Bolton MBC,Development & Regeneration,Promoting Events,11-Jul-22,£792.00,Ebb & Flo Bookshop
Bolton MBC,Development & Regeneration,Work in Progress Additions,27-Jul-22,"£6,662.76",Electricity North West Limited#United Utilities Electricity Services Ltd
Bolton MBC,Development & Regeneration,Agency Staff - Full-time,01-Jul-22,"£1,043.75",G2 Recruitment Solutions
Bolton MBC,Development & Regeneration,Agency Staff - Full-time,01-Jul-22,"£1,031.25",G2 Recruitment Solutions
Bolton MBC,Development & Regeneration,Agency Staff - Full-time,06-Jul-22,"£1,504.00",G2 Recruitment Solutions
Bolton MBC,Development & Regeneration,Agency Staff - Full-time,13-Jul-22,"£1,210.25",G2 Recruitment Solutions
Bolton MBC,Development & Regeneration,Agency Staff - Full-time,20-Jul-22,"£1,762.50",G2 Recruitment Solutions
Bolton MBC,Development & Regeneration,Agency Staff - Full-time,20-Jul-22,£743.75,G2 Recruitment Solutions
Bolton MBC,Development & Regeneration,Agency Staff - Full-time,20-Jul-22,"£1,300.00",G2 Recruitment Solutions
Bolton MBC,Development & Regeneration,Agency Staff - Full-time,27-Jul-22,"£1,715.50",G2 Recruitment Solutions
Bolton MBC,Development & Regeneration,Operational Equipment Purchase,13-Jul-22,"£6,949.59",Gala Tent Limited
Bolton MBC,Development & Regeneration,Work in Progress Additions,26-Jul-22,"£19,725.20",Greater Manchester Combined Authority
Bolton MBC,Development & Regeneration,Clients - Bus Fares,15-Jul-22,£769.50,Greater Manchester Travelcards Ltd#systemonetravelcards
Bolton MBC,Development & Regeneration,Office Equipment Purchase,11-Jul-22,"£1,267.75",H Jenkinson & Company Ltd#Jenkinsons Office Supplies
Bolton MBC,Development & Regeneration,Electricity - General,13-Jul-22,"£2,288.29",Haven Power Limited
Bolton MBC,Development & Regeneration,Electricity - General,13-Jul-22,£679.03,Haven Power Limited
Bolton MBC,Development & Regeneration,Electricity - General,13-Jul-22,£608.19,Haven Power Limited
Bolton MBC,Development & Regeneration,Electricity - General,13-Jul-22,"£1,147.01",Haven Power Limited
Bolton MBC,Development & Regeneration,Electricity - General,13-Jul-22,£766.19,Haven Power Limited
Bolton MBC,Development & Regeneration,Electricity - General,13-Jul-22,£657.64,Haven Power Limited
Bolton MBC,Development & Regeneration,Electricity - General,13-Jul-22,"£1,916.97",Haven Power Limited
Bolton MBC,Development & Regeneration,Agency Staff - Full-time,01-Jul-22,"£1,803.75",Hays Specialist Recruitment
Bolton MBC,Development & Regeneration,Agency Staff - Full-time,01-Jul-22,"£1,443.00",Hays Specialist Recruitment
Bolton MBC,Development & Regeneration,Agency Staff - Full-time,01-Jul-22,"£3,427.05",Hays Specialist Recruitment
Bolton MBC,Development & Regeneration,Agency Staff - Full-time,01-Jul-22,"£3,201.60",Hays Specialist Recruitment
Bolton MBC,Development & Regeneration,Agency Staff - Full-time,14-Jul-22,"£3,015.99",Hays Specialist Recruitment
Bolton MBC,Development & Regeneration,Exhibits Purchase,01-Jul-22,"£2,005.00",Impression (Bolton) Limited
Bolton MBC,Development & Regeneration,Exhibits Purchase,13-Jul-22,"£7,634.00",Impression (Bolton) Limited
Bolton MBC,Development & Regeneration,Work in Progress Additions,01-Jul-22,"£7,808.00",Jones Lang LaSalle Limited#JLL
Bolton MBC,Development & Regeneration,Work in Progress Additions,01-Jul-22,"£8,992.00",Jones Lang LaSalle Limited#JLL
Bolton MBC,Development & Regeneration,Exhibits Purchase,01-Jul-22,£629.28,Keel Toys Limited
Bolton MBC,Development & Regeneration,Work in Progress Additions,01-Jul-22,"£2,500.00",Keppie Massie Limited
Bolton MBC,Development & Regeneration,Legal Fees,05-Jul-22,£750.00,Kings Chambers
Bolton MBC,Development & Regeneration,Legal Fees,05-Jul-22,"£1,350.00",Kings Chambers
Bolton MBC,Development & Regeneration,Legal Fees,15-Jul-22,"£3,900.00",Kings Chambers
Bolton MBC,Development & Regeneration,Legal Fees,01-Jul-22,"£1,800.00",Kings Chambers
Bolton MBC,Development & Regeneration,Legal Fees,26-Jul-22,"£1,050.00",Landmark Chambers
Bolton MBC,Development & Regeneration,Computer Purchase,25-Jul-22,"£11,500.00",Lyngsoe Systems Limited
Bolton MBC,Development & Regeneration,Other Fees,15-Jul-22,"£1,498.00",Modify Productions
Bolton MBC,Development & Regeneration,Other Agency/Contracted Services,01-Jul-22,"£10,000.00",Mondrem Limited
Bolton MBC,Development & Regeneration,Management Fee,01-Jul-22,"£14,883.66",National Car Parks Ltd#NCP
Bolton MBC,Development & Regeneration,Marketing,01-Jul-22,"£2,665.00",NB Colour Print Limited
Bolton MBC,Development & Regeneration,Default Cloud I-expenses Subjective,01-Jul-22,"£1,500.00",Ned Peppers Tattoo Studio
Bolton MBC,Development & Regeneration,Default Cloud I-expenses Subjective,13-Jul-22,"£1,500.00",Ned Peppers Tattoo Studio
Bolton MBC,Development & Regeneration,Other Fees,21-Jul-22,"£11,730.00",Netpremacy Limited
Bolton MBC,Development & Regeneration,Newspapers,01-Jul-22,£938.40,Newsquest Media Group
Bolton MBC,Development & Regeneration,Newspapers,08-Jul-22,£717.60,Newsquest Media Group
Bolton MBC,Development & Regeneration,Newspapers,15-Jul-22,£717.60,Newsquest Media Group
Bolton MBC,Development & Regeneration,Newspapers,22-Jul-22,"£1,104.00",Newsquest Media Group
Bolton MBC,Development & Regeneration,Newspapers,26-Jul-22,£938.40,Newsquest Media Group
Bolton MBC,Development & Regeneration,Newspapers,29-Jul-22,"£1,269.60",Newsquest Media Group
Bolton MBC,Development & Regeneration,Operational Equipment Purchase,01-Jul-22,"£1,450.00",O2 (UK) Limited#TELEFONICA
Bolton MBC,Development & Regeneration,Other Fees,01-Jul-22,"£9,120.00",O2 (UK) Limited#TELEFONICA
Bolton MBC,Development & Regeneration,Information and Communication Technology,20-Jul-22,"£6,100.00",OJT Communications Limited
Bolton MBC,Development & Regeneration,Operational Equipment Purchase,13-Jul-22,£911.56,PC World Business/Currys Business#DSG Retail
Bolton MBC,Development & Regeneration,Operational Equipment Purchase,17-Jul-22,"£8,729.00",PC World Business/Currys Business#DSG Retail
Bolton MBC,Development & Regeneration,Exhibits Purchase,30-Jul-22,"£1,118.00",Peron Plastics Limited
Bolton MBC,Development & Regeneration,Operational Equipment Purchase,01-Jul-22,"£1,135.76",PPL PRS Limited
Bolton MBC,Development & Regeneration,Operational Equipment Purchase,12-Jul-22,£658.50,Ramfoam Limited
Bolton MBC,Development & Regeneration,Agency Staff - Other,22-Jul-22,£636.37,Reed#Reed Specialist Recruitment Limited
Bolton MBC,Development & Regeneration,Agency Staff - Other,22-Jul-22,£644.98,Reed#Reed Specialist Recruitment Limited
Bolton MBC,Development & Regeneration,Agency Staff - Other,22-Jul-22,£644.90,Reed#Reed Specialist Recruitment Limited
Bolton MBC,Development & Regeneration,Agency Staff - Other,22-Jul-22,£657.25,Reed#Reed Specialist Recruitment Limited
Bolton MBC,Development & Regeneration,Agency Staff - Other,15-Jul-22,£636.37,Reed#Reed Specialist Recruitment Limited
Bolton MBC,Development & Regeneration,Agency Staff - Other,15-Jul-22,£653.56,Reed#Reed Specialist Recruitment Limited
Bolton MBC,Development & Regeneration,Agency Staff - Other,15-Jul-22,£644.90,Reed#Reed Specialist Recruitment Limited
Bolton MBC,Development & Regeneration,Agency Staff - Other,15-Jul-22,£515.92,Reed#Reed Specialist Recruitment Limited
Bolton MBC,Development & Regeneration,Agency Staff - Other,15-Jul-22,£657.25,Reed#Reed Specialist Recruitment Limited
Bolton MBC,Development & Regeneration,Agency Staff - Other,01-Jul-22,£636.37,Reed#Reed Specialist Recruitment Limited
Bolton MBC,Development & Regeneration,Agency Staff - Other,01-Jul-22,£653.56,Reed#Reed Specialist Recruitment Limited
Bolton MBC,Development & Regeneration,Agency Staff - Other,01-Jul-22,£644.98,Reed#Reed Specialist Recruitment Limited
Bolton MBC,Development & Regeneration,Agency Staff - Other,01-Jul-22,£644.90,Reed#Reed Specialist Recruitment Limited
Bolton MBC,Development & Regeneration,Agency Staff - Other,01-Jul-22,£515.92,Reed#Reed Specialist Recruitment Limited
Bolton MBC,Development & Regeneration,Agency Staff - Other,01-Jul-22,£657.25,Reed#Reed Specialist Recruitment Limited
Bolton MBC,Development & Regeneration,Agency Staff - Other,08-Jul-22,£636.37,Reed#Reed Specialist Recruitment Limited
Bolton MBC,Development & Regeneration,Agency Staff - Other,08-Jul-22,£644.98,Reed#Reed Specialist Recruitment Limited
Bolton MBC,Development & Regeneration,Agency Staff - Other,08-Jul-22,£644.90,Reed#Reed Specialist Recruitment Limited
Bolton MBC,Development & Regeneration,Agency Staff - Other,08-Jul-22,£515.92,Reed#Reed Specialist Recruitment Limited
Bolton MBC,Development & Regeneration,Agency Staff - Other,08-Jul-22,£657.25,Reed#Reed Specialist Recruitment Limited
Bolton MBC,Development & Regeneration,Agency Staff - Other,22-Jul-22,£664.09,Reed#Reed Specialist Recruitment Limited
Bolton MBC,Development & Regeneration,Agency Staff - Other,15-Jul-22,£611.66,Reed#Reed Specialist Recruitment Limited
Bolton MBC,Development & Regeneration,Exhibits Purchase,11-Jul-22,£613.91,Rhodawn Limited T/A Bookspeed
Bolton MBC,Development & Regeneration,Day To Day Maintenance Structural,07-Jul-22,"£3,606.75",Robertson Facilities Management Limited
Bolton MBC,Development & Regeneration,Reactive Maintenance,01-Jul-22,"£35,189.64",Robertson Facilities Management Limited
Bolton MBC,Development & Regeneration,Reactive Maintenance,07-Jul-22,"£12,032.08",Robertson Facilities Management Limited
Bolton MBC,Development & Regeneration,Consultancy Fees,29-Jul-22,"£25,325.00",Savills (UK) Limited
Bolton MBC,Development & Regeneration,Electricity - General,19-Jul-22,£722.18,Scottish & Southern Energy plc#SSE
Bolton MBC,Development & Regeneration,Electricity - General,19-Jul-22,£949.30,Scottish & Southern Energy plc#SSE
Bolton MBC,Development & Regeneration,Electricity - General,19-Jul-22,"£5,412.33",Scottish & Southern Energy plc#SSE
Bolton MBC,Development & Regeneration,Electricity - General,19-Jul-22,£636.06,Scottish & Southern Energy plc#SSE
Bolton MBC,Development & Regeneration,Electricity - General,19-Jul-22,£578.99,Scottish & Southern Energy plc#SSE
Bolton MBC,Development & Regeneration,Operational Equipment Purchase,18-Jul-22,£763.00,Sound Innovations Limited
Bolton MBC,Development & Regeneration,Office Stationery,13-Jul-22,£635.00,Spectrum Plastics#Print & Plastics
Bolton MBC,Development & Regeneration,Library Books,04-Jul-22,£658.16,The Book Centre
Bolton MBC,Development & Regeneration,Library Books,01-Jul-22,£831.90,Ulverscroft Large Print Books Limited#Ulverscroft Limited
Bolton MBC,Development & Regeneration,Inter Agency Fees,01-Jul-22,"£2,249.40",Vivid Resourcing
Bolton MBC,Development & Regeneration,Inter Agency Fees,06-Jul-22,"£2,220.00",Vivid Resourcing
Bolton MBC,Development & Regeneration,Inter Agency Fees,06-Jul-22,"£2,035.00",Vivid Resourcing
Bolton MBC,Development & Regeneration,Inter Agency Fees,06-Jul-22,"£4,140.23",Vivid Resourcing
Bolton MBC,Development & Regeneration,Inter Agency Fees,13-Jul-22,"£2,265.60",Vivid Resourcing
Bolton MBC,Development & Regeneration,Inter Agency Fees,13-Jul-22,"£2,035.00",Vivid Resourcing
Bolton MBC,Development & Regeneration,Inter Agency Fees,13-Jul-22,"£1,958.02",Vivid Resourcing
Bolton MBC,Development & Regeneration,Inter Agency Fees,20-Jul-22,"£2,251.20",Vivid Resourcing
Bolton MBC,Development & Regeneration,Inter Agency Fees,20-Jul-22,"£2,035.00",Vivid Resourcing
Bolton MBC,Development & Regeneration,Other Fees,25-Jul-22,£700.00,Wigan Steam CIC
Bolton MBC,Environmental Services,Day To Day Maintenance,11-Jul-22,£595.00,Access Door Systems Limited
Bolton MBC,Environmental Services,General Subscriptions,01-Jul-22,"£1,290.00",ADEPT
Bolton MBC,Environmental Services,Vehicles Plant Equip and Machinery,01-Jul-22,"£1,190.00",Advanced Communication Projects Limited
Bolton MBC,Environmental Services,Direct Materials,01-Jul-22,£586.50,Aggregate Industries UK Limited
Bolton MBC,Environmental Services,Direct Materials,06-Jul-22,"£1,173.00",Aggregate Industries UK Limited
Bolton MBC,Environmental Services,Direct Materials,07-Jul-22,"£1,170.65",Aggregate Industries UK Limited
Bolton MBC,Environmental Services,Direct Materials,08-Jul-22,£821.10,Aggregate Industries UK Limited
Bolton MBC,Environmental Services,Direct Materials,12-Jul-22,"£1,173.00",Aggregate Industries UK Limited
Bolton MBC,Environmental Services,Direct Materials,13-Jul-22,£811.72,Aggregate Industries UK Limited
Bolton MBC,Environmental Services,Direct Materials,15-Jul-22,£785.77,Aggregate Industries UK Limited
Bolton MBC,Environmental Services,Direct Materials,15-Jul-22,"£1,165.96",Aggregate Industries UK Limited
Bolton MBC,Environmental Services,Direct Materials,20-Jul-22,"£1,168.31",Aggregate Industries UK Limited
Bolton MBC,Environmental Services,Direct Materials,20-Jul-22,"£1,173.00",Aggregate Industries UK Limited
Bolton MBC,Environmental Services,Direct Materials,21-Jul-22,£938.40,Aggregate Industries UK Limited
Bolton MBC,Environmental Services,Direct Materials,01-Jul-22,"£1,173.00",Aggregate Industries UK Limited
Bolton MBC,Environmental Services,Direct Materials,07-Jul-22,"£1,198.08",Aggregate Industries UK Limited
Bolton MBC,Environmental Services,Direct Materials,08-Jul-22,"£1,753.30",Aggregate Industries UK Limited
Bolton MBC,Environmental Services,Water Charges - Unmetered,01-Jul-22,£635.11,Anglian Water Business (National) Ltd Trading As Wave
Bolton MBC,Environmental Services,Water Charges - Unmetered,01-Jul-22,"£1,437.01",Anglian Water Business (National) Ltd Trading As Wave
Bolton MBC,Environmental Services,Water Charges - Unmetered,01-Jul-22,£635.11,Anglian Water Business (National) Ltd Trading As Wave
Bolton MBC,Environmental Services,General Subscriptions,08-Jul-22,"£8,469.00",APSE
Bolton MBC,Environmental Services,Cleaning Materials,15-Jul-22,"£2,118.64",Arrow County Supplies Limited
Bolton MBC,Environmental Services,Cleaning Materials,15-Jul-22,£936.52,Arrow County Supplies Limited
Bolton MBC,Environmental Services,Cleaning Materials,15-Jul-22,"£2,319.17",Arrow County Supplies Limited
Bolton MBC,Environmental Services,Inv Invoice Price Variance,07-Jul-22,"£1,788.45",ASD Metal Services#Kloeckner Metal Svs Ltd#Kloeckner Metals UK
Bolton MBC,Environmental Services,Inv Invoice Price Variance,07-Jul-22,"£2,234.87",ASD Metal Services#Kloeckner Metal Svs Ltd#Kloeckner Metals UK
Bolton MBC,Environmental Services,Inventory AP Accrual,07-Jul-22,£630.00,ASD Metal Services#Kloeckner Metal Svs Ltd#Kloeckner Metals UK
Bolton MBC,Environmental Services,Inventory AP Accrual,07-Jul-22,£840.00,ASD Metal Services#Kloeckner Metal Svs Ltd#Kloeckner Metals UK
Bolton MBC,Environmental Services,Inventory AP Accrual,07-Jul-22,"£1,050.00",ASD Metal Services#Kloeckner Metal Svs Ltd#Kloeckner Metals UK
Bolton MBC,Environmental Services,Inventory AP Accrual,07-Jul-22,"£1,788.45",ASD Metal Services#Kloeckner Metal Svs Ltd#Kloeckner Metals UK
Bolton MBC,Environmental Services,Inventory AP Accrual,07-Jul-22,"£2,234.87",ASD Metal Services#Kloeckner Metal Svs Ltd#Kloeckner Metals UK
Bolton MBC,Environmental Services,General Materials,01-Jul-22,£588.85,Ashdown Supplies
Bolton MBC,Environmental Services,Modems and Lines,12-Jul-22,"£1,254.45",Babble Cloud Limited
Bolton MBC,Environmental Services,Operational Equipment Rental,08-Jul-22,£800.00,Balmers GM Limited
Bolton MBC,Environmental Services,Direct Materials,11-Jul-22,£695.00,Benchmark Building Supplies Limited#Saint-Gobain Building Distribution Limited
Bolton MBC,Environmental Services,Inv Invoice Price Variance,01-Jul-22,£523.20,Benchmark Building Supplies Limited#Saint-Gobain Building Distribution Limited
Bolton MBC,Environmental Services,Inventory AP Accrual,01-Jul-22,£523.20,Benchmark Building Supplies Limited#Saint-Gobain Building Distribution Limited
Bolton MBC,Environmental Services,Inventory AP Accrual,12-Jul-22,£537.60,Benchmark Building Supplies Limited#Saint-Gobain Building Distribution Limited
Bolton MBC,Environmental Services,Engineering Work,01-Jul-22,"£33,776.92",Bethell Construction Ltd
Bolton MBC,Environmental Services,Engineering Work,01-Jul-22,"£16,935.57",Bethell Construction Ltd
Bolton MBC,Environmental Services,Refuse Collection,01-Jul-22,"£4,326.13",Biffa#Biffa Waste Services Limited
Bolton MBC,Environmental Services,Refuse Collection,01-Jul-22,"£4,133.94",Biffa#Biffa Waste Services Limited
Bolton MBC,Environmental Services,Refuse Collection,01-Jul-22,"£6,140.00",Bolton Community Transport & Furniture Services#bct & fs#BCTFS
Bolton MBC,Environmental Services,Refuse Collection,29-Jul-22,£820.00,Bolton Community Transport & Furniture Services#bct & fs#BCTFS
Bolton MBC,Environmental Services,Refuse Collection,29-Jul-22,£620.00,Bolton Community Transport & Furniture Services#bct & fs#BCTFS
Bolton MBC,Environmental Services,Refuse Collection,29-Jul-22,£740.00,Bolton Community Transport & Furniture Services#bct & fs#BCTFS
Bolton MBC,Environmental Services,Refuse Collection,29-Jul-22,£720.00,Bolton Community Transport & Furniture Services#bct & fs#BCTFS
Bolton MBC,Environmental Services,Refuse Collection,29-Jul-22,£740.00,Bolton Community Transport & Furniture Services#bct & fs#BCTFS
Bolton MBC,Environmental Services,Refuse Collection,29-Jul-22,£720.00,Bolton Community Transport & Furniture Services#bct & fs#BCTFS
Bolton MBC,Environmental Services,Refuse Collection,29-Jul-22,£800.00,Bolton Community Transport & Furniture Services#bct & fs#BCTFS
Bolton MBC,Environmental Services,Refuse Collection,29-Jul-22,£580.00,Bolton Community Transport & Furniture Services#bct & fs#BCTFS
Bolton MBC,Environmental Services,Contracted Services,01-Jul-22,"£1,280.00",Bolton Stone Restoration Ltd
Bolton MBC,Environmental Services,Contracted Services,01-Jul-22,£560.00,Bolton Stone Restoration Ltd
Bolton MBC,Environmental Services,Uniforms,28-Jul-22,"£8,946.45",British Bespoke Workwear
Bolton MBC,Environmental Services,General Materials,04-Jul-22,£880.79,Calligraphy UK Ltd
Bolton MBC,Environmental Services,Inv Invoice Price Variance,01-Jul-22,"£6,586.35",Certas Energy UK Ltd
Bolton MBC,Environmental Services,Inventory AP Accrual,01-Jul-22,"£6,586.35",Certas Energy UK Ltd
Bolton MBC,Environmental Services,Inv Invoice Price Variance,14-Jul-22,"£6,136.80",Certas Energy UK Ltd
Bolton MBC,Environmental Services,Inventory AP Accrual,14-Jul-22,"£6,136.80",Certas Energy UK Ltd
Bolton MBC,Environmental Services,Inv Invoice Price Variance,26-Jul-22,"£4,011.00",Certas Energy UK Ltd
Bolton MBC,Environmental Services,Inventory AP Accrual,26-Jul-22,"£4,011.00",Certas Energy UK Ltd
Bolton MBC,Environmental Services,Contracted Services,01-Jul-22,"£1,560.00",Challenger Site Services LLP
Bolton MBC,Environmental Services,Operational Equipment Rental,31-Jul-22,"£1,200.00",Challenger Site Services LLP
Bolton MBC,Environmental Services,Plant Hire,11-Jul-22,£798.00,Charlton Sweeper Hire Limited
Bolton MBC,Environmental Services,Plant Hire,01-Jul-22,£588.00,Charlton Sweeper Hire Limited
Bolton MBC,Environmental Services,Vehicle Servicing,01-Jul-22,£508.33,Ciceley Truck & Van Centre#Ciceley Commercials Limited
Bolton MBC,Environmental Services,Vehicle Servicing,13-Jul-22,"£1,778.97",Ciceley Truck & Van Centre#Ciceley Commercials Limited
Bolton MBC,Environmental Services,Contracted Services,01-Jul-22,"£1,087.93",Ciceley Truck & Van Centre#Ciceley Commercials Limited
Bolton MBC,Environmental Services,Promoting Events,13-Jul-22,"£2,170.00",City B Group Ltd
Bolton MBC,Environmental Services,Gas - General,12-Jul-22,"£14,493.35",Corona Energy Limited
Bolton MBC,Environmental Services,Gas - General,12-Jul-22,"£6,397.85",Corona Energy Limited
Bolton MBC,Environmental Services,Gas - General,12-Jul-22,"£9,989.53",Corona Energy Limited
Bolton MBC,Environmental Services,Gas - General,12-Jul-22,£702.01,Corona Energy Limited
Bolton MBC,Environmental Services,Gas - General,12-Jul-22,£536.35,Corona Energy Limited
Bolton MBC,Environmental Services,Contracted Services,12-Jul-22,"£2,160.00",Cromwell Polythene Limited
Bolton MBC,Environmental Services,General Materials,05-Jul-22,"£3,276.00",Cromwell Polythene Limited
Bolton MBC,Environmental Services,General Materials,05-Jul-22,"£5,954.85",Cromwell Polythene Limited
Bolton MBC,Environmental Services,Contracted Services,01-Jul-22,"£3,583.00",Das-Automotive
Bolton MBC,Environmental Services,Contracted Services,01-Jul-22,£853.95,Das-Automotive
Bolton MBC,Environmental Services,Contracted Services,01-Jul-22,£858.90,Das-Automotive
Bolton MBC,Environmental Services,Contracted Services,01-Jul-22,£640.76,Das-Automotive
Bolton MBC,Environmental Services,Contracted Services,08-Jul-22,£855.80,Das-Automotive
Bolton MBC,Environmental Services,Contracted Services,18-Jul-22,"£2,583.80",Das-Automotive
Bolton MBC,Environmental Services,Contract Hire,01-Jul-22,"£2,022.90",Dawsongroup Sweepers Limited
Bolton MBC,Environmental Services,Contract Hire,01-Jul-22,"£2,022.90",Dawsongroup Sweepers Limited
Bolton MBC,Environmental Services,Contract Hire,01-Jul-22,"£2,022.90",Dawsongroup Sweepers Limited
Bolton MBC,Environmental Services,Contract Hire,01-Jul-22,"£2,022.90",Dawsongroup Sweepers Limited
Bolton MBC,Environmental Services,Contract Hire,01-Jul-22,"£2,022.90",Dawsongroup Sweepers Limited
Bolton MBC,Environmental Services,Contract Hire,01-Jul-22,"£2,022.90",Dawsongroup Sweepers Limited
Bolton MBC,Environmental Services,General Materials,01-Jul-22,"£1,608.90",ECE Consultancy Ltd
Bolton MBC,Environmental Services,Direct Materials,04-Jul-22,£545.00,Ecomix Concrete Ltd
Bolton MBC,Environmental Services,Engineering Work,13-Jul-22,£885.95,Electricity North West Limited#United Utilities Electricity Services Ltd
Bolton MBC,Environmental Services,Engineering Work,13-Jul-22,£948.72,Electricity North West Limited#United Utilities Electricity Services Ltd
Bolton MBC,Environmental Services,Day To Day Maintenance,14-Jul-22,£878.00,Elmes Joinery
Bolton MBC,Environmental Services,Transport Hire,01-Jul-22,£765.52,Enterprise Flex-E-Rent#Enterprise Rent A Car UK Limited T/A Enterprise Flex-E-Rent
Bolton MBC,Environmental Services,Contracted Services,01-Jul-22,"£5,388.59",ETS (UK) Ltd
Bolton MBC,Environmental Services,Vehicle Servicing,04-Jul-22,"£1,090.80",Faun Zoeller (UK) Limited
Bolton MBC,Environmental Services,C.C.T.V.,01-Jul-22,£885.00,Fibrelite (North West) Limited
Bolton MBC,Environmental Services,C.C.T.V.,06-Jul-22,£695.00,Fibrelite (North West) Limited
Bolton MBC,Environmental Services,Other Recruitment Expenditure,01-Jul-22,"£6,770.00",GatenbySanderson
Bolton MBC,Environmental Services,Other Recruitment Expenditure,01-Jul-22,"£6,500.00",GatenbySanderson
Bolton MBC,Environmental Services,Other Recruitment Expenditure,22-Jul-22,"£4,062.00",GatenbySanderson
Bolton MBC,Environmental Services,Maint Of Playgrounds,28-Jul-22,£759.50,GB Sport & Leisure UK Limited
Bolton MBC,Environmental Services,CR Bal Hold A/c Exp,01-Jul-22,"£9,963.37",George Cox & Sons Limited
Bolton MBC,Environmental Services,CR Bal Hold A/c Exp,13-Jul-22,"£1,780.00",George Cox & Sons Limited
Bolton MBC,Environmental Services,Vehicle Servicing,11-Jul-22,£882.96,Greenchem Solutions Ltd
Bolton MBC,Environmental Services,Contracted Services,01-Jul-22,"£22,000.00",Greenwood Tree Services Limited
Bolton MBC,Environmental Services,Contracted Services,06-Jul-22,"£1,500.00",Greenwood Tree Services Limited
Bolton MBC,Environmental Services,Contracted Services,19-Jul-22,£750.00,Greenwood Tree Services Limited
Bolton MBC,Environmental Services,Contracted Services,22-Jul-22,"£2,400.00",Greenwood Tree Services Limited
Bolton MBC,Environmental Services,Contracted Services,29-Jul-22,£750.00,Greenwood Tree Services Limited
Bolton MBC,Environmental Services,Plant Hire,01-Jul-22,£885.00,H & C (Plant Hire) Limited
Bolton MBC,Environmental Services,Plant Hire,01-Jul-22,"£1,320.00",H & C (Plant Hire) Limited
Bolton MBC,Environmental Services,Plant Hire,01-Jul-22,"£1,091.50",H & C (Plant Hire) Limited
Bolton MBC,Environmental Services,Plant Hire,01-Jul-22,£649.00,H & C (Plant Hire) Limited
Bolton MBC,Environmental Services,Plant Hire,01-Jul-22,"£1,320.00",H & C (Plant Hire) Limited
Bolton MBC,Environmental Services,Plant Hire,01-Jul-22,£990.00,H & C (Plant Hire) Limited
Bolton MBC,Environmental Services,Plant Hire,01-Jul-22,"£1,100.00",H & C (Plant Hire) Limited
Bolton MBC,Environmental Services,Plant Hire,01-Jul-22,£528.00,H & C (Plant Hire) Limited
Bolton MBC,Environmental Services,Plant Hire,01-Jul-22,"£1,091.50",H & C (Plant Hire) Limited
Bolton MBC,Environmental Services,Plant Hire,01-Jul-22,£885.00,H & C (Plant Hire) Limited
Bolton MBC,Environmental Services,Plant Hire,01-Jul-22,£663.75,H & C (Plant Hire) Limited
Bolton MBC,Environmental Services,Plant Hire,01-Jul-22,"£1,091.50",H & C (Plant Hire) Limited
Bolton MBC,Environmental Services,Plant Hire,01-Jul-22,£885.00,H & C (Plant Hire) Limited
Bolton MBC,Environmental Services,Plant Hire,01-Jul-22,"£1,188.00",H & C (Plant Hire) Limited
Bolton MBC,Environmental Services,Plant Hire,01-Jul-22,£770.00,H & C (Plant Hire) Limited
Bolton MBC,Environmental Services,Electricity - General,13-Jul-22,"£1,609.55",Haven Power Limited
Bolton MBC,Environmental Services,Electricity - General,13-Jul-22,"£7,561.39",Haven Power Limited
Bolton MBC,Environmental Services,Electricity - General,13-Jul-22,"£1,216.08",Haven Power Limited
Bolton MBC,Environmental Services,Contracted Services,12-Jul-22,"£45,903.76",ID Verde Limited#NOT ASSIST MANAGED SERVICES LIMITED
Bolton MBC,Environmental Services,Refuse Collection,01-Jul-22,"£3,876.00",Innovative Safety Systems Limited
Bolton MBC,Environmental Services,General Materials,01-Jul-22,"£1,219.50",J C Davies Plant Hire
Bolton MBC,Environmental Services,General Materials,01-Jul-22,"£6,056.25",J C Davies Plant Hire
Bolton MBC,Environmental Services,Refuse Collection,01-Jul-22,£656.90,J Dickinson & Sons (Horwich) Limited
Bolton MBC,Environmental Services,Refuse Collection,27-Jul-22,£500.50,J Dickinson & Sons (Horwich) Limited
Bolton MBC,Environmental Services,Engineering Work,11-Jul-22,"£21,230.00",J Hopkins (Contractors) Ltd
Bolton MBC,Environmental Services,Plant Hire,01-Jul-22,£784.79,John Bownes Limited
Bolton MBC,Environmental Services,Direct Materials,25-Jul-22,£870.98,John Davidson (Pipes) Ltd#1
Bolton MBC,Environmental Services,Other Fees,01-Jul-22,"£3,750.00",Kainos Software Limited
Bolton MBC,Environmental Services,Vehicle Servicing,04-Jul-22,£607.28,Lancashire Daf
Bolton MBC,Environmental Services,Transport Hire,01-Jul-22,"£3,080.00",Leeds Commercial Limited
Bolton MBC,Environmental Services,Transport Hire,01-Jul-22,"£1,210.00",Leeds Commercial Limited
Bolton MBC,Environmental Services,Transport Hire,01-Jul-22,"£1,232.00",Leeds Commercial Limited
Bolton MBC,Environmental Services,Transport Hire,29-Jul-22,"£2,940.00",Leeds Commercial Limited
Bolton MBC,Environmental Services,Transport Hire,29-Jul-22,"£1,155.00",Leeds Commercial Limited
Bolton MBC,Environmental Services,Transport Hire,29-Jul-22,"£1,176.00",Leeds Commercial Limited
Bolton MBC,Environmental Services,Transport Hire,29-Jul-22,"£1,600.00",Leeds Commercial Limited
Bolton MBC,Environmental Services,Tyres,01-Jul-22,£580.00,Lodge Tyre Co Limited
Bolton MBC,Environmental Services,Tyres,01-Jul-22,£577.00,Lodge Tyre Co Limited
Bolton MBC,Environmental Services,Tyres,01-Jul-22,£630.50,Lodge Tyre Co Limited
Bolton MBC,Environmental Services,Tyres,13-Jul-22,£795.00,Lodge Tyre Co Limited
Bolton MBC,Environmental Services,Tyres,19-Jul-22,"£1,317.50",Lodge Tyre Co Limited
Bolton MBC,Environmental Services,Vehicle Servicing,01-Jul-22,£564.00,LPW (Europe) Ltd
Bolton MBC,Environmental Services,Vehicle Servicing,13-Jul-22,£611.00,LPW (Europe) Ltd
Bolton MBC,Environmental Services,General Materials,18-Jul-22,"£1,800.00",M & B Edible Oils Limited
Bolton MBC,Environmental Services,Other Fees,01-Jul-22,"£23,572.60",Marston Holdings Limited#Marston Recovery
Bolton MBC,Environmental Services,Engineering Work,29-Jul-22,"£2,976.34",Martins Countryside Contracting Ltd
Bolton MBC,Environmental Services,Engineering Work,15-Jul-22,"£3,084.44",Martins Countryside Contracting Ltd
Bolton MBC,Environmental Services,Direct Materials,01-Jul-22,£583.12,Marwood Electrical Company Limited
Bolton MBC,Environmental Services,Direct Materials,01-Jul-22,"£1,020.46",Marwood Electrical Company Limited
Bolton MBC,Environmental Services,CR Bal Hold A/c Exp,15-Jul-22,"£1,628.40",Marwood Electrical Company Limited
Bolton MBC,Environmental Services,Transport Hire,06-Jul-22,£599.00,Melling Commercial Ltd T/A Westwood Motor Group
Bolton MBC,Environmental Services,General Materials,01-Jul-22,"£2,500.00",Nationwide Franking Sense Ltd#1
Bolton MBC,Environmental Services,Landscape Work,01-Jul-22,£815.00,NBS Enterprises Limited
Bolton MBC,Environmental Services,Contracted Services,11-Jul-22,"£2,683.56",Northern Commercials (Mirfield) Ltd
Bolton MBC,Environmental Services,Contract Unit-Non-LEA,01-Jul-22,"£57,549.20",NSL Limited#NSL Services Group
Bolton MBC,Environmental Services,Operational Equipment Purchase,14-Jul-22,"£11,418.00",One51 ES Plastics (UK) Limited T/A MGB Plastics
Bolton MBC,Environmental Services,Car Parking,01-Jul-22,£969.70,Park Now Limited
Bolton MBC,Environmental Services,Traffic Enforcement Centre,26-Jul-22,"£2,497.50",PATROL#Parking and Traffic Regulations Outside London
Bolton MBC,Environmental Services,Uniforms,19-Jul-22,"£1,508.00",Pennine Medical Supplies Limited
Bolton MBC,Environmental Services,Inv Invoice Price Variance,01-Jul-22,£760.00,PP O'Connor Recycling Limited
Bolton MBC,Environmental Services,Inventory AP Accrual,01-Jul-22,£760.00,PP O'Connor Recycling Limited
Bolton MBC,Environmental Services,Inv Invoice Price Variance,11-Jul-22,£760.00,PP O'Connor Recycling Limited
Bolton MBC,Environmental Services,Inventory AP Accrual,11-Jul-22,£760.00,PP O'Connor Recycling Limited
Bolton MBC,Environmental Services,Contracted Services,07-Jul-22,£516.84,Premier Tail Lifts Ltd
Bolton MBC,Environmental Services,General Materials,15-Jul-22,£848.00,Printed4You Limited
Bolton MBC,Environmental Services,General Materials,15-Jul-22,£848.00,Printed4You Limited
Bolton MBC,Environmental Services,Transport Hire,01-Jul-22,"£1,430.00",Priority Hire Limited
Bolton MBC,Environmental Services,Agency Staff - Other,01-Jul-22,"£1,591.00",Proactive Personnel Limited
Bolton MBC,Environmental Services,Agency Staff - Other,06-Jul-22,"£1,591.00",Proactive Personnel Limited
Bolton MBC,Environmental Services,Agency Staff - Other,13-Jul-22,£925.00,Proactive Personnel Limited
Bolton MBC,Environmental Services,Agency Staff - Other,13-Jul-22,£666.00,Proactive Personnel Limited
Bolton MBC,Environmental Services,Agency Staff - Full-time,01-Jul-22,"£2,817.00",Profile Security Services Ltd
Bolton MBC,Environmental Services,Agency Staff - Full-time,01-Jul-22,"£2,504.00",Profile Security Services Ltd
Bolton MBC,Environmental Services,Agency Staff - Full-time,01-Jul-22,£900.48,Profile Security Services Ltd
Bolton MBC,Environmental Services,Agency Staff - Full-time,01-Jul-22,"£1,612.80",Profile Security Services Ltd
Bolton MBC,Environmental Services,Agency Staff - Full-time,01-Jul-22,"£1,451.52",Profile Security Services Ltd
Bolton MBC,Environmental Services,Agency Staff - Full-time,01-Jul-22,£645.12,Profile Security Services Ltd
Bolton MBC,Environmental Services,Inventory AP Accrual,14-Jul-22,£654.00,Proteus Equipment Ltd
Bolton MBC,Environmental Services,Op Equip Health and Safety,15-Jul-22,"£3,657.42",Reactec Ltd
Bolton MBC,Environmental Services,Security Systems - Repairs,20-Jul-22,£562.29,REDACTED - Personal Data
Bolton MBC,Environmental Services,Agency Staff - Other,22-Jul-22,£791.98,Reed#Reed Specialist Recruitment Limited
Bolton MBC,Environmental Services,Agency Staff - Other,22-Jul-22,£590.53,Reed#Reed Specialist Recruitment Limited
Bolton MBC,Environmental Services,Agency Staff - Other,22-Jul-22,£647.03,Reed#Reed Specialist Recruitment Limited
Bolton MBC,Environmental Services,Agency Staff - Other,22-Jul-22,£517.30,Reed#Reed Specialist Recruitment Limited
Bolton MBC,Environmental Services,Agency Staff - Other,22-Jul-22,£647.03,Reed#Reed Specialist Recruitment Limited
Bolton MBC,Environmental Services,Agency Staff - Other,22-Jul-22,£517.23,Reed#Reed Specialist Recruitment Limited
Bolton MBC,Environmental Services,Agency Staff - Other,22-Jul-22,£646.95,Reed#Reed Specialist Recruitment Limited
Bolton MBC,Environmental Services,Agency Staff - Other,22-Jul-22,£517.23,Reed#Reed Specialist Recruitment Limited
Bolton MBC,Environmental Services,Agency Staff - Other,22-Jul-22,£579.14,Reed#Reed Specialist Recruitment Limited
Bolton MBC,Environmental Services,Agency Staff - Other,22-Jul-22,£517.23,Reed#Reed Specialist Recruitment Limited
Bolton MBC,Environmental Services,Agency Staff - Other,22-Jul-22,£517.23,Reed#Reed Specialist Recruitment Limited
Bolton MBC,Environmental Services,Agency Staff - Other,22-Jul-22,£517.23,Reed#Reed Specialist Recruitment Limited
Bolton MBC,Environmental Services,Agency Staff - Other,22-Jul-22,£574.11,Reed#Reed Specialist Recruitment Limited
Bolton MBC,Environmental Services,Agency Staff - Other,22-Jul-22,£517.23,Reed#Reed Specialist Recruitment Limited
Bolton MBC,Environmental Services,Agency Staff - Other,22-Jul-22,£671.98,Reed#Reed Specialist Recruitment Limited
Bolton MBC,Environmental Services,Agency Staff - Other,22-Jul-22,£692.61,Reed#Reed Specialist Recruitment Limited
Bolton MBC,Environmental Services,Agency Staff - Other,22-Jul-22,£517.23,Reed#Reed Specialist Recruitment Limited
Bolton MBC,Environmental Services,Agency Staff - Other,22-Jul-22,£577.45,Reed#Reed Specialist Recruitment Limited
Bolton MBC,Environmental Services,Agency Staff - Other,22-Jul-22,£517.23,Reed#Reed Specialist Recruitment Limited
Bolton MBC,Environmental Services,Agency Staff - Other,22-Jul-22,£517.23,Reed#Reed Specialist Recruitment Limited
Bolton MBC,Environmental Services,Agency Staff - Other,22-Jul-22,£517.23,Reed#Reed Specialist Recruitment Limited
Bolton MBC,Environmental Services,Agency Staff - Other,22-Jul-22,£517.23,Reed#Reed Specialist Recruitment Limited
Bolton MBC,Environmental Services,Agency Staff - Other,22-Jul-22,£517.23,Reed#Reed Specialist Recruitment Limited
Bolton MBC,Environmental Services,Agency Staff - Other,22-Jul-22,£517.23,Reed#Reed Specialist Recruitment Limited
Bolton MBC,Environmental Services,Agency Staff - Other,22-Jul-22,£517.23,Reed#Reed Specialist Recruitment Limited
Bolton MBC,Environmental Services,Agency Staff - Other,22-Jul-22,£517.23,Reed#Reed Specialist Recruitment Limited
Bolton MBC,Environmental Services,Agency Staff - Other,22-Jul-22,£549.45,Reed#Reed Specialist Recruitment Limited
Bolton MBC,Environmental Services,Agency Staff - Other,22-Jul-22,£517.23,Reed#Reed Specialist Recruitment Limited
Bolton MBC,Environmental Services,Agency Staff - Other,22-Jul-22,£809.75,Reed#Reed Specialist Recruitment Limited
Bolton MBC,Environmental Services,Agency Staff - Other,22-Jul-22,£646.95,Reed#Reed Specialist Recruitment Limited
Bolton MBC,Environmental Services,Agency Staff - Other,22-Jul-22,£646.95,Reed#Reed Specialist Recruitment Limited
Bolton MBC,Environmental Services,Agency Staff - Other,22-Jul-22,£647.03,Reed#Reed Specialist Recruitment Limited
Bolton MBC,Environmental Services,Agency Staff - Other,22-Jul-22,£517.30,Reed#Reed Specialist Recruitment Limited
Bolton MBC,Environmental Services,Agency Staff - Other,22-Jul-22,£517.30,Reed#Reed Specialist Recruitment Limited
Bolton MBC,Environmental Services,Agency Staff - Other,22-Jul-22,£517.30,Reed#Reed Specialist Recruitment Limited
Bolton MBC,Environmental Services,Agency Staff - Other,15-Jul-22,£648.87,Reed#Reed Specialist Recruitment Limited
Bolton MBC,Environmental Services,Agency Staff - Other,15-Jul-22,£516.05,Reed#Reed Specialist Recruitment Limited
Bolton MBC,Environmental Services,Agency Staff - Other,15-Jul-22,£535.26,Reed#Reed Specialist Recruitment Limited
Bolton MBC,Environmental Services,Agency Staff - Other,15-Jul-22,£508.86,Reed#Reed Specialist Recruitment Limited
Bolton MBC,Environmental Services,Agency Staff - Other,15-Jul-22,"£1,088.83",Reed#Reed Specialist Recruitment Limited
Bolton MBC,Environmental Services,Agency Staff - Other,15-Jul-22,£517.23,Reed#Reed Specialist Recruitment Limited
Bolton MBC,Environmental Services,Agency Staff - Other,15-Jul-22,£515.99,Reed#Reed Specialist Recruitment Limited
Bolton MBC,Environmental Services,Agency Staff - Other,15-Jul-22,£517.23,Reed#Reed Specialist Recruitment Limited
Bolton MBC,Environmental Services,Agency Staff - Other,15-Jul-22,£517.23,Reed#Reed Specialist Recruitment Limited
Bolton MBC,Environmental Services,Agency Staff - Other,15-Jul-22,£517.23,Reed#Reed Specialist Recruitment Limited
Bolton MBC,Environmental Services,Agency Staff - Other,15-Jul-22,£517.23,Reed#Reed Specialist Recruitment Limited
Bolton MBC,Environmental Services,Agency Staff - Other,15-Jul-22,£517.23,Reed#Reed Specialist Recruitment Limited
Bolton MBC,Environmental Services,Agency Staff - Other,15-Jul-22,£671.98,Reed#Reed Specialist Recruitment Limited
Bolton MBC,Environmental Services,Agency Staff - Other,15-Jul-22,£517.23,Reed#Reed Specialist Recruitment Limited
Bolton MBC,Environmental Services,Agency Staff - Other,15-Jul-22,£517.23,Reed#Reed Specialist Recruitment Limited
Bolton MBC,Environmental Services,Agency Staff - Other,15-Jul-22,£517.23,Reed#Reed Specialist Recruitment Limited
Bolton MBC,Environmental Services,Agency Staff - Other,15-Jul-22,£641.02,Reed#Reed Specialist Recruitment Limited
Bolton MBC,Environmental Services,Agency Staff - Other,15-Jul-22,£517.23,Reed#Reed Specialist Recruitment Limited
Bolton MBC,Environmental Services,Agency Staff - Other,15-Jul-22,£517.23,Reed#Reed Specialist Recruitment Limited
Bolton MBC,Environmental Services,Agency Staff - Other,15-Jul-22,£775.12,Reed#Reed Specialist Recruitment Limited
Bolton MBC,Environmental Services,Agency Staff - Other,15-Jul-22,£636.90,Reed#Reed Specialist Recruitment Limited
Bolton MBC,Environmental Services,Agency Staff - Other,15-Jul-22,£517.23,Reed#Reed Specialist Recruitment Limited
Bolton MBC,Environmental Services,Agency Staff - Other,15-Jul-22,£517.23,Reed#Reed Specialist Recruitment Limited
Bolton MBC,Environmental Services,Agency Staff - Other,15-Jul-22,£508.86,Reed#Reed Specialist Recruitment Limited
Bolton MBC,Environmental Services,Agency Staff - Other,15-Jul-22,£646.95,Reed#Reed Specialist Recruitment Limited
Bolton MBC,Environmental Services,Agency Staff - Other,15-Jul-22,£646.95,Reed#Reed Specialist Recruitment Limited
Bolton MBC,Environmental Services,Agency Staff - Other,15-Jul-22,£517.30,Reed#Reed Specialist Recruitment Limited
Bolton MBC,Environmental Services,Agency Staff - Other,15-Jul-22,£517.30,Reed#Reed Specialist Recruitment Limited
Bolton MBC,Environmental Services,Agency Staff - Other,15-Jul-22,£821.47,Reed#Reed Specialist Recruitment Limited
Bolton MBC,Environmental Services,Agency Staff - Other,15-Jul-22,£516.05,Reed#Reed Specialist Recruitment Limited
Bolton MBC,Environmental Services,Agency Staff - Other,15-Jul-22,£517.30,Reed#Reed Specialist Recruitment Limited
Bolton MBC,Environmental Services,Agency Staff - Other,15-Jul-22,£517.23,Reed#Reed Specialist Recruitment Limited
Bolton MBC,Environmental Services,Agency Staff - Other,15-Jul-22,£671.98,Reed#Reed Specialist Recruitment Limited
Bolton MBC,Environmental Services,Agency Staff - Other,15-Jul-22,£508.86,Reed#Reed Specialist Recruitment Limited
Bolton MBC,Environmental Services,Agency Staff - Other,15-Jul-22,£654.94,Reed#Reed Specialist Recruitment Limited
Bolton MBC,Environmental Services,Agency Staff - Other,15-Jul-22,£517.23,Reed#Reed Specialist Recruitment Limited
Bolton MBC,Environmental Services,Agency Staff - Other,15-Jul-22,£647.03,Reed#Reed Specialist Recruitment Limited
Bolton MBC,Environmental Services,Agency Staff - Other,15-Jul-22,£517.30,Reed#Reed Specialist Recruitment Limited
Bolton MBC,Environmental Services,Agency Staff - Other,01-Jul-22,£523.93,Reed#Reed Specialist Recruitment Limited
Bolton MBC,Environmental Services,Agency Staff - Other,01-Jul-22,£523.93,Reed#Reed Specialist Recruitment Limited
Bolton MBC,Environmental Services,Agency Staff - Other,01-Jul-22,£508.86,Reed#Reed Specialist Recruitment Limited
Bolton MBC,Environmental Services,Agency Staff - Other,01-Jul-22,£508.86,Reed#Reed Specialist Recruitment Limited
Bolton MBC,Environmental Services,Agency Staff - Other,01-Jul-22,£950.48,Reed#Reed Specialist Recruitment Limited
Bolton MBC,Environmental Services,Agency Staff - Other,01-Jul-22,£517.23,Reed#Reed Specialist Recruitment Limited
Bolton MBC,Environmental Services,Agency Staff - Other,01-Jul-22,£517.23,Reed#Reed Specialist Recruitment Limited
Bolton MBC,Environmental Services,Agency Staff - Other,01-Jul-22,£517.23,Reed#Reed Specialist Recruitment Limited
Bolton MBC,Environmental Services,Agency Staff - Other,01-Jul-22,£517.23,Reed#Reed Specialist Recruitment Limited
Bolton MBC,Environmental Services,Agency Staff - Other,01-Jul-22,£517.23,Reed#Reed Specialist Recruitment Limited
Bolton MBC,Environmental Services,Agency Staff - Other,01-Jul-22,£775.12,Reed#Reed Specialist Recruitment Limited
Bolton MBC,Environmental Services,Agency Staff - Other,01-Jul-22,£517.23,Reed#Reed Specialist Recruitment Limited
Bolton MBC,Environmental Services,Agency Staff - Other,01-Jul-22,£517.23,Reed#Reed Specialist Recruitment Limited
Bolton MBC,Environmental Services,Agency Staff - Other,01-Jul-22,£517.23,Reed#Reed Specialist Recruitment Limited
Bolton MBC,Environmental Services,Agency Staff - Other,01-Jul-22,£577.45,Reed#Reed Specialist Recruitment Limited
Bolton MBC,Environmental Services,Agency Staff - Other,01-Jul-22,£517.23,Reed#Reed Specialist Recruitment Limited
Bolton MBC,Environmental Services,Agency Staff - Other,01-Jul-22,£517.23,Reed#Reed Specialist Recruitment Limited
Bolton MBC,Environmental Services,Agency Staff - Other,01-Jul-22,£517.23,Reed#Reed Specialist Recruitment Limited
Bolton MBC,Environmental Services,Agency Staff - Other,01-Jul-22,£517.23,Reed#Reed Specialist Recruitment Limited
Bolton MBC,Environmental Services,Agency Staff - Other,01-Jul-22,£646.95,Reed#Reed Specialist Recruitment Limited
Bolton MBC,Environmental Services,Agency Staff - Other,01-Jul-22,£646.95,Reed#Reed Specialist Recruitment Limited
Bolton MBC,Environmental Services,Agency Staff - Other,01-Jul-22,£646.95,Reed#Reed Specialist Recruitment Limited
Bolton MBC,Environmental Services,Agency Staff - Other,01-Jul-22,£713.74,Reed#Reed Specialist Recruitment Limited
Bolton MBC,Environmental Services,Agency Staff - Other,01-Jul-22,£647.03,Reed#Reed Specialist Recruitment Limited
Bolton MBC,Environmental Services,Agency Staff - Other,01-Jul-22,£926.12,Reed#Reed Specialist Recruitment Limited
Bolton MBC,Environmental Services,Agency Staff - Other,08-Jul-22,£541.10,Reed#Reed Specialist Recruitment Limited
Bolton MBC,Environmental Services,Agency Staff - Other,08-Jul-22,£515.99,Reed#Reed Specialist Recruitment Limited
Bolton MBC,Environmental Services,Agency Staff - Other,08-Jul-22,£646.95,Reed#Reed Specialist Recruitment Limited
Bolton MBC,Environmental Services,Agency Staff - Other,08-Jul-22,£561.61,Reed#Reed Specialist Recruitment Limited
Bolton MBC,Environmental Services,Agency Staff - Other,08-Jul-22,£508.86,Reed#Reed Specialist Recruitment Limited
Bolton MBC,Environmental Services,Agency Staff - Other,08-Jul-22,£687.43,Reed#Reed Specialist Recruitment Limited
Bolton MBC,Environmental Services,Agency Staff - Other,08-Jul-22,£508.86,Reed#Reed Specialist Recruitment Limited
Bolton MBC,Environmental Services,Agency Staff - Other,08-Jul-22,£517.23,Reed#Reed Specialist Recruitment Limited
Bolton MBC,Environmental Services,Agency Staff - Other,08-Jul-22,£517.23,Reed#Reed Specialist Recruitment Limited
Bolton MBC,Environmental Services,Agency Staff - Other,08-Jul-22,£517.23,Reed#Reed Specialist Recruitment Limited
Bolton MBC,Environmental Services,Agency Staff - Other,08-Jul-22,£517.23,Reed#Reed Specialist Recruitment Limited
Bolton MBC,Environmental Services,Agency Staff - Other,08-Jul-22,£671.98,Reed#Reed Specialist Recruitment Limited
Bolton MBC,Environmental Services,Agency Staff - Other,08-Jul-22,£517.23,Reed#Reed Specialist Recruitment Limited
Bolton MBC,Environmental Services,Agency Staff - Other,08-Jul-22,£517.23,Reed#Reed Specialist Recruitment Limited
Bolton MBC,Environmental Services,Agency Staff - Other,08-Jul-22,£517.23,Reed#Reed Specialist Recruitment Limited
Bolton MBC,Environmental Services,Agency Staff - Other,08-Jul-22,£517.23,Reed#Reed Specialist Recruitment Limited
Bolton MBC,Environmental Services,Agency Staff - Other,08-Jul-22,£661.66,Reed#Reed Specialist Recruitment Limited
Bolton MBC,Environmental Services,Agency Staff - Other,08-Jul-22,£517.23,Reed#Reed Specialist Recruitment Limited
Bolton MBC,Environmental Services,Agency Staff - Other,08-Jul-22,£517.23,Reed#Reed Specialist Recruitment Limited
Bolton MBC,Environmental Services,Agency Staff - Other,08-Jul-22,£785.43,Reed#Reed Specialist Recruitment Limited
Bolton MBC,Environmental Services,Agency Staff - Other,08-Jul-22,£952.54,Reed#Reed Specialist Recruitment Limited
Bolton MBC,Environmental Services,Agency Staff - Other,08-Jul-22,£517.23,Reed#Reed Specialist Recruitment Limited
Bolton MBC,Environmental Services,Agency Staff - Other,08-Jul-22,£517.23,Reed#Reed Specialist Recruitment Limited
Bolton MBC,Environmental Services,Agency Staff - Other,08-Jul-22,£713.23,Reed#Reed Specialist Recruitment Limited
Bolton MBC,Environmental Services,Agency Staff - Other,08-Jul-22,£517.23,Reed#Reed Specialist Recruitment Limited
Bolton MBC,Environmental Services,Agency Staff - Other,08-Jul-22,£517.23,Reed#Reed Specialist Recruitment Limited
Bolton MBC,Environmental Services,Agency Staff - Other,08-Jul-22,£517.23,Reed#Reed Specialist Recruitment Limited
Bolton MBC,Environmental Services,Agency Staff - Other,08-Jul-22,£795.75,Reed#Reed Specialist Recruitment Limited
Bolton MBC,Environmental Services,Agency Staff - Other,08-Jul-22,£804.00,Reed#Reed Specialist Recruitment Limited
Bolton MBC,Environmental Services,Agency Staff - Other,08-Jul-22,£517.23,Reed#Reed Specialist Recruitment Limited
Bolton MBC,Environmental Services,Agency Staff - Other,08-Jul-22,£517.23,Reed#Reed Specialist Recruitment Limited
Bolton MBC,Environmental Services,Agency Staff - Other,08-Jul-22,£517.23,Reed#Reed Specialist Recruitment Limited
Bolton MBC,Environmental Services,Agency Staff - Other,08-Jul-22,£646.95,Reed#Reed Specialist Recruitment Limited
Bolton MBC,Environmental Services,Agency Staff - Other,08-Jul-22,£672.07,Reed#Reed Specialist Recruitment Limited
Bolton MBC,Environmental Services,Agency Staff - Other,08-Jul-22,£833.10,Reed#Reed Specialist Recruitment Limited
Bolton MBC,Environmental Services,Agency Staff - Other,08-Jul-22,£647.03,Reed#Reed Specialist Recruitment Limited
Bolton MBC,Environmental Services,Agency Staff - Other,08-Jul-22,£995.91,Reed#Reed Specialist Recruitment Limited
Bolton MBC,Environmental Services,Agency Staff - Other,08-Jul-22,£648.87,Reed#Reed Specialist Recruitment Limited
Bolton MBC,Environmental Services,Agency Staff - Other,15-Jul-22,£509.85,Reed#Reed Specialist Recruitment Limited
Bolton MBC,Environmental Services,Agency Staff - Other,01-Jul-22,£509.85,Reed#Reed Specialist Recruitment Limited
Bolton MBC,Environmental Services,Inv Invoice Price Variance,05-Jul-22,£990.00,Region Electrical Supplies Limited
Bolton MBC,Environmental Services,Inventory AP Accrual,05-Jul-22,£990.00,Region Electrical Supplies Limited
Bolton MBC,Environmental Services,Computer Software Licences,01-Jul-22,£815.00,RIBA Enterprises Limited
Bolton MBC,Environmental Services,Plant Hire,01-Jul-22,£780.00,Richard Burton Haulage Limited
Bolton MBC,Environmental Services,Plant Hire,10-Jul-22,£780.00,Richard Burton Haulage Limited
Bolton MBC,Environmental Services,Plant Hire,05-Jul-22,£780.00,Richard Burton Haulage Limited
Bolton MBC,Environmental Services,Plant Hire,14-Jul-22,£840.00,Richard Burton Haulage Limited
Bolton MBC,Environmental Services,Plant Hire,19-Jul-22,£840.00,Richard Burton Haulage Limited
Bolton MBC,Environmental Services,Inventory AP Accrual,13-Jul-22,£559.05,Ritherdon & Co Ltd
Bolton MBC,Environmental Services,Transport Hire,01-Jul-22,"£5,500.00",Riverside Truck Rental Limited
Bolton MBC,Environmental Services,Transport Hire,01-Jul-22,"£5,500.00",Riverside Truck Rental Limited
Bolton MBC,Environmental Services,Transport Hire,01-Jul-22,"£5,500.00",Riverside Truck Rental Limited
Bolton MBC,Environmental Services,Transport Hire,01-Jul-22,"£5,500.00",Riverside Truck Rental Limited
Bolton MBC,Environmental Services,Transport Hire,01-Jul-22,"£4,378.00",Riverside Truck Rental Limited
Bolton MBC,Environmental Services,Operational Equipment Maint,01-Jul-22,£972.11,Safety Kleen UK Limited
Bolton MBC,Environmental Services,Electricity - General,19-Jul-22,"£1,775.80",Scottish & Southern Energy plc#SSE
Bolton MBC,Environmental Services,Electricity - General,19-Jul-22,"£4,552.46",Scottish & Southern Energy plc#SSE
Bolton MBC,Environmental Services,Clothing,18-Jul-22,£621.26,Seton#Brady Corporation Ltd
Bolton MBC,Environmental Services,Plant Hire,01-Jul-22,£595.00,Sibcas Limited
Bolton MBC,Environmental Services,Plant Hire,01-Jul-22,£595.00,Sibcas Limited
Bolton MBC,Environmental Services,Plant Hire,23-Jul-22,£595.00,Sibcas Limited
Bolton MBC,Environmental Services,Plant Hire,24-Jul-22,£595.00,Sibcas Limited
Bolton MBC,Environmental Services,General Materials,01-Jul-22,"£3,595.00",Socotec UK Limited
Bolton MBC,Environmental Services,Engineering Work,14-Jul-22,"£1,180.00",Stillwater Associates Limited
Bolton MBC,Environmental Services,Day To Day Maintenance,24-Jul-22,£835.00,T Lowe & Son Limited
Bolton MBC,Environmental Services,Vehicles Plant Equip and Machinery,01-Jul-22,"£1,360.00",Techserve (North West) Limited
Bolton MBC,Environmental Services,Contracted Services,01-Jul-22,"£2,929.52",Terberg Matec UK
Bolton MBC,Environmental Services,General Materials,20-Jul-22,"£1,350.00",The Columbaria Company
Bolton MBC,Environmental Services,General Materials,28-Jul-22,"£1,800.00",The Columbaria Company
Bolton MBC,Environmental Services,General Materials,01-Jul-22,£621.00,The Columbaria Company
Bolton MBC,Environmental Services,General Materials,01-Jul-22,£644.00,The Columbaria Company
Bolton MBC,Environmental Services,General Materials,01-Jul-22,"£1,903.75",The Columbaria Company
Bolton MBC,Environmental Services,General Materials,04-Jul-22,"£1,660.00",The Columbaria Company
Bolton MBC,Environmental Services,General Materials,15-Jul-22,£896.50,The Columbaria Company
Bolton MBC,Environmental Services,General Materials,20-Jul-22,£543.75,The Columbaria Company
Bolton MBC,Environmental Services,Consultancy Fees,01-Jul-22,"£1,852.20",The ExcluSec Group Limited T/As ExcluSec Security
Bolton MBC,Environmental Services,Agency Staff - Full-time,06-Jul-22,£768.50,The Oyster Partnership Limited
Bolton MBC,Environmental Services,Agency Staff - Full-time,06-Jul-22,"£1,019.82",The Oyster Partnership Limited
Bolton MBC,Environmental Services,Agency Staff - Full-time,13-Jul-22,"£1,461.74",The Oyster Partnership Limited
Bolton MBC,Environmental Services,Agency Staff - Full-time,20-Jul-22,£984.74,The Oyster Partnership Limited
Bolton MBC,Environmental Services,Agency Staff - Full-time,20-Jul-22,"£1,508.45",The Oyster Partnership Limited
Bolton MBC,Environmental Services,Agency Staff - Full-time,27-Jul-22,"£1,294.26",The Oyster Partnership Limited
Bolton MBC,Environmental Services,Agency Staff - Full-time,27-Jul-22,"£1,487.18",The Oyster Partnership Limited
Bolton MBC,Environmental Services,Other Fees,22-Jul-22,"£10,000.00",The Traffic Enforcement Centre
Bolton MBC,Environmental Services,Horticultural Materials,11-Jul-22,£708.60,Tillage Nurseries
Bolton MBC,Environmental Services,Horticultural Materials,21-Jul-22,£696.60,Tillage Nurseries
Bolton MBC,Environmental Services,Other Fees,15-Jul-22,"£5,000.00",Transport For Greater Manchester
Bolton MBC,Environmental Services,Other Fees,14-Jul-22,"£5,000.00",Transport For Greater Manchester
Bolton MBC,Environmental Services,Office Stationery,14-Jul-22,£748.88,VIP-System Limited
Bolton MBC,Environmental Services,Office Stationery,14-Jul-22,"£1,920.00",VIP-System Limited
Bolton MBC,Environmental Services,Office Stationery,14-Jul-22,"£1,432.44",VIP-System Limited
Bolton MBC,Environmental Services,Office Stationery,14-Jul-22,"£1,212.00",VIP-System Limited
Bolton MBC,Environmental Services,Office Stationery,14-Jul-22,"£1,316.40",VIP-System Limited
Bolton MBC,Environmental Services,Office Stationery,14-Jul-22,£658.70,VIP-System Limited
Bolton MBC,Environmental Services,Office Stationery,14-Jul-22,"£1,422.00",VIP-System Limited
Bolton MBC,Environmental Services,Office Stationery,14-Jul-22,"£1,069.60",VIP-System Limited
Bolton MBC,Environmental Services,Office Stationery,14-Jul-22,"£1,396.20",VIP-System Limited
Bolton MBC,Environmental Services,Office Stationery,14-Jul-22,£697.80,VIP-System Limited
Bolton MBC,Environmental Services,General Materials,01-Jul-22,"£1,767.00",Vivedia Limited
Bolton MBC,Environmental Services,Contracted Services,01-Jul-22,£909.96,W & S C Jobson Ltd
Bolton MBC,Environmental Services,Contracted Services,01-Jul-22,£713.87,W & S C Jobson Ltd
Bolton MBC,Environmental Services,Contracted Services,12-Jul-22,"£1,765.00",W & S C Jobson Ltd
Bolton MBC,Environmental Services,Contracted Services,18-Jul-22,"£1,154.84",W & S C Jobson Ltd
Bolton MBC,Environmental Services,Other Agency/Contracted Services,27-Jul-22,"£7,463.25",Wilde Consultants Limited
Bolton MBC,Environmental Services,Direct Materials,12-Jul-22,"£1,619.28",William Smith Group 1832 Limited
Bolton MBC,Highway Services,Work in Progress Additions,07-Jul-22,"£29,552.50",Aecom Limited
Bolton MBC,Highway Services,Work in Progress Additions,01-Jul-22,"£49,489.53",Bethell Construction Ltd
Bolton MBC,Highway Services,Work in Progress Additions,01-Jul-22,"£1,119.25",Cadent Gas Limited
Bolton MBC,Highway Services,Work in Progress Additions,20-Jul-22,"£13,745.73",Electricity North West Limited#United Utilities Electricity Services Ltd
Bolton MBC,Highway Services,Work in Progress Additions,26-Jul-22,"£23,174.14",J Hopkins (Contractors) Ltd
Bolton MBC,Highway Services,Work in Progress Additions,28-Jul-22,"£6,396.00",Lucy Zodion Limited
Bolton MBC,Highway Services,Work in Progress Additions,01-Jul-22,"£17,000.00",Mott MacDonald Limited
Bolton MBC,Highway Services,Work in Progress Additions,26-Jul-22,"£7,700.00",Mott MacDonald Limited
Bolton MBC,Highway Services,Work in Progress Additions,01-Jul-22,"£17,790.00",National Testing Services Limited
Bolton MBC,Highway Services,Work in Progress Additions,13-Jul-22,"£1,840.00",Transport For Greater Manchester
Bolton MBC,Highway Services,Work in Progress Additions,14-Jul-22,"£1,493.96",Transport For Greater Manchester
Bolton MBC,Housing GRF,Private Contracted Services,06-Jul-22,"£27,768.00",Adullam Housing Association Limited#Homes
